{"text_format":"3","workbook":"xlsx","n_sheets":1,"sheets":["dtsPriceList"],"read":"whole","date_system":"1900"}

{"sheet":"dtsPriceList","index":0,"n_rows":1015,"n_cols":10,"rows_kept":1015,"merged":[[0,0,0,9],[1,0,1,9],[2,0,2,9],[3,0,3,9],[4,0,4,9],[5,0,5,9]]}
["                       "]
["         ООО Логосфера "]
["                       "]
["         Прайс - Лист    "]
[" "]
["         Дата: 19.09.2022  Указанные цены актуальны на момент составления прайс-листа и могут изменяться без уведомления клиента**"]
[]
[]
["isbn","Автор","Название","Издательство","Год издания","Страниц","Тип обложки","Издание","Цена руб","Описание"]
["#","1 Курс","Anatomy/Gross Anatomy","","","","",""]
["9785986570846","Крец О.","Sobotta. Рабочая тетрадь по анатомии человека","Логосфера(Изд)","2021","233","Paperback","",{"v":1290,"d":"1290.00"},{"$f":"HYPERLINK(\"https://www.logobook.ru/prod_show.php?object_uid=15733021\",\"Описание\")","v":"Описание"}]
["9789999909891","Редакция Ф. Паульсен","Комплект Sobotta. Атлас анатомии человека. Изд.2.  Т1 + Т2+ Т3+таблицы","Логосфера(Изд)","","","","",{"v":12990,"d":"12990.00"},{"$f":"HYPERLINK(\"https://www.logobook.ru/prod_show.php?object_uid=15474708\",\"Описание\")","v":"Описание"}]
["9785986570778","Редакция Ф. Паульсен","Sobotta. Атлас анатомии человека том 3,  изд.2","Логосфера(Изд)","2021","584","Hardcover","",{"v":4990,"d":"4990.00"},{"$f":"HYPERLINK(\"https://www.logobook.ru/prod_show.php?object_uid=15474377\",\"Описание\")","v":"Описание"}]
["9785986570754","Редакция Ф. Паульсен","Sobotta. Атлас анатомии человека том 1, изд.2","Логосфера(Изд)","2021","400","Hardcover","",{"v":3990,"d":"3990.00"},{"$f":"HYPERLINK(\"https://www.logobook.ru/prod_show.php?object_uid=15474376\",\"Описание\")","v":"Описание"}]
["9785986570761","Редакция Ф. Паульсен","Sobotta. Атлас анатомии человека том 2,  изд.2","Логосфера(Изд)","2021","536","Hardcover","",{"v":3690,"d":"3690.00"},{"$f":"HYPERLINK(\"https://www.logobook.ru/prod_show.php?object_uid=15474375\",\"Описание\")","v":"Описание"}]
["9785986570785","Редакция Ф. Паульсен","Sobotta. Таблицы мышц, суставов и нервов","Логосфера(Изд)","2022","80","","",{"v":990,"d":"990.00"},{"$f":"HYPERLINK(\"https://www.logobook.ru/prod_show.php?object_uid=15623305\",\"Описание\")","v":"Описание"}]
["9780323224963","Richard Drake","Gray's Anatomy for Students and Paulsen: Sobotta, Atlas of Anatomy 15e Package,","Elsevier Science","2014","0","Promotion pack","3 rev ed",{"v":6930,"d":"6930.00"},{"$f":"HYPERLINK(\"https://www.logobook.ru/prod_show.php?object_uid=12652014\",\"Описание\")","v":"Описание"}]
["9780702067600","Jens Waschke, Tobias","Sobotta Anatomy Textbook: English Edition with Latin Nomenclature","Elsevier Science","2018","840","Hardback","",{"v":8636,"d":"8636.00"},{"$f":"HYPERLINK(\"https://www.logobook.ru/prod_show.php?object_uid=14394058\",\"Описание\")","v":"Описание"}]
["9780702077067","Standring, Susan","Gray'S Anatomy. 42 ed. International Edition","Elsevier Science","2020","1584","Hardback","42",{"v":9470,"d":"9470.00"},{"$f":"HYPERLINK(\"https://www.logobook.ru/prod_show.php?object_uid=14967331\",\"Описание\")","v":"Описание"}]
["9780702051326","Richard  Drake","Gray`s  Anatomy for  Students.  International  3 Edition","Elsevier Science","2014","1192","Paperback","3 international ed",{"v":2199,"d":"2199.00"},{"$f":"HYPERLINK(\"https://www.logobook.ru/prod_show.php?object_uid=12520130\",\"Описание\")","v":"Описание"}]
["9780323393041","Richard Drake,  A. W","Gray's Anatomy for Students, 4th Edition","Elsevier Science","2019","1180","Paperback","4 revised edition",{"v":7506,"d":"7506.00"},{"$f":"HYPERLINK(\"https://www.logobook.ru/prod_show.php?object_uid=14360369\",\"Описание\")","v":"Описание"}]
["9780323596770","Netter Frank H.","Atlas of Human Anatomy: Latin Terminology, 7th Edition  English and Latin Edition","Elsevier Science","2018","656","Paperback           ","7 revised edition",{"v":8892,"d":"8892.00"},{"$f":"HYPERLINK(\"https://www.logobook.ru/prod_show.php?object_uid=14173638\",\"Описание\")","v":"Описание"}]
["9780323680424","Netter Frank","Netter Atlas of Human Anatomy: Classic Regional Approach, 8 Ed.  paperback + eBook","Elsevier Science","2022","712","Paperback","8 ed",{"v":8661,"d":"8661.00"},{"$f":"HYPERLINK(\"https://www.logobook.ru/prod_show.php?object_uid=15613564\",\"Описание\")","v":"Описание"}]
["9780323760287","Netter Frank","Netter Atlas of Human Anatomy: A Systems Approach, paperback + eBook, 8 Ed.","Elsevier Science","2022","712","Paperback","8 ed",{"v":8661,"d":"8661.00"},{"$f":"HYPERLINK(\"https://www.logobook.ru/prod_show.php?object_uid=15615836\",\"Описание\")","v":"Описание"}]
["9780323393225","Netter Frank H.","Atlas of Human Anatomy 7 еd.","Elsevier Science","2018","648","Paperback","7 revised edition",{"v":8084,"d":"8084.00"},{"$f":"HYPERLINK(\"https://www.logobook.ru/prod_show.php?object_uid=13646175\",\"Описание\")","v":"Описание"}]
["9780323393218","Netter Frank H.","Netter Atlas of human Anatomy - 7 IE","Elsevier Science","2019","672","Paperback","7 revised edition",{"v":3233,"d":"3233.00"},{"$f":"HYPERLINK(\"https://www.logobook.ru/prod_show.php?object_uid=14036922\",\"Описание\")","v":"Описание"}]
["9780323694971","Lyons, Virginia T.","Netter'S Essential Systems-Based Anatomy","Elsevier Science","2021","416","Paperback","1",{"v":5196,"d":"5196.00"},{"$f":"HYPERLINK(\"https://www.logobook.ru/prod_show.php?object_uid=15468765\",\"Описание\")","v":"Описание"}]
["9780323696616","Ward, Peter J","Netter'S Integrated Musculoskeletal System","Elsevier Science","2021","440","Paperback","",{"v":6351,"d":"6351.00"},{"$f":"HYPERLINK(\"https://www.logobook.ru/prod_show.php?object_uid=15568432\",\"Описание\")","v":"Описание"}]
["9780702073335","Abrahams P. et al","Abrahams' and McMinn's Clinical Atlas of Human Anatomy, 8 IE","Elsevier Science","2019","400","Paperback","",{"v":3810,"d":"3810.00"},{"$f":"HYPERLINK(\"https://www.logobook.ru/prod_show.php?object_uid=14209567\",\"Описание\")","v":"Описание"}]
["9783135335070","Werner Kahle","Color Atlas of Human Anatomy, Vol. 3: Nervous System and Sensory Organs","Thieme Verlagsgruppe","2015","428","Paperback","7th edition",{"v":5774,"d":"5774.00"},{"$f":"HYPERLINK(\"https://www.logobook.ru/prod_show.php?object_uid=12756030\",\"Описание\")","v":"Описание"}]
["9783135333076","Werner Platzer","Color Atlas of Human Anatomy: Vol 1. Locomotor System","Thieme Verlagsgruppe","2014","480","Paperback","7",{"v":5774,"d":"5774.00"},{"$f":"HYPERLINK(\"https://www.logobook.ru/prod_show.php?object_uid=12613994\",\"Описание\")","v":"Описание"}]
["9783135334066","Matthias Leonhardt","Color Atlas of Human Anatomy: Vol. 2: Internal Organs","Thieme Verlagsgruppe","2014","484","Paperback","6th edition",{"v":5774,"d":"5774.00"},{"$f":"HYPERLINK(\"https://www.logobook.ru/prod_show.php?object_uid=12613981\",\"Описание\")","v":"Описание"}]
["9781626231177","Gilroy, Anne M.","Anatomy. An essential textbook. Latin Nomenclature","Thieme Verlagsgruppe","2015","532","Paperback","1",{"v":5774,"d":"5774.00"},{"$f":"HYPERLINK(\"https://www.logobook.ru/prod_show.php?object_uid=12867981\",\"Описание\")","v":"Описание"}]
["9781626234390","Gilroy Anne M.","Anatomy - An Essential Textbook, 2 ed.","Thieme Verlagsgruppe","2018","528","Paperback","2",{"v":5196,"d":"5196.00"},{"$f":"HYPERLINK(\"https://www.logobook.ru/prod_show.php?object_uid=13487882\",\"Описание\")","v":"Описание"}]
["9781684204519","Gilroy, Anne M Macph","Atlas of anatomy, latin nomenclature. 4 ed","Thieme Verlagsgruppe","2022","772","Hardback","4 new edition",{"v":10394,"d":"10394.00"},{"$f":"HYPERLINK(\"https://www.logobook.ru/prod_show.php?object_uid=15545271\",\"Описание\")","v":"Описание"}]
["9781684200849","Schuenke Michael, Sc","General Anatomy and Musculoskeletal System (Thieme Atlas of Anatomy), Latin Nomenclature","Thieme Verlagsgruppe","2021","632","Hardback","3 new edition",{"v":9239,"d":"9239.00"},{"$f":"HYPERLINK(\"https://www.logobook.ru/prod_show.php?object_uid=15188016\",\"Описание\")","v":"Описание"}]
["9781684200863","Schuenke Michael, Sc","Head, Neck, and Neuroanatomy (Thieme Atlas of Anatomy), Latin Nomenclature","Thieme Verlagsgruppe","2021","592","Hardback","3 new edition",{"v":9239,"d":"9239.00"},{"$f":"HYPERLINK(\"https://www.logobook.ru/prod_show.php?object_uid=15179453\",\"Описание\")","v":"Описание"}]
["9781626237209","Michael Schuenke, Er","Internal Organs (THIEME Atlas of Anatomy)","Thieme Verlagsgruppe","2020","490","Paperback","3",{"v":8084,"d":"8084.00"},{"$f":"HYPERLINK(\"https://www.logobook.ru/prod_show.php?object_uid=14854743\",\"Описание\")","v":"Описание"}]
["9781260469417","Waxman Stephen G.","Clinical Neuroanatomy, 29 Ed. IE","McGraw-Hill","2020","","","",{"v":5224,"d":"5224.00"},{"$f":"HYPERLINK(\"https://www.logobook.ru/prod_show.php?object_uid=15307103\",\"Описание\")","v":"Описание"}]
["9781975151560","Chihiro Yokochi, Elk","Photographic Atlas of Anatomy, 9E International Edition","Lippincott Williams & Wil","2021","752","Paperback","Ninth, international",{"v":9075,"d":"9075.00"},{"$f":"HYPERLINK(\"https://www.logobook.ru/prod_show.php?object_uid=15357316\",\"Описание\")","v":"Описание"}]
["9781975138783","Anne M. R. Agur, Art","Grant's Atlas of Anatomy, 15 ed.","Lippincott Williams & Wil","2020","896","Paperback","Fifteenth, internati",{"v":7013,"d":"7013.00"},{"$f":"HYPERLINK(\"https://www.logobook.ru/prod_show.php?object_uid=14856322\",\"Описание\")","v":"Описание"}]
["9781975120146","HALLIDAY","BRS gross anatomy","Lippincott Williams & Wil","2019","544","Paperback","Ninth, international",{"v":5019,"d":"5019.00"},{"$f":"HYPERLINK(\"https://www.logobook.ru/prod_show.php?object_uid=14369678\",\"Описание\")","v":"Описание"}]
["9781496388421","Kelly M. Harrell, Ro","Lippincott Illustrated Reviews: Anatomy, 1e","Lippincott Williams & Wil","2018","512","Paperback","First, international",{"v":4881,"d":"4881.00"},{"$f":"HYPERLINK(\"https://www.logobook.ru/prod_show.php?object_uid=14174069\",\"Описание\")","v":"Описание"}]
["","","","","","","",""]
["#","1 Курс","Biochemistry","","","","",""]
["","","","","","","",""]
["9780702072994","Baynes, John W, PhD ","Medical Biochemistry. 5 Ed.","Elsevier Science","2019","702","Paperback","5 revised edition",{"v":8199,"d":"8199.00"},{"$f":"HYPERLINK(\"https://www.logobook.ru/prod_show.php?object_uid=13646044\",\"Описание\")","v":"Описание"}]
["9780723438823","Marshall","Clinical Chemistry, 8E Ie","Elsevier Science","2016","424","Paperback","8 international ed",{"v":3695,"d":"3695.00"},{"$f":"HYPERLINK(\"https://www.logobook.ru/prod_show.php?object_uid=12925654\",\"Описание\")","v":"Описание"}]
["9781496399236","Lieberman, Michael A","BRS biochemistry, molecular biology, and genetics. 7 ed","Lippincott Williams & Wil","2019","448","Paperback","7 ed",{"v":7296,"d":"7296.00"},{"$f":"HYPERLINK(\"https://www.logobook.ru/prod_show.php?object_uid=14457495\",\"Описание\")","v":"Описание"}]
["9781975174712","Alisa Peet, Michael ","Marks` basic medical biochemistry,  6 ed.","Lippincott Williams & Wil","2022","1100","Paperback","Sixth, international",{"v":7563,"d":"7563.00"},{"$f":"HYPERLINK(\"https://www.logobook.ru/prod_show.php?object_uid=15612324\",\"Описание\")","v":"Описание"}]
["9781975155117","Emine E. Abali et al","Lippincott Illustrated Reviews: Biochemistry 8E (Int Ed)","Lippincott Williams & Wil","2021","649","Paperback","Eighth, internationa",{"v":5294,"d":"5294.00"},{"$f":"HYPERLINK(\"https://www.logobook.ru/prod_show.php?object_uid=15153423\",\"Описание\")","v":"Описание"}]
["9783030487393","Da Poian, Andrea T.,","Integrative Human Biochemistry","Springer","2021","696","Hardcover","2nd ed.",{"v":9816,"d":"9816.00"},{"$f":"HYPERLINK(\"https://www.logobook.ru/prod_show.php?object_uid=15314708\",\"Описание\")","v":"Описание"}]
["9781260288421","Victor Rodwell et al","Harpers illustrated biochemistry 31e IE","McGraw-Hill","2018","789","Paperback","31 ed",{"v":7424,"d":"7424.00"},{"$f":"HYPERLINK(\"https://www.logobook.ru/prod_show.php?object_uid=14097536\",\"Описание\")","v":"Описание"}]
["9781319114657","Jeremy M. Berg","Biochemistry  9th ed","Macmillan Learning","2019","1208","Hardback","9th ed. 2019",{"v":9624,"d":"9624.00"},{"$f":"HYPERLINK(\"https://www.logobook.ru/prod_show.php?object_uid=14557972\",\"Описание\")","v":"Описание"}]
["9781319381493","Nelson David L.","Lehninger Principles of Biochemistry: International Edition  (8th Edition)","Bloomsbury Academic","2021","1091","","",{"v":9486,"d":"9486.00"},{"$f":"HYPERLINK(\"https://www.logobook.ru/prod_show.php?object_uid=15474004\",\"Описание\")","v":"Описание"}]
["9783131003737","Jan Koolman","Color Atlas of Biochemistry","Thieme Verlagsgruppe","2012","506","Paperback","3",{"v":5196,"d":"5196.00"},{"$f":"HYPERLINK(\"https://www.logobook.ru/prod_show.php?object_uid=12233005\",\"Описание\")","v":"Описание"}]
["9781626235359","Zeynep Gromley, Adam","Biochemistry, Cell and Molecular Biology, and Genetics: An Integrated Textbook","Thieme Verlagsgruppe","2020","502","Paperback","1",{"v":9816,"d":"9816.00"},{"$f":"HYPERLINK(\"https://www.logobook.ru/prod_show.php?object_uid=15074189\",\"Описание\")","v":"Описание"}]
["9781626237445","Sankhavaram R. Panin","Medical Biochemistry - An Essential Textbook","Thieme Verlagsgruppe","2021","474","Paperback","2 new edition",{"v":9816,"d":"9816.00"},{"$f":"HYPERLINK(\"https://www.logobook.ru/prod_show.php?object_uid=15362001\",\"Описание\")","v":"Описание"}]
["9780198749691","Patrick, Graham","An Introduction to Medicinal Chemistry 6/e (Paperback)","Oxford Academ","2017","912","Paperback ","6 rev ed",{"v":6846,"d":"6846.00"},{"$f":"HYPERLINK(\"https://www.logobook.ru/prod_show.php?object_uid=13349558\",\"Описание\")","v":"Описание"}]
["9789389188684","Nayak B Shivananda","Essentials Of Biochemistry (For Medical Students) As Per The Revised Nmc Curriculum","JayPee Brothers India","2022","598","Paperback","4 revised edition",{"v":6188,"d":"6188.00"},{"$f":"HYPERLINK(\"https://www.logobook.ru/prod_show.php?object_uid=15655642\",\"Описание\")","v":"Описание"}]
["9789354656606","Sahi Nita","Practical Biochemistry With Clinical Correlation According To New Competency-Based Curriculum","JayPee Brothers India","2022","","","1/E",{"v":3438,"d":"3438.00"},{"$f":"HYPERLINK(\"https://www.logobook.ru/prod_show.php?object_uid=15655760\",\"Описание\")","v":"Описание"}]
["9789354655104","Evangeline Jones","Manual Of Practical Medical Biochemistry","JayPee Brothers India","2022","238","Paperback","3 revised edition",{"v":3025,"d":"3025.00"},{"$f":"HYPERLINK(\"https://www.logobook.ru/prod_show.php?object_uid=15655792\",\"Описание\")","v":"Описание"}]
["9789389034981","By DM Vasudevan, By ","Textbook of Biochemistry for Medical Students","JayPee Brothers India","2019","844","Paperback","9 revised edition",{"v":10313,"d":"10313.00"},{"$f":"HYPERLINK(\"https://www.logobook.ru/prod_show.php?object_uid=14859715\",\"Описание\")","v":"Описание"}]
["9789390595105","Gogoi Javin Bishnu","Simplified Practical Manual Of Biochemistry","JayPee Brothers India","2021","","","3/E",{"v":3706,"d":"3706.00"},{"$f":"HYPERLINK(\"https://www.logobook.ru/prod_show.php?object_uid=15655870\",\"Описание\")","v":"Описание"}]
["","","","","","","",""]
["#","1 Курс","Bioethics","","","","",""]
["","","","","","","",""]
["9780199214303","Mepham, Ben","Bioethics: An introduction for the biosciences","Oxford Academ","2008","440","Paperback","Second Edition",{"v":6846,"d":"6846.00"},{"$f":"HYPERLINK(\"https://www.logobook.ru/prod_show.php?object_uid=11213426\",\"Описание\")","v":"Описание"}]
["9780128157978","Illes, Judy","Pain Neuroethics","Elsevier Science","2018","300","Paperback","Pain Neuroethics",{"v":17903,"d":"17903.00"},{"$f":"HYPERLINK(\"https://www.logobook.ru/prod_show.php?object_uid=13960506\",\"Описание\")","v":"Описание"}]
["9781260457544","Jonsen","Clinical Ethics: A Practical Approach to Ethical Decisions in Clinical Medicine, 9 ed","McGraw-Hill","2022","272","Paperback","9 ed",{"v":5636,"d":"5636.00"},{"$f":"HYPERLINK(\"https://www.logobook.ru/prod_show.php?object_uid=15609043\",\"Описание\")","v":"Описание"}]
["9783030007188","Zwitter, Matjaz","Medical Ethics in Clinical Practice","Springer","2019","211","Hardcover","1st ed. 2019",{"v":9239,"d":"9239.00"},{"$f":"HYPERLINK(\"https://www.logobook.ru/prod_show.php?object_uid=14835739\",\"Описание\")","v":"Описание"}]
["","","","","","","",""]
["#","1 Курс","Biology","","","","",""]
["","","","","","","",""]
["9780198351917","Locke, Jo Bircher, P","Level Biology A for OCR Year 1 Student Book.","Oxford Education","2015","392","Paperback","",{"v":5033,"d":"5033.00"},{"$f":"HYPERLINK(\"https://www.logobook.ru/prod_show.php?object_uid=12775020\",\"Описание\")","v":"Описание"}]
["9780198357674","Fuller, Fran Fisher,","A Level Advancing Biology for OCR Year 2 Student Book (OCR B)","Oxford Education","2015","304","Paperback","",{"v":5775,"d":"5775.00"},{"$f":"HYPERLINK(\"https://www.logobook.ru/prod_show.php?object_uid=12881780\",\"Описание\")","v":"Описание"}]
["","","","","","","",""]
["#","1 Курс","Biomedical informatics","","","","",""]
["","","","","","","",""]
["9780124160194","Kalet, PhD, Ira J. (","Principles of Biomedical Informatics, 2 ed","Elsevier Science","2013","708","Hardback","2 rev ed",{"v":8772,"d":"8772.00"},{"$f":"HYPERLINK(\"https://www.logobook.ru/prod_show.php?object_uid=12391174\",\"Описание\")","v":"Описание"}]
["9781447144731","","Biomedical Informatics","Springer","2014","1037","Hardback","4th ed. 2014",{"v":12704,"d":"12704.00"},{"$f":"HYPERLINK(\"https://www.logobook.ru/prod_show.php?object_uid=12458748\",\"Описание\")","v":"Описание"}]
["","","","","","","",""]
["#","1 Курс","Physics & Biophysics","","","","",""]
["","","","","","","",""]
["9780128137161","Davidovits, Paul (Bo","Physics in Biology and Medicine, 5 ed.","Elsevier Science","2018","380","Paperback","5 ed",{"v":10158,"d":"10158.00"},{"$f":"HYPERLINK(\"https://www.logobook.ru/prod_show.php?object_uid=14209539\",\"Описание\")","v":"Описание"}]
["9783642252112","Glaser, Roland","Biophysics: An Introduction","Springer","2012","407","Hardback","2nd ed. 2012",{"v":9816,"d":"9816.00"},{"$f":"HYPERLINK(\"https://www.logobook.ru/prod_show.php?object_uid=12194745\",\"Описание\")","v":"Описание"}]
["9789401742702","V. Pattabhi; N. Gaut","Biophysics","Springer","2013","267","Soft cover","Softcover reprint of",{"v":16169,"d":"16169.00"},{"$f":"HYPERLINK(\"https://www.logobook.ru/prod_show.php?object_uid=13619653\",\"Описание\")","v":"Описание"}]
["9783319126814","Hobbie, Russell K. R","Intermediate Physics for Medicine and Biology.","Springer","2015","629","Hardback","5th ed. 2015",{"v":10394,"d":"10394.00"},{"$f":"HYPERLINK(\"https://www.logobook.ru/prod_show.php?object_uid=12775670\",\"Описание\")","v":"Описание"}]
["9780387772585","Newman, Jay","Physics of the life sciences / Newman, Jay. - Springer, 2008","Springer","2008","736","Hardback","",{"v":8094,"d":"8094.00"},{"$f":"HYPERLINK(\"https://www.logobook.ru/prod_show.php?object_uid=11475739\",\"Описание\")","v":"Описание"}]
["9781119454014","David Halliday, Robe","Principles of Physics, 11 Ed, Global Edition","Wiley","2020","1280","Paperback","11th edition, global",{"v":7699,"d":"7699.00"},{"$f":"HYPERLINK(\"https://www.logobook.ru/prod_show.php?object_uid=14913781\",\"Описание\")","v":"Описание"}]
["","","","","","","",""]
["#","1 Курс","Molecullar & Cell Biology","","","","",""]
["","","","","","","",""]
["9781319365486","Harvey Lodish","Molecular Cell Biology. 9 ed.","Macmillan Learning","2021","","Soft cover","9",{"v":10586,"d":"10586.00"},{"$f":"HYPERLINK(\"https://www.logobook.ru/prod_show.php?object_uid=15502105\",\"Описание\")","v":"Описание"}]
["9780323417402","Pollard, Thomas D. E","Cell Biology, International Edition, 3 Ed.","Elsevier Science","2017","928","Paperback","3 international ed",{"v":6929,"d":"6929.00"},{"$f":"HYPERLINK(\"https://www.logobook.ru/prod_show.php?object_uid=13088450\",\"Описание\")","v":"Описание"}]
["9780723438762","Stubbs, Mathew, MBBS","Crash Course Cell Biology and Genetics Updated,","Elsevier Science","2015","216","Paperback","4 revised edition",{"v":4272,"d":"4272.00"},{"$f":"HYPERLINK(\"https://www.logobook.ru/prod_show.php?object_uid=12653298\",\"Описание\")","v":"Описание"}]
["9781975106232","Nalini Chandar , Vis","Lippincott Illustrated Reviews: Cell and Molecular Biology, International Edition 2e","Lippincott Williams & Wil","2018","304","Paperback","Second, internationa",{"v":3850,"d":"3850.00"},{"$f":"HYPERLINK(\"https://www.logobook.ru/prod_show.php?object_uid=13840969\",\"Описание\")","v":"Описание"}]
["9780393884852","Alberts, Bruce, John","Molecular biology of the cell. 7 ed.","Wiley","2022","1552","Mixed media product","Seventh edition",{"v":14397,"d":"14397.00"},{"$f":"HYPERLINK(\"https://www.logobook.ru/prod_show.php?object_uid=15675699\",\"Описание\")","v":"Описание"}]
["9780393680393","Bruce Alberts et all","Essential Cell Biology, 5 ed","Wiley","2018","864","Paperback","Fifth international ",{"v":8388,"d":"8388.00"},{"$f":"HYPERLINK(\"https://www.logobook.ru/prod_show.php?object_uid=14755103\",\"Описание\")","v":"Описание"}]
["9780323673211","Abraham Kierszenbaum","Histology and Cell Biology: An Introduction to Pathology, 5 Ed","Elsevier Science","2019","824","Paperback","5 revised edition",{"v":7853,"d":"7853.00"},{"$f":"HYPERLINK(\"https://www.logobook.ru/prod_show.php?object_uid=14569120\",\"Описание\")","v":"Описание"}]
["","","","","","","",""]
["#","1 Курс","Chemistry, Biochemistry","","","","",""]
["","","","","","","",""]
["9781455742141","Larson Donna","Clinical Chemistry","Elsevier Science","2014","736","Paperback","",{"v":10625,"d":"10625.00"},{"$f":"HYPERLINK(\"https://www.logobook.ru/prod_show.php?object_uid=12957328\",\"Описание\")","v":"Описание"}]
["9781260575163","Smith, Janice Vollme","Organic Chemistry with biological topics, 6 IE","McGraw-Hill","2020","","Paperback","6 ed",{"v":8111,"d":"8111.00"},{"$f":"HYPERLINK(\"https://www.logobook.ru/prod_show.php?object_uid=14872087\",\"Описание\")","v":"Описание"}]
["9781265577568","Chang, Raymond Overb","Chemistry, 14    ISE","McGraw-Hill","2021","1168","Paperback","14 ed",{"v":8111,"d":"8111.00"},{"$f":"HYPERLINK(\"https://www.logobook.ru/prod_show.php?object_uid=15546907\",\"Описание\")","v":"Описание"}]
["9780241413029","DK","Periodic Table pocket","Dorling Kindersley","2020","160","Paperback","",{"v":549,"d":"549.00"},{"$f":"HYPERLINK(\"https://www.logobook.ru/prod_show.php?object_uid=14814860\",\"Описание\")","v":"Описание"}]
["9781118717271","Brady, James E. Jesp","Chemistry, 7 Ed. International Student Version","Wiley","2015","1144","Paperback","7th edition internat",{"v":7424,"d":"7424.00"},{"$f":"HYPERLINK(\"https://www.logobook.ru/prod_show.php?object_uid=13146304\",\"Описание\")","v":"Описание"}]
["9780199609499","Snape  Alison","Biochemistry and  Molecular Biology,  5 edition","Oxford Academ","2014","648","Paperback","5 rev ed",{"v":5751,"d":"5751.00"},{"$f":"HYPERLINK(\"https://www.logobook.ru/prod_show.php?object_uid=12467094\",\"Описание\")","v":"Описание"}]
["9780198768111","Papachristodoulou De","Biochemistry and Molecular Biology","Oxford University Press","2018","640","Paperback","6 revised edition",{"v":5829,"d":"5829.00"},{"$f":"HYPERLINK(\"https://www.logobook.ru/prod_show.php?object_uid=14038712\",\"Описание\")","v":"Описание"}]
["9780128117415","Crichton, Robert","Biological Inorganic Chemistry","Elsevier Science","2018","475","Paperback","3 ed",{"v":13283,"d":"13283.00"},{"$f":"HYPERLINK(\"https://www.logobook.ru/prod_show.php?object_uid=13645331\",\"Описание\")","v":"Описание"}]
["9781119248972","T. W. Graham Solomon","Solomon's Organic Chemistry","Wiley","2017","1208","Paperback","12th edition global ",{"v":7699,"d":"7699.00"},{"$f":"HYPERLINK(\"https://www.logobook.ru/prod_show.php?object_uid=13606598\",\"Описание\")","v":"Описание"}]
["","","","","","","",""]
["#","1 Курс","Histology & Embryology","","","","",""]
["","","","","","","",""]
["9781260462982","Mescher Anthony","Junqueira's Basic Histology: Text and Atlas, 16 ed.","McGraw-Hill","2021","576","Paperback           ","16 ed",{"v":8799,"d":"8799.00"},{"$f":"HYPERLINK(\"https://www.logobook.ru/prod_show.php?object_uid=15480426\",\"Описание\")","v":"Описание"}]
["9780323612791","James Lowe, Peter An","Stevens & Lowe's Human Histology 5th Edition","Elsevier Science","2019","440","Paperback","5 revised edition",{"v":7160,"d":"7160.00"},{"$f":"HYPERLINK(\"https://www.logobook.ru/prod_show.php?object_uid=14360368\",\"Описание\")","v":"Описание"}]
["9780702047473","Barbara Young","Wheater's Functional Histology, (With STUDENT CONSULT Online Access)","Elsevier Science","2013","448","Mixed media product","6 revised edition",{"v":7622,"d":"7622.00"},{"$f":"HYPERLINK(\"https://www.logobook.ru/prod_show.php?object_uid=12372059\",\"Описание\")","v":"Описание"}]
["9781496396358","Gartner, Leslie P., ","BRS cell biology and histology. 8 ed","Lippincott Williams & Wil","2018","448","Paperback","8 ed",{"v":5569,"d":"5569.00"},{"$f":"HYPERLINK(\"https://www.logobook.ru/prod_show.php?object_uid=14274038\",\"Описание\")","v":"Описание"}]
["9781496310231","Victor P. Eroschenko","Atlas of Histology with Functional Correlations. 13 ed.","Lippincott Williams & Wil","2017","617","Paperback","Thirteenth, internat",{"v":5500,"d":"5500.00"},{"$f":"HYPERLINK(\"https://www.logobook.ru/prod_show.php?object_uid=13373921\",\"Описание\")","v":"Описание"}]
["9781975115364","Pawlina  Wojciech, R","Histology: Text and Atlas: With Correlated Cell and Molecular Biology, 8-ed.","Lippincott Williams & Wil","2020","928","Paperback","Eighth, internationa",{"v":7425,"d":"7425.00"},{"$f":"HYPERLINK(\"https://www.logobook.ru/prod_show.php?object_uid=14333896\",\"Описание\")","v":"Описание"}]
["9780323672726","Leslie P. Gartner","Textbook of Histology, 5 edition","Elsevier Science","2020","704","Paperback","5 revised edition",{"v":8084,"d":"8084.00"},{"$f":"HYPERLINK(\"https://www.logobook.ru/prod_show.php?object_uid=14844407\",\"Описание\")","v":"Описание"}]
["9780323672733","Gartner, Leslie P.","Textbook Of Histology, 5 ed. IE","Elsevier Science","2020","704","Paperback","5",{"v":5196,"d":"5196.00"},{"$f":"HYPERLINK(\"https://www.logobook.ru/prod_show.php?object_uid=14968322\",\"Описание\")","v":"Описание"}]
["9780323694643","Ovalle & Nahirney","Netter's Essential Histology, 3 ed.","Elsevier Science","2020","568","Paperback","3 revised edition",{"v":8084,"d":"8084.00"},{"$f":"HYPERLINK(\"https://www.logobook.ru/prod_show.php?object_uid=14864635\",\"Описание\")","v":"Описание"}]
["9781626234130","Lowrie  Lowrie","Histology - An Essential Textbook","Thieme Verlagsgruppe","2020","428","Paperback","1",{"v":7506,"d":"7506.00"},{"$f":"HYPERLINK(\"https://www.logobook.ru/prod_show.php?object_uid=14849887\",\"Описание\")","v":"Описание"}]
["9781451176100","Dudek, Ronald","High-Yield Embryology","Lippincott Williams & Wil","2013","176","Paperback","5 ed",{"v":4194,"d":"4194.00"},{"$f":"HYPERLINK(\"https://www.logobook.ru/prod_show.php?object_uid=12300914\",\"Описание\")","v":"Описание"}]
["9780323696043","Gary C. Schoenwolf, ","Larsen's Human Embryology, 6e","Elsevier Science","2021","560","Paperback","6th ed.",{"v":8315,"d":"8315.00"},{"$f":"HYPERLINK(\"https://www.logobook.ru/prod_show.php?object_uid=15288995\",\"Описание\")","v":"Описание"}]
["9780323523752","Carlson Bruce M.","Human Embryology and Developmental Biology, 6 Ed.","Elsevier Science","2019","564","Paperback           ","6 revised edition",{"v":7391,"d":"7391.00"},{"$f":"HYPERLINK(\"https://www.logobook.ru/prod_show.php?object_uid=14174072\",\"Описание\")","v":"Описание"}]
["9780323611541","Keith L. Moore; T. V","The Developing Human, 11th Edition","Elsevier Science","2019","522","Paperback","11 revised edition",{"v":7391,"d":"7391.00"},{"$f":"HYPERLINK(\"https://www.logobook.ru/prod_show.php?object_uid=14360370\",\"Описание\")","v":"Описание"}]
["9780323611558","Keith L. Moore; T. V","The Developing Human 11 IE","Elsevier Science","2019","544","Paperback","",{"v":4734,"d":"4734.00"},{"$f":"HYPERLINK(\"https://www.logobook.ru/prod_show.php?object_uid=14209579\",\"Описание\")","v":"Описание"}]
["9780323608497","Moore, Keith","Before We Are Born. 10 ed","Elsevier Science","2020","350","Paperback","10 revised edition",{"v":6582,"d":"6582.00"},{"$f":"HYPERLINK(\"https://www.logobook.ru/prod_show.php?object_uid=14569068\",\"Описание\")","v":"Описание"}]
["9781975114848","Sadler, Dr. T.W., Ph","Langman's Medical Embryology, 14e. 2019.СОЕДИНЕННОЕ КОРОЛЕВСТВО","Lippincott Williams & Wil","2019","456","Paperback","Fourteenth, internat",{"v":4125,"d":"4125.00"},{"$f":"HYPERLINK(\"https://www.logobook.ru/prod_show.php?object_uid=14223008\",\"Описание\")","v":"Описание"}]
["","","","","","","",""]
["#","1 Курс","History of Medicine","","","","",""]
["","","","","","","",""]
["9781498796224","Magner, Lois N.","A History of Medicine, 3 ed","Taylor&Francis","2017","459","Mixed media product","3 revised edition",{"v":3988,"d":"3988.00"},{"$f":"HYPERLINK(\"https://www.logobook.ru/prod_show.php?object_uid=13348948\",\"Описание\")","v":"Описание"}]
["9780521682893","","The Cambridge History of Medicine","Cambridge Academ","2006","414","Paperback","",{"v":3148,"d":"3148.00"},{"$f":"HYPERLINK(\"https://www.logobook.ru/prod_show.php?object_uid=11250065\",\"Описание\")","v":"Описание"}]
["9780199668397","","The Oxford Handbook of the History of Medicine,","Oxford Academ","2013","690","Paperback","",{"v":4382,"d":"4382.00"},{"$f":"HYPERLINK(\"https://www.logobook.ru/prod_show.php?object_uid=12298730\",\"Описание\")","v":"Описание"}]
["9780465093441","Fox Robin Lane","The Invention of Medicine: From Homer to Hippocrates","Little, Brown","2020","448","Hardcover           ","",{"v":5506,"d":"5506.00"},{"$f":"HYPERLINK(\"https://www.logobook.ru/prod_show.php?object_uid=15096846\",\"Описание\")","v":"Описание"}]
["9781465484642","Parker Steve","A Short History of Medicine","Random House (USA)","2019","400","Paperback           ","",{"v":1385,"d":"1385.00"},{"$f":"HYPERLINK(\"https://www.logobook.ru/prod_show.php?object_uid=14397242\",\"Описание\")","v":"Описание"}]
["","","","","","","",""]
["#","1 Курс","History of Russia","","","","",""]
["","","","","","","",""]
["9780199947898","Engel, Barbara Alper","Russia in World History","Oxford Academ","2015","176","Paperback           ","",{"v":2943,"d":"2943.00"},{"$f":"HYPERLINK(\"https://www.logobook.ru/prod_show.php?object_uid=12834454\",\"Описание\")","v":"Описание"}]
["","","","","","","",""]
["#","1 Курс","Biostatistics","","","","",""]
["","","","","","","",""]
["9780198743583","Peacock, Janet L.","Oxford handbook of medical statistics 2e","Oxford Academ","2020","640","Paperback","2 revised edition",{"v":4518,"d":"4518.00"},{"$f":"HYPERLINK(\"https://www.logobook.ru/prod_show.php?object_uid=15038085\",\"Описание\")","v":"Описание"}]
["9781119167815","","Medical Statistics at a Glance, 4rd Edition / Aviva Petrie, Caroline Sabin. - Wiley-Blackwell, 2019.","Wiley","2019","208","Paperback","4th edition",{"v":4393,"d":"4393.00"},{"$f":"HYPERLINK(\"https://www.logobook.ru/prod_show.php?object_uid=14465296\",\"Описание\")","v":"Описание"}]
["","","","","","","",""]
["#","1 Курс","Latin","","","","",""]
["","","","","","","",""]
["9780198610052","Morwood","Pocket Oxford Latin Dictionary 3/e","Oxford University Press","2005","491","Paperback","3 revised edition",{"v":1429,"d":"1429.00"},{"$f":"HYPERLINK(\"https://www.logobook.ru/prod_show.php?object_uid=11211031\",\"Описание\")","v":"Описание"}]
["9780198601999","Morwood The late Jam","Latin Grammar","Oxford University Press","1999","210","Paperback","",{"v":989,"d":"989.00"},{"$f":"HYPERLINK(\"https://www.logobook.ru/prod_show.php?object_uid=11211033\",\"Описание\")","v":"Описание"}]
["","","","","","","",""]
["#","1 Курс","Nursing","","","","",""]
["","","","","","","",""]
["9780702072789","Taylor, Jayne","Bailliere's Nurses' Dictionary, International Edition","Elsevier Science","2019","624","Paperback","",{"v":923,"d":"923.00"},{"$f":"HYPERLINK(\"https://www.logobook.ru/prod_show.php?object_uid=14209584\",\"Описание\")","v":"Описание"}]
["9780702072772","Waugh, Anne","Ross & Wilson Anatomy and Physiology in Health and Illness International Edition","Elsevier Science","2018","584","Paperback","",{"v":2309,"d":"2309.00"},{"$f":"HYPERLINK(\"https://www.logobook.ru/prod_show.php?object_uid=14209587\",\"Описание\")","v":"Описание"}]
["9780323749619","Potter, Patricia A.","Fundamentals of Nursing, 10th Edition","Elsevier Science","2020","","Hardback","10 revised edition",{"v":14436,"d":"14436.00"},{"$f":"HYPERLINK(\"https://www.logobook.ru/prod_show.php?object_uid=14968286\",\"Описание\")","v":"Описание"}]
["9780323551557","Hagler, Debra et al","Clinical Companion to Lewis's Medical-Surgical Nursing, 11th Edition","Elsevier Science","2019","0","Paperback","11 revised edition",{"v":5658,"d":"5658.00"},{"$f":"HYPERLINK(\"https://www.logobook.ru/prod_show.php?object_uid=14743850\",\"Описание\")","v":"Описание"}]
["9781469815299","","Lippincott Nursing Procedures. 8 ed","Lippincott Williams & Wil","2018","864","Paperback           ","8 ed",{"v":8525,"d":"8525.00"},{"$f":"HYPERLINK(\"https://www.logobook.ru/prod_show.php?object_uid=14124787\",\"Описание\")","v":"Описание"}]
["9789352701827","Kochuthresiamma Thom","Medical-Surgical Nursing: Two Volume Set","JayPee Brothers India","2017","884","Paperback","1",{"v":12093,"d":"12093.00"},{"$f":"HYPERLINK(\"https://www.logobook.ru/prod_show.php?object_uid=14503238\",\"Описание\")","v":"Описание"}]
["","","","","","","",""]
["#","1 Курс","Philosophy","","","","",""]
["","","","","","","",""]
["9781119103219","Peter S. Fosl, Julia","The Philosopher's Toolkit","Wiley","2020","376","Paperback","3rd edition",{"v":2193,"d":"2193.00"},{"$f":"HYPERLINK(\"https://www.logobook.ru/prod_show.php?object_uid=14913845\",\"Описание\")","v":"Описание"}]
["9780444517876","Dov M. Gabbay","Philosophy of Medicine,16","Elsevier Science","2011","600","Hardback","1",{"v":19058,"d":"19058.00"},{"$f":"HYPERLINK(\"https://www.logobook.ru/prod_show.php?object_uid=12012772\",\"Описание\")","v":"Описание"}]
["9781789502114","Rooney  Anne","Philosophy","Неизвестно","2020","256","Paperback","",{"v":1000,"d":"1000.00"},{"$f":"HYPERLINK(\"https://www.logobook.ru/prod_show.php?object_uid=15022449\",\"Описание\")","v":"Описание"}]
["9780190612146","Broadbent, Alex","Philosophy of medicine","Oxford Academ","2019","296","Paperback","",{"v":3559,"d":"3559.00"},{"$f":"HYPERLINK(\"https://www.logobook.ru/prod_show.php?object_uid=14439844\",\"Описание\")","v":"Описание"}]
["9780190670610","","The Great Conversation: A Historical introduction to Philosophy/ Melchert Norman, Morrow David R. Ox","Oxford Academ","2018","784","Hardcover           ","8",{"v":26398,"d":"26398.00"},{"$f":"HYPERLINK(\"https://www.logobook.ru/prod_show.php?object_uid=14099310\",\"Описание\")","v":"Описание"}]
["9781119452799","Kenny, Anthony","An Illustrated Brief History of Western Philosophy, 3rd ed.","Wiley","2018","464","Paperback","1",{"v":3706,"d":"3706.00"},{"$f":"HYPERLINK(\"https://www.logobook.ru/prod_show.php?object_uid=14120959\",\"Описание\")","v":"Описание"}]
["","","","","","","",""]
["#","1 Курс","Physiology","","","","",""]
["","","","","","","",""]
["9780323597128","Hall, John E.","Guyton And Hall Textbook Of Medical Physiology, 14 ed.","Elsevier Science","2020","1152","Hardcover           ","14 revised edition",{"v":12588,"d":"12588.00"},{"$f":"HYPERLINK(\"https://www.logobook.ru/prod_show.php?object_uid=14967878\",\"Описание\")","v":"Описание"}]
["9780323393942","Koeppen &  Stanton","Berne & Levy Physiology, 7th Edition","Elsevier Science","2017","880","Hardcover           ","7 revised edition",{"v":10971,"d":"10971.00"},{"$f":"HYPERLINK(\"https://www.logobook.ru/prod_show.php?object_uid=13489427\",\"Описание\")","v":"Описание"}]
["9780323443388","Koeppen MD PhD, Bruc","Berne and Levy Physiology, International Edition, 7th Edition","Elsevier Science","2017","0","Paperback","7 international ed",{"v":6120,"d":"6120.00"},{"$f":"HYPERLINK(\"https://www.logobook.ru/prod_show.php?object_uid=13477493\",\"Описание\")","v":"Описание"}]
["9780323793339","Costanzo","Costanzo Physiology, 7 Ed","Elsevier Science","2021","550","Paperback","7th edition",{"v":5889,"d":"5889.00"},{"$f":"HYPERLINK(\"https://www.logobook.ru/prod_show.php?object_uid=15488904\",\"Описание\")","v":"Описание"}]
["9781455743773","Boron, Walter F.","Medical Physiology. 3 ed","Elsevier Science","2016","1312","Hardback","3 revised edition",{"v":11549,"d":"11549.00"},{"$f":"HYPERLINK(\"https://www.logobook.ru/prod_show.php?object_uid=12462529\",\"Описание\")","v":"Описание"}]
["9780323427968","Boron W. , Boulpaep ","Medical Physiology 3E IE","Elsevier Science","2016","1312","Paperback","3 international ed",{"v":11107,"d":"11107.00"},{"$f":"HYPERLINK(\"https://www.logobook.ru/prod_show.php?object_uid=12925649\",\"Описание\")","v":"Описание"}]
["9781975106690","Costanzo, Linda S., ","BRS Physiology, 7 ed International Edition","Lippincott Williams & Wil","2018","304","Paperback","Seventh, internation",{"v":3781,"d":"3781.00"},{"$f":"HYPERLINK(\"https://www.logobook.ru/prod_show.php?object_uid=13968321\",\"Описание\")","v":"Описание"}]
["9783135450070","Silbernagl Stefan, D","Color atlas of phisiology. 7 ed.","Thieme Verlagsgruppe","2015","472","Paperback","7th edition",{"v":5196,"d":"5196.00"},{"$f":"HYPERLINK(\"https://www.logobook.ru/prod_show.php?object_uid=12769766\",\"Описание\")","v":"Описание"}]
["9781260566666","Barrett","Ganongs review medical physiology 26e IE","McGraw-Hill","2019","","Paperback","",{"v":3161,"d":"3161.00"},{"$f":"HYPERLINK(\"https://www.logobook.ru/prod_show.php?object_uid=14801993\",\"Описание\")","v":"Описание"}]
["9789389188011","GK Pal","Comprehensive Textbook of Medical Physiology: Two Volume Set","JayPee Brothers India","2019","1500","Paperback","Vol. 2 volumes",{"v":12643,"d":"12643.00"},{"$f":"HYPERLINK(\"https://www.logobook.ru/prod_show.php?object_uid=14910121\",\"Описание\")","v":"Описание"}]
["9789352705320","VP Varshney, Mona Be","Ghai's Textbook of Practical Physiology","JayPee Brothers India","2018","376","Paperback","9 revised edition",{"v":5500,"d":"5500.00"},{"$f":"HYPERLINK(\"https://www.logobook.ru/prod_show.php?object_uid=14492696\",\"Описание\")","v":"Описание"}]
["9789352706921","Sembulingam, K","Essentials of Medical Physiology","JayPee Brothers India","2019","1186","Paperback","8 revised edition",{"v":12375,"d":"12375.00"},{"$f":"HYPERLINK(\"https://www.logobook.ru/prod_show.php?object_uid=14766362\",\"Описание\")","v":"Описание"}]
["9789390595747","N Geetha","Human Physiology for Medical Students","JayPee Brothers India","2021","1044","Paperback","1",{"v":9481,"d":"9481.00"},{"$f":"HYPERLINK(\"https://www.logobook.ru/prod_show.php?object_uid=15351470\",\"Описание\")","v":"Описание"}]
["9788194802853","Manjinder Kaur, Nare","Comprehensive Workbook for Practical Physiology","JayPee Brothers India","2021","366","Paperback","3",{"v":5081,"d":"5081.00"},{"$f":"HYPERLINK(\"https://www.logobook.ru/prod_show.php?object_uid=15354000\",\"Описание\")","v":"Описание"}]
["9789354655432","Manna Soumen","Review Of Physiology","JayPee Brothers India","2022","","","6/E",{"v":5500,"d":"5500.00"},{"$f":"HYPERLINK(\"https://www.logobook.ru/prod_show.php?object_uid=15655703\",\"Описание\")","v":"Описание"}]
["","","","","","","",""]
["#","1 Курс","Medical  English","","","","",""]
["","","","","","","",""]
["9780323378437","Chabner, Davi-Ellen","Medical Language Instant Translator","Elsevier Science","2016","334","Paperback","6 revised edition",{"v":3348,"d":"3348.00"},{"$f":"HYPERLINK(\"https://www.logobook.ru/prod_show.php?object_uid=13142008\",\"Описание\")","v":"Описание"}]
["9780323533195","LaFleur Brooks, Dani","Basic Medical Language with Flash Cards, 6 ed.","Elsevier Science","2018","448","Hardback","6 revised edition",{"v":6582,"d":"6582.00"},{"$f":"HYPERLINK(\"https://www.logobook.ru/prod_show.php?object_uid=14223603\",\"Описание\")","v":"Описание"}]
["9780323396455","Lafleur Brooks, Myrn","Exploring medical language","Elsevier Science","2017","800","Paperback","10 revised edition",{"v":9585,"d":"9585.00"},{"$f":"HYPERLINK(\"https://www.logobook.ru/prod_show.php?object_uid=13591035\",\"Описание\")","v":"Описание"}]
["9780443073991","Parkinson & Brooker","Everyday English for International Nurses","Elsevier Science","2004","256","Paperback","Collectors ed/ /eng-",{"v":4085,"d":"4085.00"},{"$f":"HYPERLINK(\"https://www.logobook.ru/prod_show.php?object_uid=11040721\",\"Описание\")","v":"Описание"}]
["9780444521187","Petey Young","Writing and Presenting in English,","Elsevier Science","2006","124","Paperback","1",{"v":2882,"d":"2882.00"},{"$f":"HYPERLINK(\"https://www.logobook.ru/prod_show.php?object_uid=11090178\",\"Описание\")","v":"Описание"}]
["9780323427944","Leonard, Peggy C.","Building a Medical Vocabulary","Elsevier Science","2017","720","Paperback","10 revised edition",{"v":8430,"d":"8430.00"},{"$f":"HYPERLINK(\"https://www.logobook.ru/prod_show.php?object_uid=13645944\",\"Описание\")","v":"Описание"}]
["9780702075506","Fareh, Shehdeh","English for Medicine & Health Sciences","Elsevier Science","2017","326","paperback","",{"v":1936,"d":"1936.00"},{"$f":"HYPERLINK(\"https://www.logobook.ru/prod_show.php?object_uid=14432061\",\"Описание\")","v":"Описание"}]
["9780323551472","Chabner Davi-Ellen","The Language of Medicine, 12th Edition","Elsevier Science","2020","1064","Paperback","12 revised edition",{"v":10394,"d":"10394.00"},{"$f":"HYPERLINK(\"https://www.logobook.ru/prod_show.php?object_uid=14844404\",\"Описание\")","v":"Описание"}]
["","","","","","","",""]
["#","2 Курс","Anatomy/Gross Anatomy\r\n","","","","",""]
["","","","","","","",""]
["9780323224963","Richard Drake","Gray's Anatomy for Students and Paulsen: Sobotta, Atlas of Anatomy 15e Package,","Elsevier Science","2014","0","Promotion pack","3 rev ed",{"v":6930,"d":"6930.00"},{"$f":"HYPERLINK(\"https://www.logobook.ru/prod_show.php?object_uid=12652014\",\"Описание\")","v":"Описание"}]
["9780702067600","Jens Waschke, Tobias","Sobotta Anatomy Textbook: English Edition with Latin Nomenclature","Elsevier Science","2018","840","Hardback","",{"v":8636,"d":"8636.00"},{"$f":"HYPERLINK(\"https://www.logobook.ru/prod_show.php?object_uid=14394058\",\"Описание\")","v":"Описание"}]
["9780702077067","Standring, Susan","Gray'S Anatomy. 42 ed. International Edition","Elsevier Science","2020","1584","Hardback","42",{"v":9470,"d":"9470.00"},{"$f":"HYPERLINK(\"https://www.logobook.ru/prod_show.php?object_uid=14967331\",\"Описание\")","v":"Описание"}]
["9780702051326","Richard  Drake","Gray`s  Anatomy for  Students.  International  3 Edition","Elsevier Science","2014","1192","Paperback","3 international ed",{"v":2199,"d":"2199.00"},{"$f":"HYPERLINK(\"https://www.logobook.ru/prod_show.php?object_uid=12520130\",\"Описание\")","v":"Описание"}]
["9780323393041","Richard Drake,  A. W","Gray's Anatomy for Students, 4th Edition","Elsevier Science","2019","1180","Paperback","4 revised edition",{"v":7506,"d":"7506.00"},{"$f":"HYPERLINK(\"https://www.logobook.ru/prod_show.php?object_uid=14360369\",\"Описание\")","v":"Описание"}]
["9780323596770","Netter Frank H.","Atlas of Human Anatomy: Latin Terminology, 7th Edition  English and Latin Edition","Elsevier Science","2018","656","Paperback           ","7 revised edition",{"v":8892,"d":"8892.00"},{"$f":"HYPERLINK(\"https://www.logobook.ru/prod_show.php?object_uid=14173638\",\"Описание\")","v":"Описание"}]
["9780323680424","Netter Frank","Netter Atlas of Human Anatomy: Classic Regional Approach, 8 Ed.  paperback + eBook","Elsevier Science","2022","712","Paperback","8 ed",{"v":8661,"d":"8661.00"},{"$f":"HYPERLINK(\"https://www.logobook.ru/prod_show.php?object_uid=15613564\",\"Описание\")","v":"Описание"}]
["9780323760287","Netter Frank","Netter Atlas of Human Anatomy: A Systems Approach, paperback + eBook, 8 Ed.","Elsevier Science","2022","712","Paperback","8 ed",{"v":8661,"d":"8661.00"},{"$f":"HYPERLINK(\"https://www.logobook.ru/prod_show.php?object_uid=15615836\",\"Описание\")","v":"Описание"}]
["9780323393225","Netter Frank H.","Atlas of Human Anatomy 7 еd.","Elsevier Science","2018","648","Paperback","7 revised edition",{"v":8084,"d":"8084.00"},{"$f":"HYPERLINK(\"https://www.logobook.ru/prod_show.php?object_uid=13646175\",\"Описание\")","v":"Описание"}]
["9780323393218","Netter Frank H.","Netter Atlas of human Anatomy - 7 IE","Elsevier Science","2019","672","Paperback","7 revised edition",{"v":3233,"d":"3233.00"},{"$f":"HYPERLINK(\"https://www.logobook.ru/prod_show.php?object_uid=14036922\",\"Описание\")","v":"Описание"}]
["9780323694971","Lyons, Virginia T.","Netter'S Essential Systems-Based Anatomy","Elsevier Science","2021","416","Paperback","1",{"v":5196,"d":"5196.00"},{"$f":"HYPERLINK(\"https://www.logobook.ru/prod_show.php?object_uid=15468765\",\"Описание\")","v":"Описание"}]
["9780323696616","Ward, Peter J","Netter'S Integrated Musculoskeletal System","Elsevier Science","2021","440","Paperback","",{"v":6351,"d":"6351.00"},{"$f":"HYPERLINK(\"https://www.logobook.ru/prod_show.php?object_uid=15568432\",\"Описание\")","v":"Описание"}]
["9780702073335","Abrahams P. et al","Abrahams' and McMinn's Clinical Atlas of Human Anatomy, 8 IE","Elsevier Science","2019","400","Paperback","",{"v":3810,"d":"3810.00"},{"$f":"HYPERLINK(\"https://www.logobook.ru/prod_show.php?object_uid=14209567\",\"Описание\")","v":"Описание"}]
["9783135335070","Werner Kahle","Color Atlas of Human Anatomy, Vol. 3: Nervous System and Sensory Organs","Thieme Verlagsgruppe","2015","428","Paperback","7th edition",{"v":5774,"d":"5774.00"},{"$f":"HYPERLINK(\"https://www.logobook.ru/prod_show.php?object_uid=12756030\",\"Описание\")","v":"Описание"}]
["9783135333076","Werner Platzer","Color Atlas of Human Anatomy: Vol 1. Locomotor System","Thieme Verlagsgruppe","2014","480","Paperback","7",{"v":5774,"d":"5774.00"},{"$f":"HYPERLINK(\"https://www.logobook.ru/prod_show.php?object_uid=12613994\",\"Описание\")","v":"Описание"}]
["9783135334066","Matthias Leonhardt","Color Atlas of Human Anatomy: Vol. 2: Internal Organs","Thieme Verlagsgruppe","2014","484","Paperback","6th edition",{"v":5774,"d":"5774.00"},{"$f":"HYPERLINK(\"https://www.logobook.ru/prod_show.php?object_uid=12613981\",\"Описание\")","v":"Описание"}]
["9781626231177","Gilroy, Anne M.","Anatomy. An essential textbook. Latin Nomenclature","Thieme Verlagsgruppe","2015","532","Paperback","1",{"v":5774,"d":"5774.00"},{"$f":"HYPERLINK(\"https://www.logobook.ru/prod_show.php?object_uid=12867981\",\"Описание\")","v":"Описание"}]
["9781626234390","Gilroy Anne M.","Anatomy - An Essential Textbook, 2 ed.","Thieme Verlagsgruppe","2018","528","Paperback","2",{"v":5196,"d":"5196.00"},{"$f":"HYPERLINK(\"https://www.logobook.ru/prod_show.php?object_uid=13487882\",\"Описание\")","v":"Описание"}]
["9781684204519","Gilroy, Anne M Macph","Atlas of anatomy, latin nomenclature. 4 ed","Thieme Verlagsgruppe","2022","772","Hardback","4 new edition",{"v":10394,"d":"10394.00"},{"$f":"HYPERLINK(\"https://www.logobook.ru/prod_show.php?object_uid=15545271\",\"Описание\")","v":"Описание"}]
["9781684200849","Schuenke Michael, Sc","General Anatomy and Musculoskeletal System (Thieme Atlas of Anatomy), Latin Nomenclature","Thieme Verlagsgruppe","2021","632","Hardback","3 new edition",{"v":9239,"d":"9239.00"},{"$f":"HYPERLINK(\"https://www.logobook.ru/prod_show.php?object_uid=15188016\",\"Описание\")","v":"Описание"}]
["9781684200863","Schuenke Michael, Sc","Head, Neck, and Neuroanatomy (Thieme Atlas of Anatomy), Latin Nomenclature","Thieme Verlagsgruppe","2021","592","Hardback","3 new edition",{"v":9239,"d":"9239.00"},{"$f":"HYPERLINK(\"https://www.logobook.ru/prod_show.php?object_uid=15179453\",\"Описание\")","v":"Описание"}]
["9781626237209","Michael Schuenke, Er","Internal Organs (THIEME Atlas of Anatomy)","Thieme Verlagsgruppe","2020","490","Paperback","3",{"v":8084,"d":"8084.00"},{"$f":"HYPERLINK(\"https://www.logobook.ru/prod_show.php?object_uid=14854743\",\"Описание\")","v":"Описание"}]
["9781260469417","Waxman Stephen G.","Clinical Neuroanatomy, 29 Ed. IE","McGraw-Hill","2020","","","",{"v":5224,"d":"5224.00"},{"$f":"HYPERLINK(\"https://www.logobook.ru/prod_show.php?object_uid=15307103\",\"Описание\")","v":"Описание"}]
["9781975151560","Chihiro Yokochi, Elk","Photographic Atlas of Anatomy, 9E International Edition","Lippincott Williams & Wil","2021","752","Paperback","Ninth, international",{"v":9075,"d":"9075.00"},{"$f":"HYPERLINK(\"https://www.logobook.ru/prod_show.php?object_uid=15357316\",\"Описание\")","v":"Описание"}]
["9781975138783","Anne M. R. Agur, Art","Grant's Atlas of Anatomy, 15 ed.","Lippincott Williams & Wil","2020","896","Paperback","Fifteenth, internati",{"v":7013,"d":"7013.00"},{"$f":"HYPERLINK(\"https://www.logobook.ru/prod_show.php?object_uid=14856322\",\"Описание\")","v":"Описание"}]
["9781975120146","HALLIDAY","BRS gross anatomy","Lippincott Williams & Wil","2019","544","Paperback","Ninth, international",{"v":5019,"d":"5019.00"},{"$f":"HYPERLINK(\"https://www.logobook.ru/prod_show.php?object_uid=14369678\",\"Описание\")","v":"Описание"}]
["9781496388421","Kelly M. Harrell, Ro","Lippincott Illustrated Reviews: Anatomy, 1e","Lippincott Williams & Wil","2018","512","Paperback","First, international",{"v":4881,"d":"4881.00"},{"$f":"HYPERLINK(\"https://www.logobook.ru/prod_show.php?object_uid=14174069\",\"Описание\")","v":"Описание"}]
["","","","","","","",""]
["#","2 Курс","Behavioral Science","","","","",""]
["","","","","","","",""]
["9781975173128","Marcia Verduin, Pedr","Kaplan & Sadock's Synopsis of Psychiatry. 12 ed.","Lippincott Williams & Wil","2021","1200","Paperback","International editio",{"v":10725,"d":"10725.00"},{"$f":"HYPERLINK(\"https://www.logobook.ru/prod_show.php?object_uid=15357284\",\"Описание\")","v":"Описание"}]
["9781975188870","Fadem B.","BRS Behavioral Science 8 ed revised. IE","Lippincott Williams & Wil","2021","384","Paperback","Eighth, internationa",{"v":4949,"d":"4949.00"},{"$f":"HYPERLINK(\"https://www.logobook.ru/prod_show.php?object_uid=15560402\",\"Описание\")","v":"Описание"}]
["","","","","","","",""]
["#","2 Курс","Biochemistry","","","","",""]
["","","","","","","",""]
["9780702072994","Baynes, John W, PhD ","Medical Biochemistry. 5 Ed.","Elsevier Science","2019","702","Paperback","5 revised edition",{"v":8199,"d":"8199.00"},{"$f":"HYPERLINK(\"https://www.logobook.ru/prod_show.php?object_uid=13646044\",\"Описание\")","v":"Описание"}]
["9780723438823","Marshall","Clinical Chemistry, 8E Ie","Elsevier Science","2016","424","Paperback","8 international ed",{"v":3695,"d":"3695.00"},{"$f":"HYPERLINK(\"https://www.logobook.ru/prod_show.php?object_uid=12925654\",\"Описание\")","v":"Описание"}]
["9781496399236","Lieberman, Michael A","BRS biochemistry, molecular biology, and genetics. 7 ed","Lippincott Williams & Wil","2019","448","Paperback","7 ed",{"v":7296,"d":"7296.00"},{"$f":"HYPERLINK(\"https://www.logobook.ru/prod_show.php?object_uid=14457495\",\"Описание\")","v":"Описание"}]
["9781975174712","Alisa Peet, Michael ","Marks` basic medical biochemistry,  6 ed.","Lippincott Williams & Wil","2022","1100","Paperback","Sixth, international",{"v":7563,"d":"7563.00"},{"$f":"HYPERLINK(\"https://www.logobook.ru/prod_show.php?object_uid=15612324\",\"Описание\")","v":"Описание"}]
["9781975155117","Emine E. Abali et al","Lippincott Illustrated Reviews: Biochemistry 8E (Int Ed)","Lippincott Williams & Wil","2021","649","Paperback","Eighth, internationa",{"v":5294,"d":"5294.00"},{"$f":"HYPERLINK(\"https://www.logobook.ru/prod_show.php?object_uid=15153423\",\"Описание\")","v":"Описание"}]
["9783030487393","Da Poian, Andrea T.,","Integrative Human Biochemistry","Springer","2021","696","Hardcover","2nd ed.",{"v":9816,"d":"9816.00"},{"$f":"HYPERLINK(\"https://www.logobook.ru/prod_show.php?object_uid=15314708\",\"Описание\")","v":"Описание"}]
["9781260288421","Victor Rodwell et al","Harpers illustrated biochemistry 31e IE","McGraw-Hill","2018","789","Paperback","31 ed",{"v":7424,"d":"7424.00"},{"$f":"HYPERLINK(\"https://www.logobook.ru/prod_show.php?object_uid=14097536\",\"Описание\")","v":"Описание"}]
["9781319114657","Jeremy M. Berg","Biochemistry  9th ed","Macmillan Learning","2019","1208","Hardback","9th ed. 2019",{"v":9624,"d":"9624.00"},{"$f":"HYPERLINK(\"https://www.logobook.ru/prod_show.php?object_uid=14557972\",\"Описание\")","v":"Описание"}]
["9781319381493","Nelson David L.","Lehninger Principles of Biochemistry: International Edition  (8th Edition)","Bloomsbury Academic","2021","1091","","",{"v":9486,"d":"9486.00"},{"$f":"HYPERLINK(\"https://www.logobook.ru/prod_show.php?object_uid=15474004\",\"Описание\")","v":"Описание"}]
["9783131003737","Jan Koolman","Color Atlas of Biochemistry","Thieme Verlagsgruppe","2012","506","Paperback","3",{"v":5196,"d":"5196.00"},{"$f":"HYPERLINK(\"https://www.logobook.ru/prod_show.php?object_uid=12233005\",\"Описание\")","v":"Описание"}]
["9781626235359","Zeynep Gromley, Adam","Biochemistry, Cell and Molecular Biology, and Genetics: An Integrated Textbook","Thieme Verlagsgruppe","2020","502","Paperback","1",{"v":9816,"d":"9816.00"},{"$f":"HYPERLINK(\"https://www.logobook.ru/prod_show.php?object_uid=15074189\",\"Описание\")","v":"Описание"}]
["9781626237445","Sankhavaram R. Panin","Medical Biochemistry - An Essential Textbook","Thieme Verlagsgruppe","2021","474","Paperback","2 new edition",{"v":9816,"d":"9816.00"},{"$f":"HYPERLINK(\"https://www.logobook.ru/prod_show.php?object_uid=15362001\",\"Описание\")","v":"Описание"}]
["9780198749691","Patrick, Graham","An Introduction to Medicinal Chemistry 6/e (Paperback)","Oxford Academ","2017","912","Paperback ","6 rev ed",{"v":6846,"d":"6846.00"},{"$f":"HYPERLINK(\"https://www.logobook.ru/prod_show.php?object_uid=13349558\",\"Описание\")","v":"Описание"}]
["9789389188684","Nayak B Shivananda","Essentials Of Biochemistry (For Medical Students) As Per The Revised Nmc Curriculum","JayPee Brothers India","2022","598","Paperback","4 revised edition",{"v":6188,"d":"6188.00"},{"$f":"HYPERLINK(\"https://www.logobook.ru/prod_show.php?object_uid=15655642\",\"Описание\")","v":"Описание"}]
["9789354656606","Sahi Nita","Practical Biochemistry With Clinical Correlation According To New Competency-Based Curriculum","JayPee Brothers India","2022","","","1/E",{"v":3438,"d":"3438.00"},{"$f":"HYPERLINK(\"https://www.logobook.ru/prod_show.php?object_uid=15655760\",\"Описание\")","v":"Описание"}]
["9789354655104","Evangeline Jones","Manual Of Practical Medical Biochemistry","JayPee Brothers India","2022","238","Paperback","3 revised edition",{"v":3025,"d":"3025.00"},{"$f":"HYPERLINK(\"https://www.logobook.ru/prod_show.php?object_uid=15655792\",\"Описание\")","v":"Описание"}]
["9789389034981","By DM Vasudevan, By ","Textbook of Biochemistry for Medical Students","JayPee Brothers India","2019","844","Paperback","9 revised edition",{"v":10313,"d":"10313.00"},{"$f":"HYPERLINK(\"https://www.logobook.ru/prod_show.php?object_uid=14859715\",\"Описание\")","v":"Описание"}]
["9789390595105","Gogoi Javin Bishnu","Simplified Practical Manual Of Biochemistry","JayPee Brothers India","2021","","","3/E",{"v":3706,"d":"3706.00"},{"$f":"HYPERLINK(\"https://www.logobook.ru/prod_show.php?object_uid=15655870\",\"Описание\")","v":"Описание"}]
["","","","","","","",""]
["#","2 Курс","Biomedical informatics","","","","",""]
["","","","","","","",""]
["9780124160194","Kalet, PhD, Ira J. (","Principles of Biomedical Informatics, 2 ed","Elsevier Science","2013","708","Hardback","2 rev ed",{"v":8772,"d":"8772.00"},{"$f":"HYPERLINK(\"https://www.logobook.ru/prod_show.php?object_uid=12391174\",\"Описание\")","v":"Описание"}]
["9781447144731","","Biomedical Informatics","Springer","2014","1037","Hardback","4th ed. 2014",{"v":12704,"d":"12704.00"},{"$f":"HYPERLINK(\"https://www.logobook.ru/prod_show.php?object_uid=12458748\",\"Описание\")","v":"Описание"}]
["9780124016781","","Methods in Biomedical Informatics,","Elsevier Science","2013","592","Hardback","1",{"v":8657,"d":"8657.00"},{"$f":"HYPERLINK(\"https://www.logobook.ru/prod_show.php?object_uid=12391315\",\"Описание\")","v":"Описание"}]
["","","","","","","",""]
["#","2 Курс","Chemistry","","","","",""]
["","","","","","","",""]
["9781455742141","Larson Donna","Clinical Chemistry","Elsevier Science","2014","736","Paperback","",{"v":10625,"d":"10625.00"},{"$f":"HYPERLINK(\"https://www.logobook.ru/prod_show.php?object_uid=12957328\",\"Описание\")","v":"Описание"}]
["9781260575163","Smith, Janice Vollme","Organic Chemistry with biological topics, 6 IE","McGraw-Hill","2020","","Paperback","6 ed",{"v":8111,"d":"8111.00"},{"$f":"HYPERLINK(\"https://www.logobook.ru/prod_show.php?object_uid=14872087\",\"Описание\")","v":"Описание"}]
["9781265577568","Chang, Raymond Overb","Chemistry, 14    ISE","McGraw-Hill","2021","1168","Paperback","14 ed",{"v":8111,"d":"8111.00"},{"$f":"HYPERLINK(\"https://www.logobook.ru/prod_show.php?object_uid=15546907\",\"Описание\")","v":"Описание"}]
["9780241413029","DK","Periodic Table pocket","Dorling Kindersley","2020","160","Paperback","",{"v":549,"d":"549.00"},{"$f":"HYPERLINK(\"https://www.logobook.ru/prod_show.php?object_uid=14814860\",\"Описание\")","v":"Описание"}]
["9781118717271","Brady, James E. Jesp","Chemistry, 7 Ed. International Student Version","Wiley","2015","1144","Paperback","7th edition internat",{"v":7424,"d":"7424.00"},{"$f":"HYPERLINK(\"https://www.logobook.ru/prod_show.php?object_uid=13146304\",\"Описание\")","v":"Описание"}]
["9780199609499","Snape  Alison","Biochemistry and  Molecular Biology,  5 edition","Oxford Academ","2014","648","Paperback","5 rev ed",{"v":5751,"d":"5751.00"},{"$f":"HYPERLINK(\"https://www.logobook.ru/prod_show.php?object_uid=12467094\",\"Описание\")","v":"Описание"}]
["9780198768111","Papachristodoulou De","Biochemistry and Molecular Biology","Oxford University Press","2018","640","Paperback","6 revised edition",{"v":5829,"d":"5829.00"},{"$f":"HYPERLINK(\"https://www.logobook.ru/prod_show.php?object_uid=14038712\",\"Описание\")","v":"Описание"}]
["9780128117415","Crichton, Robert","Biological Inorganic Chemistry","Elsevier Science","2018","475","Paperback","3 ed",{"v":13283,"d":"13283.00"},{"$f":"HYPERLINK(\"https://www.logobook.ru/prod_show.php?object_uid=13645331\",\"Описание\")","v":"Описание"}]
["9781119248972","T. W. Graham Solomon","Solomon's Organic Chemistry","Wiley","2017","1208","Paperback","12th edition global ",{"v":7699,"d":"7699.00"},{"$f":"HYPERLINK(\"https://www.logobook.ru/prod_show.php?object_uid=13606598\",\"Описание\")","v":"Описание"}]
["","","","","","","",""]
["#","2 Курс","Bioetics","","","","",""]
["","","","","","","",""]
["9780723438656","Papanikitas, Andrew ","Crash Course Medical Ethics and Sociology Updated Print + eBook edition, 2nd Edition","Elsevier Science","2015","216","Paperback","2 revised edition",{"v":4041,"d":"4041.00"},{"$f":"HYPERLINK(\"https://www.logobook.ru/prod_show.php?object_uid=12653315\",\"Описание\")","v":"Описание"}]
["9780729543224","Johnstone Megan-Jane","Bioethics:A Nursing Perspective . 7 ed","Elsevier Science","2019","483","Paperback","7 revised edition",{"v":5774,"d":"5774.00"},{"$f":"HYPERLINK(\"https://www.logobook.ru/prod_show.php?object_uid=14969161\",\"Описание\")","v":"Описание"}]
["9780128157978","Illes, Judy","Pain Neuroethics","Elsevier Science","2018","300","Paperback","Pain Neuroethics",{"v":17903,"d":"17903.00"},{"$f":"HYPERLINK(\"https://www.logobook.ru/prod_show.php?object_uid=13960506\",\"Описание\")","v":"Описание"}]
["9780199214303","Mepham, Ben","Bioethics: An introduction for the biosciences","Oxford Academ","2008","440","Paperback","Second Edition",{"v":6846,"d":"6846.00"},{"$f":"HYPERLINK(\"https://www.logobook.ru/prod_show.php?object_uid=11213426\",\"Описание\")","v":"Описание"}]
["","","","","","","",""]
["#","2 Курс","Epidemiology","","","","",""]
["","","","","","","",""]
["9780323552295","D. Celentano, M. Szk","Gordis Epidemiology - 6th ed.","Elsevier Science","2019","433","Paperback","6 revised edition",{"v":5312,"d":"5312.00"},{"$f":"HYPERLINK(\"https://www.logobook.ru/prod_show.php?object_uid=14368566\",\"Описание\")","v":"Описание"}]
["9780729541497","Stephen McKenzie","Vital statistics: An introduction to health science statistics","Elsevier Science","2013","208","Paperback","1",{"v":3817,"d":"3817.00"},{"$f":"HYPERLINK(\"https://www.logobook.ru/prod_show.php?object_uid=12372354\",\"Описание\")","v":"Описание"}]
["9783030163679","Krickeberg, Klaus Va","Epidemiology:  Key to Public Health. 2 ed","Springer","2019","264","Hardcover           ","2nd ed. 2019",{"v":11549,"d":"11549.00"},{"$f":"HYPERLINK(\"https://www.logobook.ru/prod_show.php?object_uid=14886622\",\"Описание\")","v":"Описание"}]
["9781451130171","Glaser, Anthony N.","High-Yield Biostatistics, Epidemiology, and Public Health. 4 ed.","Lippincott Williams & Wil","2014","168","Paperback","4 ed",{"v":4606,"d":"4606.00"},{"$f":"HYPERLINK(\"https://www.logobook.ru/prod_show.php?object_uid=12300964\",\"Описание\")","v":"Описание"}]
["","","","","","","",""]
["#","2 Курс","Histology & Embryology","","","","",""]
["","","","","","","",""]
["9781260462982","Mescher Anthony","Junqueira's Basic Histology: Text and Atlas, 16 ed.","McGraw-Hill","2021","576","Paperback           ","16 ed",{"v":8799,"d":"8799.00"},{"$f":"HYPERLINK(\"https://www.logobook.ru/prod_show.php?object_uid=15480426\",\"Описание\")","v":"Описание"}]
["9780323612791","James Lowe, Peter An","Stevens & Lowe's Human Histology 5th Edition","Elsevier Science","2019","440","Paperback","5 revised edition",{"v":7160,"d":"7160.00"},{"$f":"HYPERLINK(\"https://www.logobook.ru/prod_show.php?object_uid=14360368\",\"Описание\")","v":"Описание"}]
["9780702047473","Barbara Young","Wheater's Functional Histology, (With STUDENT CONSULT Online Access)","Elsevier Science","2013","448","Mixed media product","6 revised edition",{"v":7622,"d":"7622.00"},{"$f":"HYPERLINK(\"https://www.logobook.ru/prod_show.php?object_uid=12372059\",\"Описание\")","v":"Описание"}]
["9781496396358","Gartner, Leslie P., ","BRS cell biology and histology. 8 ed","Lippincott Williams & Wil","2018","448","Paperback","8 ed",{"v":5569,"d":"5569.00"},{"$f":"HYPERLINK(\"https://www.logobook.ru/prod_show.php?object_uid=14274038\",\"Описание\")","v":"Описание"}]
["9781496310231","Victor P. Eroschenko","Atlas of Histology with Functional Correlations. 13 ed.","Lippincott Williams & Wil","2017","617","Paperback","Thirteenth, internat",{"v":5500,"d":"5500.00"},{"$f":"HYPERLINK(\"https://www.logobook.ru/prod_show.php?object_uid=13373921\",\"Описание\")","v":"Описание"}]
["9781975115364","Pawlina  Wojciech, R","Histology: Text and Atlas: With Correlated Cell and Molecular Biology, 8-ed.","Lippincott Williams & Wil","2020","928","Paperback","Eighth, internationa",{"v":7425,"d":"7425.00"},{"$f":"HYPERLINK(\"https://www.logobook.ru/prod_show.php?object_uid=14333896\",\"Описание\")","v":"Описание"}]
["9780323672726","Leslie P. Gartner","Textbook of Histology, 5 edition","Elsevier Science","2020","704","Paperback","5 revised edition",{"v":8084,"d":"8084.00"},{"$f":"HYPERLINK(\"https://www.logobook.ru/prod_show.php?object_uid=14844407\",\"Описание\")","v":"Описание"}]
["9780323672733","Gartner, Leslie P.","Textbook Of Histology, 5 ed. IE","Elsevier Science","2020","704","Paperback","5",{"v":5196,"d":"5196.00"},{"$f":"HYPERLINK(\"https://www.logobook.ru/prod_show.php?object_uid=14968322\",\"Описание\")","v":"Описание"}]
["9780323694643","Ovalle & Nahirney","Netter's Essential Histology, 3 ed.","Elsevier Science","2020","568","Paperback","3 revised edition",{"v":8084,"d":"8084.00"},{"$f":"HYPERLINK(\"https://www.logobook.ru/prod_show.php?object_uid=14864635\",\"Описание\")","v":"Описание"}]
["9781626234130","Lowrie  Lowrie","Histology - An Essential Textbook","Thieme Verlagsgruppe","2020","428","Paperback","1",{"v":7506,"d":"7506.00"},{"$f":"HYPERLINK(\"https://www.logobook.ru/prod_show.php?object_uid=14849887\",\"Описание\")","v":"Описание"}]
["9781451176100","Dudek, Ronald","High-Yield Embryology","Lippincott Williams & Wil","2013","176","Paperback","5 ed",{"v":4194,"d":"4194.00"},{"$f":"HYPERLINK(\"https://www.logobook.ru/prod_show.php?object_uid=12300914\",\"Описание\")","v":"Описание"}]
["9780323696043","Gary C. Schoenwolf, ","Larsen's Human Embryology, 6e","Elsevier Science","2021","560","Paperback","6th ed.",{"v":8315,"d":"8315.00"},{"$f":"HYPERLINK(\"https://www.logobook.ru/prod_show.php?object_uid=15288995\",\"Описание\")","v":"Описание"}]
["9780323523752","Carlson Bruce M.","Human Embryology and Developmental Biology, 6 Ed.","Elsevier Science","2019","564","Paperback           ","6 revised edition",{"v":7391,"d":"7391.00"},{"$f":"HYPERLINK(\"https://www.logobook.ru/prod_show.php?object_uid=14174072\",\"Описание\")","v":"Описание"}]
["9780323611541","Keith L. Moore; T. V","The Developing Human, 11th Edition","Elsevier Science","2019","522","Paperback","11 revised edition",{"v":7391,"d":"7391.00"},{"$f":"HYPERLINK(\"https://www.logobook.ru/prod_show.php?object_uid=14360370\",\"Описание\")","v":"Описание"}]
["9780323611558","Keith L. Moore; T. V","The Developing Human 11 IE","Elsevier Science","2019","544","Paperback","",{"v":4734,"d":"4734.00"},{"$f":"HYPERLINK(\"https://www.logobook.ru/prod_show.php?object_uid=14209579\",\"Описание\")","v":"Описание"}]
["9780323608497","Moore, Keith","Before We Are Born. 10 ed","Elsevier Science","2020","350","Paperback","10 revised edition",{"v":6582,"d":"6582.00"},{"$f":"HYPERLINK(\"https://www.logobook.ru/prod_show.php?object_uid=14569068\",\"Описание\")","v":"Описание"}]
["9781975114848","Sadler, Dr. T.W., Ph","Langman's Medical Embryology, 14e. 2019.СОЕДИНЕННОЕ КОРОЛЕВСТВО","Lippincott Williams & Wil","2019","456","Paperback","Fourteenth, internat",{"v":4125,"d":"4125.00"},{"$f":"HYPERLINK(\"https://www.logobook.ru/prod_show.php?object_uid=14223008\",\"Описание\")","v":"Описание"}]
["","","","","","","",""]
["#","2 Курс","History of Medicine","","","","",""]
["","","","","","","",""]
["9780199668397","","The Oxford Handbook of the History of Medicine,","Oxford Academ","2013","690","Paperback","",{"v":4382,"d":"4382.00"},{"$f":"HYPERLINK(\"https://www.logobook.ru/prod_show.php?object_uid=12298730\",\"Описание\")","v":"Описание"}]
["9781465484642","Parker Steve","A Short History of Medicine","Random House (USA)","2019","400","Paperback           ","",{"v":1385,"d":"1385.00"},{"$f":"HYPERLINK(\"https://www.logobook.ru/prod_show.php?object_uid=14397242\",\"Описание\")","v":"Описание"}]
["","","","","","","",""]
["#","2 Курс","Hygiene","","","","",""]
["","","","","","","",""]
["9780190623821","Cohen Larry","Prevention Diaries: The Practice and Pursuit of Health for All","Oxford Academ","2016","272","Hardback","",{"v":3012,"d":"3012.00"},{"$f":"HYPERLINK(\"https://www.logobook.ru/prod_show.php?object_uid=13035655\",\"Описание\")","v":"Описание"}]
["9780826180131","Marisa E. Hilliard (","The Handbook of Health Behavior Change, 5th Revised edition edition","Eurospan","2018","568","Paperback","5 revised edition",{"v":12079,"d":"12079.00"},{"$f":"HYPERLINK(\"https://www.logobook.ru/prod_show.php?object_uid=14844408\",\"Описание\")","v":"Описание"}]
["","","","","","","",""]
["#","2 Курс","Immunology","","","","",""]
["","","","","","","",""]
["9780323549431","Abbas, Abul K.","Basic Immunology, 6  Ed","Elsevier Science","2019","336","Paperback","6 revised edition",{"v":6698,"d":"6698.00"},{"$f":"HYPERLINK(\"https://www.logobook.ru/prod_show.php?object_uid=14360371\",\"Описание\")","v":"Описание"}]
["9780323757492","Abbas, Abul","Cellular and Molecular Immunology,  International Edition","Elsevier Science","2021","","Paperback","10",{"v":5081,"d":"5081.00"},{"$f":"HYPERLINK(\"https://www.logobook.ru/prod_show.php?object_uid=15465206\",\"Описание\")","v":"Описание"}]
["9780323757485","Abbas, Lichtman & Pi","Cellular and Molecular Immunologyю 10 ed","Elsevier Science","2021","600","Paperback","10 ed",{"v":8546,"d":"8546.00"},{"$f":"HYPERLINK(\"https://www.logobook.ru/prod_show.php?object_uid=15278545\",\"Описание\")","v":"Описание"}]
["9780702078446","Male David, P Stoker","Immunology, 9 Ed","Elsevier Science","2020","512","Paperback","9 revised edition",{"v":8546,"d":"8546.00"},{"$f":"HYPERLINK(\"https://www.logobook.ru/prod_show.php?object_uid=14849891\",\"Описание\")","v":"Описание"}]
["9789390020539","S Apurba Sastry, San","Review of Microbiology & Immunology","JayPee Brothers India","2020","612","Paperback","9 revised edition",{"v":7968,"d":"7968.00"},{"$f":"HYPERLINK(\"https://www.logobook.ru/prod_show.php?object_uid=15351524\",\"Описание\")","v":"Описание"}]
["9781975172602","Thao Doan,","Lippincott illustrated reviews: immunology, 3 ed. IE","Lippincott Williams & Wil","2021","400","Paperback","Third, international",{"v":4744,"d":"4744.00"},{"$f":"HYPERLINK(\"https://www.logobook.ru/prod_show.php?object_uid=15314707\",\"Описание\")","v":"Описание"}]
["","","","","","","",""]
["#","2 Курс","Law& Ethics","","","","",""]
["","","","","","","",""]
["9780198846956","Herring, Jonathan (P","Medical Law and Ethics, 8 ed","Oxford Academ","2020","688","Paperback","8 revised edition",{"v":5477,"d":"5477.00"},{"$f":"HYPERLINK(\"https://www.logobook.ru/prod_show.php?object_uid=14844668\",\"Описание\")","v":"Описание"}]
["","","","","","","",""]
["#","2 Курс","Medical Genetics","","","","",""]
["","","","","","","",""]
["9780702079665","Peter D Turnpenny, S","Emery's Elements of Medical Genetics and Genomics, 16e","Elsevier Science","2021","448","Paperback","16 ed",{"v":5427,"d":"5427.00"},{"$f":"HYPERLINK(\"https://www.logobook.ru/prod_show.php?object_uid=15253583\",\"Описание\")","v":"Описание"}]
["9781437706963","","Thompson & Thompson Genetics in Medicine / Robert L. Nussbaum, Roderick R. McInnes, Huntington F Wil","Elsevier Science","2015","560","Paperback","8 revised edition",{"v":5889,"d":"5889.00"},{"$f":"HYPERLINK(\"https://www.logobook.ru/prod_show.php?object_uid=12462323\",\"Описание\")","v":"Описание"}]
["9780323597371","Jorde  Lynn B., John","Medical Genetics. 6 ed","Elsevier Science","2020","368","Paperback","6 revised edition",{"v":9309,"d":"9309.00"},{"$f":"HYPERLINK(\"https://www.logobook.ru/prod_show.php?object_uid=14569137\",\"Описание\")","v":"Описание"}]
["9783132414402","Passarge, Eberhard","Color Atlas of Genetics, 5 ed.","Thieme Verlagsgruppe","2017","474","Paperback","5 new edition",{"v":8983,"d":"8983.00"},{"$f":"HYPERLINK(\"https://www.logobook.ru/prod_show.php?object_uid=13959458\",\"Описание\")","v":"Описание"}]
["9781319308315","Benjamin Pierce","Genetics: A Conceptual Approach","Macmillan Learning","2020","976","Paperback","7th ed. 2020",{"v":9074,"d":"9074.00"},{"$f":"HYPERLINK(\"https://www.logobook.ru/prod_show.php?object_uid=14913330\",\"Описание\")","v":"Описание"}]
["9781319187972","Benjamin Pierce","Genetics Essentials: Concepts and Connections","Springer","2018","544","Paperback","4th ed. 2018",{"v":7737,"d":"7737.00"},{"$f":"HYPERLINK(\"https://www.logobook.ru/prod_show.php?object_uid=13662041\",\"Описание\")","v":"Описание"}]
["9789354656064","Garg Gobind Rai","Review Of Pathology & Genetics","JayPee Brothers India","2022","598","Paperback","13 revised edition",{"v":8938,"d":"8938.00"},{"$f":"HYPERLINK(\"https://www.logobook.ru/prod_show.php?object_uid=15655740\",\"Описание\")","v":"Описание"}]
["","","","","","","",""]
["#","2 Курс","Microbiology, parasitology","","","","",""]
["","","","","","","",""]
["9788131261194","Nagoba & PICHARE","Medical Microbiology and Parasitology PMFU","Elsevier India","2020","846","Paperback","4 revised edition",{"v":5578,"d":"5578.00"},{"$f":"HYPERLINK(\"https://www.logobook.ru/prod_show.php?object_uid=15063272\",\"Описание\")","v":"Описание"}]
["9780702071997","Barer & Irving","Medical Microbioligy, Intrenational Edition, 19 ed.","Elsevier Science","2018","760","Paperback","",{"v":4041,"d":"4041.00"},{"$f":"HYPERLINK(\"https://www.logobook.ru/prod_show.php?object_uid=14174073\",\"Описание\")","v":"Описание"}]
["9780323673228","Patrick R. Murray, K","Medical Microbiology, 9th Edition","Elsevier Science","2020","848","Paperback","9 revised edition",{"v":12740,"d":"12740.00"},{"$f":"HYPERLINK(\"https://www.logobook.ru/prod_show.php?object_uid=14844669\",\"Описание\")","v":"Описание"}]
["9780702071546","Goering, Richard","Mims' Medical Microbiology and Immunology","Elsevier Science","2018","580","Paperback","6 revised edition",{"v":7853,"d":"7853.00"},{"$f":"HYPERLINK(\"https://www.logobook.ru/prod_show.php?object_uid=13645898\",\"Описание\")","v":"Описание"}]
["9780702071560","Goering, Dockrell, Z","Mims' Medical Microbiology and Immunology, International Edition, 6th Edition","Elsevier Science","2018","568","Paperback","",{"v":3464,"d":"3464.00"},{"$f":"HYPERLINK(\"https://www.logobook.ru/prod_show.php?object_uid=13802181\",\"Описание\")","v":"Описание"}]
["9780128137123","Bogitsh, Burton","Human Parasitology, 5th","Elsevier Science","2018","448","Hardback","Human Parasitology, ",{"v":10620,"d":"10620.00"},{"$f":"HYPERLINK(\"https://www.logobook.ru/prod_show.php?object_uid=13817185\",\"Описание\")","v":"Описание"}]
["9781416060444","Zeibig, Elizabeth, P","Clinical Parasitology. 2 Ed.","Elsevier Science","2010","376","Paperback           ","2 revised edition",{"v":6698,"d":"6698.00"},{"$f":"HYPERLINK(\"https://www.logobook.ru/prod_show.php?object_uid=11660409\",\"Описание\")","v":"Описание"}]
["9780702040610","Nabarro, Morris-Jone","Peters' Atlas of Tropical Medicine and Parasitology","Elsevier Science","2019","448","Paperback","7 revised edition",{"v":13628,"d":"13628.00"},{"$f":"HYPERLINK(\"https://www.logobook.ru/prod_show.php?object_uid=12462176\",\"Описание\")","v":"Описание"}]
["9781975118310","Cynthia Nau Cornelis","Lippincott's Illustrated Reviews: Microbiology, 4 ed. International Edition.","Lippincott Williams & Wil","2019","448","Paperback","Fourth, internationa",{"v":4194,"d":"4194.00"},{"$f":"HYPERLINK(\"https://www.logobook.ru/prod_show.php?object_uid=14458190\",\"Описание\")","v":"Описание"}]
["9781260116717","Warren Levinson","Review of Medical Microbiology and Immunology, 16 ed.","McGraw-Hill","2020","864","Paperback","16 ed",{"v":7974,"d":"7974.00"},{"$f":"HYPERLINK(\"https://www.logobook.ru/prod_show.php?object_uid=15063273\",\"Описание\")","v":"Описание"}]
["9781260012026","Riedel, Stefan Morse","Jawetz Melnick & Adelbergs Medical Microbiology 28 ed","McGraw-Hill","2019","880","Paperback           ","28 ed",{"v":10999,"d":"10999.00"},{"$f":"HYPERLINK(\"https://www.logobook.ru/prod_show.php?object_uid=14663794\",\"Описание\")","v":"Описание"}]
["9781260460247","Stefan Riedel, Steph","Jawetz Melnick & Adelbergs Medical Microbiology 28 ed IE","McGraw-Hill","2019","","","",{"v":6874,"d":"6874.00"},{"$f":"HYPERLINK(\"https://www.logobook.ru/prod_show.php?object_uid=15468754\",\"Описание\")","v":"Описание"}]
["9788194802877","Bhumbla Upasana","Competency Based Practical Manual For Microbiology As Per The Competencey Based Curriculum (Mci)","JayPee Brothers India","2021","178","Paperback","1/E",{"v":3706,"d":"3706.00"},{"$f":"HYPERLINK(\"https://www.logobook.ru/prod_show.php?object_uid=15655831\",\"Описание\")","v":"Описание"}]
["9788194709015","S Apurba Sastry, San","Essentials of Medical Microbiology","JayPee Brothers India","2021","872","Paperback","3 revised edition",{"v":8938,"d":"8938.00"},{"$f":"HYPERLINK(\"https://www.logobook.ru/prod_show.php?object_uid=15354009\",\"Описание\")","v":"Описание"}]
["9788194802822","S Apurba Sastry, San","Essentials of Practical Microbiology","JayPee Brothers India","2020","350","Paperback","2",{"v":3438,"d":"3438.00"},{"$f":"HYPERLINK(\"https://www.logobook.ru/prod_show.php?object_uid=15354003\",\"Описание\")","v":"Описание"}]
["9789390595433","Maheshwari Nanda","Clinical Microbiology & Parasitology For Dmlt Students","JayPee Brothers India","2022","492","Paperback","4 revised edition",{"v":4125,"d":"4125.00"},{"$f":"HYPERLINK(\"https://www.logobook.ru/prod_show.php?object_uid=15655637\",\"Описание\")","v":"Описание"}]
["9789390020539","S Apurba Sastry, San","Review of Microbiology & Immunology","JayPee Brothers India","2020","612","Paperback","9 revised edition",{"v":7968,"d":"7968.00"},{"$f":"HYPERLINK(\"https://www.logobook.ru/prod_show.php?object_uid=15351524\",\"Описание\")","v":"Описание"}]
["","","","","","","",""]
["#","2 Курс","Pathology","","","","",""]
["","","","","","","",""]
["9780323531139","Vinay Kumar, Abul K.","Robbins & Cotran Pathologic Basis Of Disease 10 ed. - Elsevier Science, СОЕДИНЕННОЕ КОРОЛЕВСТВО, 202","Elsevier Science","2021","1392","Hardcover           ","10 revised edition",{"v":12588,"d":"12588.00"},{"$f":"HYPERLINK(\"https://www.logobook.ru/prod_show.php?object_uid=14967879\",\"Описание\")","v":"Описание"}]
["9780323640183","Klatt, Edward C.","Robbins And Cotran Atlas Of Pathology, 4th edition","Elsevier Science","2020","546","Paperback","4 revised edition",{"v":6929,"d":"6929.00"},{"$f":"HYPERLINK(\"https://www.logobook.ru/prod_show.php?object_uid=14967011\",\"Описание\")","v":"Описание"}]
["9780323476683","Goljan, Edward F.","Rapid Review Pathology. 5 ed.- Elsevier","Elsevier Science","2019","864","Paperback","5 revised edition",{"v":7044,"d":"7044.00"},{"$f":"HYPERLINK(\"https://www.logobook.ru/prod_show.php?object_uid=13816862\",\"Описание\")","v":"Описание"}]
["9780702072055",", Roberts , MacDuff","Pathology Illustrated, International Edition, 8th Edition","Elsevier Science","2018","728","Paperback","",{"v":3579,"d":"3579.00"},{"$f":"HYPERLINK(\"https://www.logobook.ru/prod_show.php?object_uid=14174074\",\"Описание\")","v":"Описание"}]
["9780702072116","Cross, Simon S.","Underwood's Pathology: a Clinical Approach, 7 ed. IE","Elsevier Science","2018","776","Paperback","7 revised edition",{"v":4157,"d":"4157.00"},{"$f":"HYPERLINK(\"https://www.logobook.ru/prod_show.php?object_uid=14036929\",\"Описание\")","v":"Описание"}]
["9780323353175","Kumar, Vinay Abbas, ","Robbins Basic Pathology, 10th Edition","Elsevier Science","2017","952","Hardcover           ","10 revised edition",{"v":8199,"d":"8199.00"},{"$f":"HYPERLINK(\"https://www.logobook.ru/prod_show.php?object_uid=13470121\",\"Описание\")","v":"Описание"}]
["9780323480543","Kumar Vinay, Abbas A","Robbins Basic Pathology.10 IE","Elsevier Science","2018","928","Hardback","10 international ed",{"v":4619,"d":"4619.00"},{"$f":"HYPERLINK(\"https://www.logobook.ru/prod_show.php?object_uid=13419039\",\"Описание\")","v":"Описание"}]
["9781496350329","Rubin Emmanuel, Reis","Principles of rubins pathology. 7 ed","Lippincott Williams & Wil","2018","968","Paperback","7 revised edition",{"v":9625,"d":"9625.00"},{"$f":"HYPERLINK(\"https://www.logobook.ru/prod_show.php?object_uid=14274034\",\"Описание\")","v":"Описание"}]
["9781975141028","David S Strayer","Rubin's Pathology: Mechanisms of Human Disease 8 Ed. IE","Lippincott Williams & Wil","2019","1400","Hardback","Eighth, internationa",{"v":9625,"d":"9625.00"},{"$f":"HYPERLINK(\"https://www.logobook.ru/prod_show.php?object_uid=14462560\",\"Описание\")","v":"Описание"}]
["","","","","","","",""]
["#","2 Курс","Pathophysiology","","","","",""]
["","","","","","","",""]
["9780323681704","Sue E. Huether, Kath","Study Guide for Understanding Pathophysiology, 7th Edition","Elsevier Science","2020","0","Paperback","7 revised edition",{"v":4503,"d":"4503.00"},{"$f":"HYPERLINK(\"https://www.logobook.ru/prod_show.php?object_uid=14844670\",\"Описание\")","v":"Описание"}]
["9780323583473","McCance, Kathryn L. ","Pathophysiology. 8 ed.","Elsevier Science","2018","1720","Paperback","8 revised edition",{"v":13974,"d":"13974.00"},{"$f":"HYPERLINK(\"https://www.logobook.ru/prod_show.php?object_uid=13646148\",\"Описание\")","v":"Описание"}]
["9780323751506","Banasik, Jacquelyn L","Pathophysiology. 7 ed","Elsevier Science","2021","","Paperback","7 ed",{"v":13166,"d":"13166.00"},{"$f":"HYPERLINK(\"https://www.logobook.ru/prod_show.php?object_uid=15489447\",\"Описание\")","v":"Описание"}]
["9780323676977","Sue E. Huether, Kath","Understanding pathophysiology, 7 ed.","Elsevier Science","2019","","Paperback","7 revised edition",{"v":12821,"d":"12821.00"},{"$f":"HYPERLINK(\"https://www.logobook.ru/prod_show.php?object_uid=14796036\",\"Описание\")","v":"Описание"}]
["9781260026504","Hammer Gary D., McPh","Pathophysiology of Disease: An Introduction to Clinical Medicine 8e","McGraw-Hill","2018","832","Paperback           ","8",{"v":9486,"d":"9486.00"},{"$f":"HYPERLINK(\"https://www.logobook.ru/prod_show.php?object_uid=14159072\",\"Описание\")","v":"Описание"}]
["","","","","","","",""]
["#","2 Курс","Pharmacology","","","","",""]
["","","","","","","",""]
["9780702073441","Page Catrin","Crash Course: Pharmacology","Elsevier Science","2018","336","Paperback","5 revised edition",{"v":3926,"d":"3926.00"},{"$f":"HYPERLINK(\"https://www.logobook.ru/prod_show.php?object_uid=14359672\",\"Описание\")","v":"Описание"}]
["9780702074486","Ritter James M.","Rang & Dale's Pharmacology, 9 ed.","Elsevier Science","2019","808","Paperback","9 revised edition",{"v":7275,"d":"7275.00"},{"$f":"HYPERLINK(\"https://www.logobook.ru/prod_show.php?object_uid=14360374\",\"Описание\")","v":"Описание"}]
["9780702074479","Ritter, James M.","Rang & Dale's Pharmacology, International Edition 9 ed.","Elsevier Science","2019","808","Paperback","",{"v":5312,"d":"5312.00"},{"$f":"HYPERLINK(\"https://www.logobook.ru/prod_show.php?object_uid=14209582\",\"Описание\")","v":"Описание"}]
["9781496339621","Howard C. Ansel,Shel","Pharmaceutical Calculations, International Edition 15e","Lippincott Williams & Wil","2016","480","Paperback","Fifteenth, internati",{"v":7150,"d":"7150.00"},{"$f":"HYPERLINK(\"https://www.logobook.ru/prod_show.php?object_uid=12939183\",\"Описание\")","v":"Описание"}]
["9780702073281","Brown, Morris J.","Clinical Pharmacology, 12 ed.","Elsevier Science","2018","688","Paperback","12 revised edition",{"v":7044,"d":"7044.00"},{"$f":"HYPERLINK(\"https://www.logobook.ru/prod_show.php?object_uid=13816907\",\"Описание\")","v":"Описание"}]
["9780702073298","Brown M.J. et al.","Clinical Pharmacology, 12 ed.  International Edition","Elsevier Science","2018","688","Paperback","",{"v":4272,"d":"4272.00"},{"$f":"HYPERLINK(\"https://www.logobook.ru/prod_show.php?object_uid=14209568\",\"Описание\")","v":"Описание"}]
["9780702081590","Derek G. Waller, Ant","Medical Pharmacology and Therapeutics 6th Edition","Elsevier Science","2021","754","Paperback","6 ed",{"v":7044,"d":"7044.00"},{"$f":"HYPERLINK(\"https://www.logobook.ru/prod_show.php?object_uid=15489449\",\"Описание\")","v":"Описание"}]
["9780323476522","Wecker, Lynn","Brody's Human Pharmacology.  6 Ed.","Elsevier Science","2018","712","Paperback","6 revised edition",{"v":8084,"d":"8084.00"},{"$f":"HYPERLINK(\"https://www.logobook.ru/prod_show.php?object_uid=13832376\",\"Описание\")","v":"Описание"}]
["9780323391665","Brenner, George M.","Brenner and Stevens' Pharmacology. 5 ed","Elsevier Science","2017","552","Paperback","5 revised edition",{"v":7622,"d":"7622.00"},{"$f":"HYPERLINK(\"https://www.logobook.ru/prod_show.php?object_uid=13646168\",\"Описание\")","v":"Описание"}]
["9780702070112","Whittlesea, Cate","Clinical  Pharmacy and  Therapeutics,IE. 6 ed.","Elsevier Science","2018","1112","Paperback","",{"v":3926,"d":"3926.00"},{"$f":"HYPERLINK(\"https://www.logobook.ru/prod_show.php?object_uid=14209588\",\"Описание\")","v":"Описание"}]
["9780702081552","Taylor, Kevin","Aulton's Pharmaceutics, 6 ed. International Edition","Elsevier Science","2021","952","Paperback","6",{"v":4041,"d":"4041.00"},{"$f":"HYPERLINK(\"https://www.logobook.ru/prod_show.php?object_uid=15465204\",\"Описание\")","v":"Описание"}]
["9780702070303","Heinrich, Michael","Fundamentals of Pharmacognosy and Phytotherapy. 3 ed. International Edition","Elsevier Science","2018","352","Paperback","",{"v":3579,"d":"3579.00"},{"$f":"HYPERLINK(\"https://www.logobook.ru/prod_show.php?object_uid=14209575\",\"Описание\")","v":"Описание"}]
["9781260452310","Katzung Bertram G., ","Basic and Clinical Pharmacology 15e","McGraw-Hill","2021","1328","Paperback           ","15",{"v":9854,"d":"9854.00"},{"$f":"HYPERLINK(\"https://www.logobook.ru/prod_show.php?object_uid=15182820\",\"Описание\")","v":"Описание"}]
["9781260470109","Katzung Bertram G., ","Basic and Clinical Pharmacology 15e IE","McGraw-Hill","2021","","","",{"v":6351,"d":"6351.00"},{"$f":"HYPERLINK(\"https://www.logobook.ru/prod_show.php?object_uid=15255952\",\"Описание\")","v":"Описание"}]
["9781975170585","Karen Whalen","Lippincott Illustrated Reviews: Pharmacology,  Eighth, International edition","Lippincott Williams & Wil","2022","704","Paperback","Eighth, internationa",{"v":5431,"d":"5431.00"},{"$f":"HYPERLINK(\"https://www.logobook.ru/prod_show.php?object_uid=15666225\",\"Описание\")","v":"Описание"}]
["9789354656941","Uttam Kumar Roy","Essentials Of Postgraduate Pharmacology & Biostatisticsguidebook To Postgraduate Trainee In Pharmaco","JayPee Brothers India","2022","438","Paperback","2 revised edition",{"v":6188,"d":"6188.00"},{"$f":"HYPERLINK(\"https://www.logobook.ru/prod_show.php?object_uid=15655808\",\"Описание\")","v":"Описание"}]
["9789390595020","Badyal Dinesh","Practical Manual Of Pharmacology For Medical Students","JayPee Brothers India","2021","","","3/E",{"v":4393,"d":"4393.00"},{"$f":"HYPERLINK(\"https://www.logobook.ru/prod_show.php?object_uid=15655868\",\"Описание\")","v":"Описание"}]
["9789352704996","Tripathi, KD","Essentials of medical pharmacology, 8 ed.","JayPee Brothers India","2019","1080","Hardback","8 revised edition",{"v":10313,"d":"10313.00"},{"$f":"HYPERLINK(\"https://www.logobook.ru/prod_show.php?object_uid=14140498\",\"Описание\")","v":"Описание"}]
["","","","","","","",""]
["#","2 Курс","Physics","","","","",""]
["","","","","","","",""]
["9780128137161","Davidovits, Paul (Bo","Physics in Biology and Medicine, 5 ed.","Elsevier Science","2018","380","Paperback","5 ed",{"v":10158,"d":"10158.00"},{"$f":"HYPERLINK(\"https://www.logobook.ru/prod_show.php?object_uid=14209539\",\"Описание\")","v":"Описание"}]
["9789401742702","V. Pattabhi; N. Gaut","Biophysics","Springer","2013","267","Soft cover","Softcover reprint of",{"v":16169,"d":"16169.00"},{"$f":"HYPERLINK(\"https://www.logobook.ru/prod_show.php?object_uid=13619653\",\"Описание\")","v":"Описание"}]
["9781119454014","David Halliday, Robe","Principles of Physics, 11 Ed, Global Edition","Wiley","2020","1280","Paperback","11th edition, global",{"v":7699,"d":"7699.00"},{"$f":"HYPERLINK(\"https://www.logobook.ru/prod_show.php?object_uid=14913781\",\"Описание\")","v":"Описание"}]
["","","","","","","",""]
["#","2 Курс","Physiology","","","","",""]
["","","","","","","",""]
["9780323597128","Hall, John E.","Guyton And Hall Textbook Of Medical Physiology, 14 ed.","Elsevier Science","2020","1152","Hardcover           ","14 revised edition",{"v":12588,"d":"12588.00"},{"$f":"HYPERLINK(\"https://www.logobook.ru/prod_show.php?object_uid=14967878\",\"Описание\")","v":"Описание"}]
["9780323393942","Koeppen &  Stanton","Berne & Levy Physiology, 7th Edition","Elsevier Science","2017","880","Hardcover           ","7 revised edition",{"v":10971,"d":"10971.00"},{"$f":"HYPERLINK(\"https://www.logobook.ru/prod_show.php?object_uid=13489427\",\"Описание\")","v":"Описание"}]
["9780323443388","Koeppen MD PhD, Bruc","Berne and Levy Physiology, International Edition, 7th Edition","Elsevier Science","2017","0","Paperback","7 international ed",{"v":6120,"d":"6120.00"},{"$f":"HYPERLINK(\"https://www.logobook.ru/prod_show.php?object_uid=13477493\",\"Описание\")","v":"Описание"}]
["9780323793339","Costanzo","Costanzo Physiology, 7 Ed","Elsevier Science","2021","550","Paperback","7th edition",{"v":5889,"d":"5889.00"},{"$f":"HYPERLINK(\"https://www.logobook.ru/prod_show.php?object_uid=15488904\",\"Описание\")","v":"Описание"}]
["9781455743773","Boron, Walter F.","Medical Physiology. 3 ed","Elsevier Science","2016","1312","Hardback","3 revised edition",{"v":11549,"d":"11549.00"},{"$f":"HYPERLINK(\"https://www.logobook.ru/prod_show.php?object_uid=12462529\",\"Описание\")","v":"Описание"}]
["9780323427968","Boron W. , Boulpaep ","Medical Physiology 3E IE","Elsevier Science","2016","1312","Paperback","3 international ed",{"v":11107,"d":"11107.00"},{"$f":"HYPERLINK(\"https://www.logobook.ru/prod_show.php?object_uid=12925649\",\"Описание\")","v":"Описание"}]
["9781975106690","Costanzo, Linda S., ","BRS Physiology, 7 ed International Edition","Lippincott Williams & Wil","2018","304","Paperback","Seventh, internation",{"v":3781,"d":"3781.00"},{"$f":"HYPERLINK(\"https://www.logobook.ru/prod_show.php?object_uid=13968321\",\"Описание\")","v":"Описание"}]
["9783135450070","Silbernagl Stefan, D","Color atlas of phisiology. 7 ed.","Thieme Verlagsgruppe","2015","472","Paperback","7th edition",{"v":5196,"d":"5196.00"},{"$f":"HYPERLINK(\"https://www.logobook.ru/prod_show.php?object_uid=12769766\",\"Описание\")","v":"Описание"}]
["9781260566666","Barrett","Ganongs review medical physiology 26e IE","McGraw-Hill","2019","","Paperback","",{"v":3161,"d":"3161.00"},{"$f":"HYPERLINK(\"https://www.logobook.ru/prod_show.php?object_uid=14801993\",\"Описание\")","v":"Описание"}]
["9789389188011","GK Pal","Comprehensive Textbook of Medical Physiology: Two Volume Set","JayPee Brothers India","2019","1500","Paperback","Vol. 2 volumes",{"v":12643,"d":"12643.00"},{"$f":"HYPERLINK(\"https://www.logobook.ru/prod_show.php?object_uid=14910121\",\"Описание\")","v":"Описание"}]
["9789352706921","Sembulingam, K","Essentials of Medical Physiology","JayPee Brothers India","2019","1186","Paperback","8 revised edition",{"v":12375,"d":"12375.00"},{"$f":"HYPERLINK(\"https://www.logobook.ru/prod_show.php?object_uid=14766362\",\"Описание\")","v":"Описание"}]
["9789390595747","N Geetha","Human Physiology for Medical Students","JayPee Brothers India","2021","1044","Paperback","1",{"v":9481,"d":"9481.00"},{"$f":"HYPERLINK(\"https://www.logobook.ru/prod_show.php?object_uid=15351470\",\"Описание\")","v":"Описание"}]
["9789352705320","VP Varshney, Mona Be","Ghai's Textbook of Practical Physiology","JayPee Brothers India","2018","376","Paperback","9 revised edition",{"v":5500,"d":"5500.00"},{"$f":"HYPERLINK(\"https://www.logobook.ru/prod_show.php?object_uid=14492696\",\"Описание\")","v":"Описание"}]
["9788194802853","Manjinder Kaur, Nare","Comprehensive Workbook for Practical Physiology","JayPee Brothers India","2021","366","Paperback","3",{"v":5081,"d":"5081.00"},{"$f":"HYPERLINK(\"https://www.logobook.ru/prod_show.php?object_uid=15354000\",\"Описание\")","v":"Описание"}]
["9789354655432","Manna Soumen","Review Of Physiology","JayPee Brothers India","2022","","","6/E",{"v":5500,"d":"5500.00"},{"$f":"HYPERLINK(\"https://www.logobook.ru/prod_show.php?object_uid=15655703\",\"Описание\")","v":"Описание"}]
["","","","","","","",""]
["#","2 Курс","Psychology","","","","",""]
["","","","","","","",""]
["9780702062988","van Teijlingen, Edwi","Psychology and Sociology Applied to Medicine","Elsevier Science","2019","193","Paperback","4 revised edition",{"v":4619,"d":"4619.00"},{"$f":"HYPERLINK(\"https://www.logobook.ru/prod_show.php?object_uid=14360373\",\"Описание\")","v":"Описание"}]
["9781319113070","Myers, David DeWall,","Psychology, 12th ed.","Macmillan Learning","2018","896","Hardback","12nd ed. 2018",{"v":8386,"d":"8386.00"},{"$f":"HYPERLINK(\"https://www.logobook.ru/prod_show.php?object_uid=13662024\",\"Описание\")","v":"Описание"}]
["","","","","","","",""]
["#","2 Курс","Medical English and Intercultural Communication","","","","",""]
["","","","","","","",""]
["9780323378437","Chabner, Davi-Ellen","Medical Language Instant Translator","Elsevier Science","2016","334","Paperback","6 revised edition",{"v":3348,"d":"3348.00"},{"$f":"HYPERLINK(\"https://www.logobook.ru/prod_show.php?object_uid=13142008\",\"Описание\")","v":"Описание"}]
["9780323533195","LaFleur Brooks, Dani","Basic Medical Language with Flash Cards, 6 ed.","Elsevier Science","2018","448","Hardback","6 revised edition",{"v":6582,"d":"6582.00"},{"$f":"HYPERLINK(\"https://www.logobook.ru/prod_show.php?object_uid=14223603\",\"Описание\")","v":"Описание"}]
["9780323396455","Lafleur Brooks, Myrn","Exploring medical language","Elsevier Science","2017","800","Paperback","10 revised edition",{"v":9585,"d":"9585.00"},{"$f":"HYPERLINK(\"https://www.logobook.ru/prod_show.php?object_uid=13591035\",\"Описание\")","v":"Описание"}]
["9780443073991","Parkinson & Brooker","Everyday English for International Nurses","Elsevier Science","2004","256","Paperback","Collectors ed/ /eng-",{"v":4085,"d":"4085.00"},{"$f":"HYPERLINK(\"https://www.logobook.ru/prod_show.php?object_uid=11040721\",\"Описание\")","v":"Описание"}]
["9780444521187","Petey Young","Writing and Presenting in English,","Elsevier Science","2006","124","Paperback","1",{"v":2882,"d":"2882.00"},{"$f":"HYPERLINK(\"https://www.logobook.ru/prod_show.php?object_uid=11090178\",\"Описание\")","v":"Описание"}]
["9780323427944","Leonard, Peggy C.","Building a Medical Vocabulary","Elsevier Science","2017","720","Paperback","10 revised edition",{"v":8430,"d":"8430.00"},{"$f":"HYPERLINK(\"https://www.logobook.ru/prod_show.php?object_uid=13645944\",\"Описание\")","v":"Описание"}]
["9780702075506","Fareh, Shehdeh","English for Medicine & Health Sciences","Elsevier Science","2017","326","paperback","",{"v":1936,"d":"1936.00"},{"$f":"HYPERLINK(\"https://www.logobook.ru/prod_show.php?object_uid=14432061\",\"Описание\")","v":"Описание"}]
["9780323551472","Chabner Davi-Ellen","The Language of Medicine, 12th Edition","Elsevier Science","2020","1064","Paperback","12 revised edition",{"v":10394,"d":"10394.00"},{"$f":"HYPERLINK(\"https://www.logobook.ru/prod_show.php?object_uid=14844404\",\"Описание\")","v":"Описание"}]
["","","","","","","",""]
["#","3 Курс","Clinical medicine","","","","",""]
["","","","","","","",""]
["9780702072130","Lloyd, Bor &  Noble","Clinical Communication Skills for Medicine, 4th Edition","Elsevier Science","2018","240","Paperback","4 revised edition",{"v":3579,"d":"3579.00"},{"$f":"HYPERLINK(\"https://www.logobook.ru/prod_show.php?object_uid=13645963\",\"Описание\")","v":"Описание"}]
["9780702070273","Stuart H. Ralstone e","Davidson`s  Principles and  Practice of  Medicine IE, 23 Edi.","Elsevier Science","2018","1440","Paperback","",{"v":4503,"d":"4503.00"},{"$f":"HYPERLINK(\"https://www.logobook.ru/prod_show.php?object_uid=14036921\",\"Описание\")","v":"Описание"}]
["9780702078767","Innes, J. Alastair","Davidson's Essentials Of Medicine, 3 ed. International Edition","Elsevier Science","2020","784","Paperback","3",{"v":2540,"d":"2540.00"},{"$f":"HYPERLINK(\"https://www.logobook.ru/prod_show.php?object_uid=14968251\",\"Описание\")","v":"Описание"}]
["9780702071454","Wake D.","Davidson's Self-assessment in Medicine, International Edition","Elsevier Science","2018","464","Paperback","",{"v":1731,"d":"1731.00"},{"$f":"HYPERLINK(\"https://www.logobook.ru/prod_show.php?object_uid=14699235\",\"Описание\")","v":"Описание"}]
["9780702050473","Brian R.Walker, Nick","Davidson's Principles and Practice of Medicine. 22 ed. International Edition","Elsevier Science","2014","1392","Mixed media product","22 international ed",{"v":1647,"d":"1647.00"},{"$f":"HYPERLINK(\"https://www.logobook.ru/prod_show.php?object_uid=12520886\",\"Описание\")","v":"Описание"}]
["9780702078699","Feather, Adam","Kumar and Clark's Clinical Medicine 10 ed, Interntaional edition.","Elsevier Science","2020","1504","Paperback","10",{"v":4850,"d":"4850.00"},{"$f":"HYPERLINK(\"https://www.logobook.ru/prod_show.php?object_uid=14967997\",\"Описание\")","v":"Описание"}]
["9780702082795","Zammitt, Nicola","Essentials of kumar and clark`s clinical medicine. 7 ed","Elsevier Science","2021","928","Paperback","7 ed",{"v":4503,"d":"4503.00"},{"$f":"HYPERLINK(\"https://www.logobook.ru/prod_show.php?object_uid=15493604\",\"Описание\")","v":"Описание"}]
["9780702077326","Kumar, Parveen","Kumar & Clark'S Cases In Clinical Medicine. 4 ed.","Elsevier Science","2020","624","Paperback           ","4 revised edition",{"v":4041,"d":"4041.00"},{"$f":"HYPERLINK(\"https://www.logobook.ru/prod_show.php?object_uid=14967217\",\"Описание\")","v":"Описание"}]
["","","","","","","",""]
["#","3 Курс","Internal Medicine","","","","",""]
["","","","","","","",""]
["9780323640336","Goldman","Goldman-Cecil Medicine International Edition, 2-Volume Set, 26e","Elsevier Science","2019","2944","Hardback","",{"v":10509,"d":"10509.00"},{"$f":"HYPERLINK(\"https://www.logobook.ru/prod_show.php?object_uid=14699232\",\"Описание\")","v":"Описание"}]
["9781264268504","Loscalzo, Joseph Fau","Harrison`s principles of internal medicine,21 edition (vol.1 & vol.2)","McGraw-Hill","2022","2","Hardcover           ","21 ed",{"v":32101,"d":"32101.00"},{"$f":"HYPERLINK(\"https://www.logobook.ru/prod_show.php?object_uid=15654879\",\"Описание\")","v":"Описание"}]
["9780702077784","Slater, Thomas","Pocketbook of Differential Diagnosis, 6 ed. International Edition","Elsevier Science","2021","624","Paperback","5",{"v":2309,"d":"2309.00"},{"$f":"HYPERLINK(\"https://www.logobook.ru/prod_show.php?object_uid=15465209\",\"Описание\")","v":"Описание"}]
["","","","","","","",""]
["#","3 Курс","Physical Diagnosis","","","","",""]
["","","","","","","",""]
["9781975109912","Bickley, Lynn S. Szi","Bates' Guide To Physical Examination and History Taking 13 IE","Lippincott Williams & Wil","2020","1072","Hardback","Thirteenth, internat",{"v":6188,"d":"6188.00"},{"$f":"HYPERLINK(\"https://www.logobook.ru/prod_show.php?object_uid=15037445\",\"Описание\")","v":"Описание"}]
["9780323761833","Ball, Dains, Flynn, ","Seidel's Guide to Physical Examination,10 Ed.","Elsevier Science","2022","712","Hardcover","10 ed",{"v":14321,"d":"14321.00"},{"$f":"HYPERLINK(\"https://www.logobook.ru/prod_show.php?object_uid=15619707\",\"Описание\")","v":"Описание"}]
["9780323672924","Swartz, Mark H.","Textbook Of Physical Diagnosis. 8 ed","Elsevier Science","2020","704","Hardcover           ","8 revised edition",{"v":10625,"d":"10625.00"},{"$f":"HYPERLINK(\"https://www.logobook.ru/prod_show.php?object_uid=14968254\",\"Описание\")","v":"Описание"}]
["9780702067402","Glynn","Hutchison'S Clinical Methods 24 ed. IE","Elsevier Science","2017","544","Paperback","24 international ed",{"v":3695,"d":"3695.00"},{"$f":"HYPERLINK(\"https://www.logobook.ru/prod_show.php?object_uid=13645874\",\"Описание\")","v":"Описание"}]
["9780729542890","Talley, Nicholas J","Talley & O'Connor's Clinical Examination. 9 ed. International Edition","Elsevier Science","2018","962","Paperback","",{"v":4850,"d":"4850.00"},{"$f":"HYPERLINK(\"https://www.logobook.ru/prod_show.php?object_uid=14209583\",\"Описание\")","v":"Описание"}]
["9780702069932","Innes, J. Alastair","Macleod's Clinical Examination, 14th Edition","Elsevier Science","2018","450","Paperback","14 revised edition",{"v":6005,"d":"6005.00"},{"$f":"HYPERLINK(\"https://www.logobook.ru/prod_show.php?object_uid=13816865\",\"Описание\")","v":"Описание"}]
["9780702047299","Graham Douglas, Fion","Macleod's Clinical Examination International Edition, 13th Edition","Elsevier Science","2013","472","Mixed media product","13 rev ed",{"v":1094,"d":"1094.00"},{"$f":"HYPERLINK(\"https://www.logobook.ru/prod_show.php?object_uid=12368342\",\"Описание\")","v":"Описание"}]
["9780702069925","Innes, Dover &  Fair","Macleod's Clinical Examination International Edition, 14th Edition","Elsevier Science","2018","400","Paperback","",{"v":3348,"d":"3348.00"},{"$f":"HYPERLINK(\"https://www.logobook.ru/prod_show.php?object_uid=14116247\",\"Описание\")","v":"Описание"}]
["9780702074578","Hampton, John R.","The ECG Made Easy. 9 ed","Elsevier Science","2019","240","Paperback","9 revised edition",{"v":2655,"d":"2655.00"},{"$f":"HYPERLINK(\"https://www.logobook.ru/prod_show.php?object_uid=14368835\",\"Описание\")","v":"Описание"}]
["9780702046421","Hampton John R.","The ECG Made Easy, International Edition, 8th Edition","Elsevier Science","2013","208","Paperback","8 international ed",{"v":762,"d":"762.00"},{"$f":"HYPERLINK(\"https://www.logobook.ru/prod_show.php?object_uid=12402829\",\"Описание\")","v":"Описание"}]
["9780702074592","Hampton, John R.","150 ECG Cases, International Edition","Elsevier Science","2019","336","Paperback","",{"v":1962,"d":"1962.00"},{"$f":"HYPERLINK(\"https://www.logobook.ru/prod_show.php?object_uid=14209572\",\"Описание\")","v":"Описание"}]
["9780702074608","Hampton, John R.","The ECG Made Practical","Elsevier Science","2019","384","Paperback","7 revised edition",{"v":3695,"d":"3695.00"},{"$f":"HYPERLINK(\"https://www.logobook.ru/prod_show.php?object_uid=14368837\",\"Описание\")","v":"Описание"}]
["9781482231922","Helen Rimington","Echocardiography: A Practical Guide for Reporting, Third Edition","Taylor&Francis","2015","255","Paperback","3 revised edition",{"v":5911,"d":"5911.00"},{"$f":"HYPERLINK(\"https://www.logobook.ru/prod_show.php?object_uid=12776794\",\"Описание\")","v":"Описание"}]
["9781496397454","Strauss & Schocken","Marriott's Practical Electrocardiography.13 ed","Lippincott Williams & Wil","2020","500","Paperback","13 revised edition",{"v":10450,"d":"10450.00"},{"$f":"HYPERLINK(\"https://www.logobook.ru/prod_show.php?object_uid=15088927\",\"Описание\")","v":"Описание"}]
["9780323754835","McGee Steven.","Evidence-Based Physical Diagnosis. 5 ed","Elsevier Science","2021","720","Paperback           ","5th ed.",{"v":7391,"d":"7391.00"},{"$f":"HYPERLINK(\"https://www.logobook.ru/prod_show.php?object_uid=15529868\",\"Описание\")","v":"Описание"}]
["9789354657498","Boloor Archith","Abc Of Ecg","JayPee Brothers India","2022","","","1/E",{"v":1925,"d":"1925.00"},{"$f":"HYPERLINK(\"https://www.logobook.ru/prod_show.php?object_uid=15655803\",\"Описание\")","v":"Описание"}]
["9789389188585","By Gabriel M Khan","Rapid ECG Interpretation","JayPee Brothers India","2019","378","Paperback","4 revised edition",{"v":4531,"d":"4531.00"},{"$f":"HYPERLINK(\"https://www.logobook.ru/prod_show.php?object_uid=14859742\",\"Описание\")","v":"Описание"}]
["","","","","","","",""]
["#","3 Курс","Emergency medicine","","","","",""]
["","","","","","","",""]
["9780729543019","Fulde, Gordian W. O.","Emergency Medicine","Elsevier Science","2019","0","Paperback           ","7 revised edition",{"v":9816,"d":"9816.00"},{"$f":"HYPERLINK(\"https://www.logobook.ru/prod_show.php?object_uid=14360363\",\"Описание\")","v":"Описание"}]
["9780702073052","Cameron, Peter","Textbook of Paediatric Emergency Medicine","Elsevier Science","2018","688","Paperback","3 revised edition",{"v":9123,"d":"9123.00"},{"$f":"HYPERLINK(\"https://www.logobook.ru/prod_show.php?object_uid=13816897\",\"Описание\")","v":"Описание"}]
["9780323354783","Roberts, James R.","Roberts and Hedges' Clinical Procedures in Emergency Medicine and Acute Care","Elsevier Science","2018","1500","Hardback","7 revised edition",{"v":21366,"d":"21366.00"},{"$f":"HYPERLINK(\"https://www.logobook.ru/prod_show.php?object_uid=13646190\",\"Описание\")","v":"Описание"}]
["9780323443746","Emergency Nurses Ass","Emergency Nursing Core Curriculum","Elsevier Science","2017","768","Paperback","7 revised edition",{"v":9816,"d":"9816.00"},{"$f":"HYPERLINK(\"https://www.logobook.ru/prod_show.php?object_uid=13645925\",\"Описание\")","v":"Описание"}]
["9780323694735","Bakes, Katherine M.","Emergency Medicine Secrets. 7 ed.","Elsevier Science","2020","752","Paperback","7 revised edition",{"v":5889,"d":"5889.00"},{"$f":"HYPERLINK(\"https://www.logobook.ru/prod_show.php?object_uid=14967127\",\"Описание\")","v":"Описание"}]
["9780323354790","Walls, Ron","Rosen's Emergency Medicine: Concepts and Clinical Practice","Elsevier Science","2017","2700","Hardback","9 revised edition",{"v":35342,"d":"35342.00"},{"$f":"HYPERLINK(\"https://www.logobook.ru/prod_show.php?object_uid=13368786\",\"Описание\")","v":"Описание"}]
["9780071837026","Rita K. Cydulka et a","Tintinalli'S Emergency Medicine Manual","McGraw-Hill","2017","992","Paperback","8 rev ed",{"v":6874,"d":"6874.00"},{"$f":"HYPERLINK(\"https://www.logobook.ru/prod_show.php?object_uid=13368699\",\"Описание\")","v":"Описание"}]
["9781260019933","Tintinalli Judith E.","Tintinalli's Emergency Medicine: A Comprehensive Study Guide, 9 Ed","McGraw-Hill","2020","2160","Hardcover           ","9 ed",{"v":23236,"d":"23236.00"},{"$f":"HYPERLINK(\"https://www.logobook.ru/prod_show.php?object_uid=14669549\",\"Описание\")","v":"Описание"}]
["9781496386021","Phillip M. Stephens,","Emergency Medicine","Lippincott Williams & Wil","2018","206","Paperback","",{"v":4331,"d":"4331.00"},{"$f":"HYPERLINK(\"https://www.logobook.ru/prod_show.php?object_uid=14191949\",\"Описание\")","v":"Описание"}]
["","","","","","","",""]
["#","3 Курс","Immunology","","","","",""]
["","","","","","","",""]
["9780323549431","Abbas, Abul K.","Basic Immunology, 6  Ed","Elsevier Science","2019","336","Paperback","6 revised edition",{"v":6698,"d":"6698.00"},{"$f":"HYPERLINK(\"https://www.logobook.ru/prod_show.php?object_uid=14360371\",\"Описание\")","v":"Описание"}]
["9780323757492","Abbas, Abul","Cellular and Molecular Immunology,  International Edition","Elsevier Science","2021","","Paperback","10",{"v":5081,"d":"5081.00"},{"$f":"HYPERLINK(\"https://www.logobook.ru/prod_show.php?object_uid=15465206\",\"Описание\")","v":"Описание"}]
["9780323757485","Abbas, Lichtman & Pi","Cellular and Molecular Immunologyю 10 ed","Elsevier Science","2021","600","Paperback","10 ed",{"v":8546,"d":"8546.00"},{"$f":"HYPERLINK(\"https://www.logobook.ru/prod_show.php?object_uid=15278545\",\"Описание\")","v":"Описание"}]
["9780702078446","Male David, P Stoker","Immunology, 9 Ed","Elsevier Science","2020","512","Paperback","9 revised edition",{"v":8546,"d":"8546.00"},{"$f":"HYPERLINK(\"https://www.logobook.ru/prod_show.php?object_uid=14849891\",\"Описание\")","v":"Описание"}]
["9789390020539","S Apurba Sastry, San","Review of Microbiology & Immunology","JayPee Brothers India","2020","612","Paperback","9 revised edition",{"v":7968,"d":"7968.00"},{"$f":"HYPERLINK(\"https://www.logobook.ru/prod_show.php?object_uid=15351524\",\"Описание\")","v":"Описание"}]
["9781975172602","Thao Doan,","Lippincott illustrated reviews: immunology, 3 ed. IE","Lippincott Williams & Wil","2021","400","Paperback","Third, international",{"v":4744,"d":"4744.00"},{"$f":"HYPERLINK(\"https://www.logobook.ru/prod_show.php?object_uid=15314707\",\"Описание\")","v":"Описание"}]
["","","","","","","",""]
["#","3 Курс","Laboratory medicine","","","","",""]
["","","","","","","",""]
["9780323673204","Mcpherson, Richard A","Henry`s clinical diagnosis and management by laboratory methods","Elsevier Science","2021","1618","Hardback","24 ed",{"v":20789,"d":"20789.00"},{"$f":"HYPERLINK(\"https://www.logobook.ru/prod_show.php?object_uid=15493600\",\"Описание\")","v":"Описание"}]
["","","","","","","",""]
["#","3 Курс","Pathology","","","","",""]
["","","","","","","",""]
["9780323531139","Vinay Kumar, Abul K.","Robbins & Cotran Pathologic Basis Of Disease 10 ed. - Elsevier Science, СОЕДИНЕННОЕ КОРОЛЕВСТВО, 202","Elsevier Science","2021","1392","Hardcover           ","10 revised edition",{"v":12588,"d":"12588.00"},{"$f":"HYPERLINK(\"https://www.logobook.ru/prod_show.php?object_uid=14967879\",\"Описание\")","v":"Описание"}]
["9780323640183","Klatt, Edward C.","Robbins And Cotran Atlas Of Pathology, 4th edition","Elsevier Science","2020","546","Paperback","4 revised edition",{"v":6929,"d":"6929.00"},{"$f":"HYPERLINK(\"https://www.logobook.ru/prod_show.php?object_uid=14967011\",\"Описание\")","v":"Описание"}]
["9780323476683","Goljan, Edward F.","Rapid Review Pathology. 5 ed.- Elsevier","Elsevier Science","2019","864","Paperback","5 revised edition",{"v":7044,"d":"7044.00"},{"$f":"HYPERLINK(\"https://www.logobook.ru/prod_show.php?object_uid=13816862\",\"Описание\")","v":"Описание"}]
["9780702072055",", Roberts , MacDuff","Pathology Illustrated, International Edition, 8th Edition","Elsevier Science","2018","728","Paperback","",{"v":3579,"d":"3579.00"},{"$f":"HYPERLINK(\"https://www.logobook.ru/prod_show.php?object_uid=14174074\",\"Описание\")","v":"Описание"}]
["9780702072116","Cross, Simon S.","Underwood's Pathology: a Clinical Approach, 7 ed. IE","Elsevier Science","2018","776","Paperback","7 revised edition",{"v":4157,"d":"4157.00"},{"$f":"HYPERLINK(\"https://www.logobook.ru/prod_show.php?object_uid=14036929\",\"Описание\")","v":"Описание"}]
["9780323353175","Kumar, Vinay Abbas, ","Robbins Basic Pathology, 10th Edition","Elsevier Science","2017","952","Hardcover           ","10 revised edition",{"v":8199,"d":"8199.00"},{"$f":"HYPERLINK(\"https://www.logobook.ru/prod_show.php?object_uid=13470121\",\"Описание\")","v":"Описание"}]
["9780323480543","Kumar Vinay, Abbas A","Robbins Basic Pathology.10 IE","Elsevier Science","2018","928","Hardback","10 international ed",{"v":4619,"d":"4619.00"},{"$f":"HYPERLINK(\"https://www.logobook.ru/prod_show.php?object_uid=13419039\",\"Описание\")","v":"Описание"}]
["9781496350329","Rubin Emmanuel, Reis","Principles of rubins pathology. 7 ed","Lippincott Williams & Wil","2018","968","Paperback","7 revised edition",{"v":9625,"d":"9625.00"},{"$f":"HYPERLINK(\"https://www.logobook.ru/prod_show.php?object_uid=14274034\",\"Описание\")","v":"Описание"}]
["9781975141028","David S Strayer","Rubin's Pathology: Mechanisms of Human Disease 8 Ed. IE","Lippincott Williams & Wil","2019","1400","Hardback","Eighth, internationa",{"v":9625,"d":"9625.00"},{"$f":"HYPERLINK(\"https://www.logobook.ru/prod_show.php?object_uid=14462560\",\"Описание\")","v":"Описание"}]
["","","","","","","",""]
["#","3 Курс","Pathophysiology","","","","",""]
["","","","","","","",""]
["9780323681704","Sue E. Huether, Kath","Study Guide for Understanding Pathophysiology, 7th Edition","Elsevier Science","2020","0","Paperback","7 revised edition",{"v":4503,"d":"4503.00"},{"$f":"HYPERLINK(\"https://www.logobook.ru/prod_show.php?object_uid=14844670\",\"Описание\")","v":"Описание"}]
["9780323583473","McCance, Kathryn L. ","Pathophysiology. 8 ed.","Elsevier Science","2018","1720","Paperback","8 revised edition",{"v":13974,"d":"13974.00"},{"$f":"HYPERLINK(\"https://www.logobook.ru/prod_show.php?object_uid=13646148\",\"Описание\")","v":"Описание"}]
["9780323751506","Banasik, Jacquelyn L","Pathophysiology. 7 ed","Elsevier Science","2021","","Paperback","7 ed",{"v":13166,"d":"13166.00"},{"$f":"HYPERLINK(\"https://www.logobook.ru/prod_show.php?object_uid=15489447\",\"Описание\")","v":"Описание"}]
["9780323676977","Sue E. Huether, Kath","Understanding pathophysiology, 7 ed.","Elsevier Science","2019","","Paperback","7 revised edition",{"v":12821,"d":"12821.00"},{"$f":"HYPERLINK(\"https://www.logobook.ru/prod_show.php?object_uid=14796036\",\"Описание\")","v":"Описание"}]
["9781260026504","Hammer Gary D., McPh","Pathophysiology of Disease: An Introduction to Clinical Medicine 8e","McGraw-Hill","2018","832","Paperback           ","8",{"v":9486,"d":"9486.00"},{"$f":"HYPERLINK(\"https://www.logobook.ru/prod_show.php?object_uid=14159072\",\"Описание\")","v":"Описание"}]
["","","","","","","",""]
["#","3 Курс","Pediatrics","","","","",""]
["","","","","","","",""]
["9780702073694","Rodgers, Anna","Crash Course Paediatrics, 5th Edition","Elsevier Science","2019","326","Paperback           ","5 revised edition",{"v":3926,"d":"3926.00"},{"$f":"HYPERLINK(\"https://www.logobook.ru/prod_show.php?object_uid=14360362\",\"Описание\")","v":"Описание"}]
["9780323498258","Salazar Adler","Pediatrics Morning Report","Elsevier Science","2018","496","Paperback","",{"v":4388,"d":"4388.00"},{"$f":"HYPERLINK(\"https://www.logobook.ru/prod_show.php?object_uid=14182861\",\"Описание\")","v":"Описание"}]
["9780323510387","Wu, Hao-Hua","Gunner Goggles Pediatrics","Elsevier Science","2018","416","Paperback","1",{"v":4388,"d":"4388.00"},{"$f":"HYPERLINK(\"https://www.logobook.ru/prod_show.php?object_uid=13646035\",\"Описание\")","v":"Описание"}]
["9780702072925","Lissauer, Tom","Self-Assessment in Paediatrics","Elsevier Science","2017","320","Paperback","1",{"v":3117,"d":"3117.00"},{"$f":"HYPERLINK(\"https://www.logobook.ru/prod_show.php?object_uid=13142404\",\"Описание\")","v":"Описание"}]
["9780323529051","Nocton, James J.","On Call Pediatrics","Elsevier Science","2018","440","Paperback","4 revised edition",{"v":4388,"d":"4388.00"},{"$f":"HYPERLINK(\"https://www.logobook.ru/prod_show.php?object_uid=13816905\",\"Описание\")","v":"Описание"}]
["9780323511452","Marcdante, Karen","Nelson Essentials of Pediatrics, 8e","Elsevier Science","2018","816","Paperback","8 revised edition",{"v":8315,"d":"8315.00"},{"$f":"HYPERLINK(\"https://www.logobook.ru/prod_show.php?object_uid=13816899\",\"Описание\")","v":"Описание"}]
["9780729542517","Harris, Wayne","Examination Paediatrics","Elsevier Science","2017","752","Paperback","5 revised edition",{"v":7275,"d":"7275.00"},{"$f":"HYPERLINK(\"https://www.logobook.ru/prod_show.php?object_uid=13646058\",\"Описание\")","v":"Описание"}]
["9780323568906","Kliegman, Robert M.","Nelson Textbook of Pediatrics, International Edition, 21 Ed. : Elsevier Science","Elsevier Science","2019","3876","Hardback","",{"v":12324,"d":"12324.00"},{"$f":"HYPERLINK(\"https://www.logobook.ru/prod_show.php?object_uid=14209578\",\"Описание\")","v":"Описание"}]
["9780323529501","Kliegman, Robert M.","Nelson Textbook of Pediatrics, 2-Volume Set, 21 ed.","Elsevier Science","2019","3876","Hardcover           ","21 revised edition",{"v":17670,"d":"17670.00"},{"$f":"HYPERLINK(\"https://www.logobook.ru/prod_show.php?object_uid=14368521\",\"Описание\")","v":"Описание"}]
["9781496396464","Marino, Bradley","Blueprints Pediatrics. 7 Ed","Lippincott Williams & Wil","2019","416","Paperback","7 ed",{"v":5706,"d":"5706.00"},{"$f":"HYPERLINK(\"https://www.logobook.ru/prod_show.php?object_uid=14360015\",\"Описание\")","v":"Описание"}]
["","","","","","","",""]
["#","4 Курс","Clinical Examination","","","","",""]
["","","","","","","",""]
["9789354657498","Boloor Archith","Abc Of Ecg","JayPee Brothers India","2022","","","1/E",{"v":1925,"d":"1925.00"},{"$f":"HYPERLINK(\"https://www.logobook.ru/prod_show.php?object_uid=15655803\",\"Описание\")","v":"Описание"}]
["9789389188585","By Gabriel M Khan","Rapid ECG Interpretation","JayPee Brothers India","2019","378","Paperback","4 revised edition",{"v":4531,"d":"4531.00"},{"$f":"HYPERLINK(\"https://www.logobook.ru/prod_show.php?object_uid=14859742\",\"Описание\")","v":"Описание"}]
["9780323672924","Swartz, Mark H.","Textbook Of Physical Diagnosis. 8 ed","Elsevier Science","2020","704","Hardcover           ","8 revised edition",{"v":10625,"d":"10625.00"},{"$f":"HYPERLINK(\"https://www.logobook.ru/prod_show.php?object_uid=14968254\",\"Описание\")","v":"Описание"}]
["9780702067402","Glynn","Hutchison'S Clinical Methods 24 ed. IE","Elsevier Science","2017","544","Paperback","24 international ed",{"v":3695,"d":"3695.00"},{"$f":"HYPERLINK(\"https://www.logobook.ru/prod_show.php?object_uid=13645874\",\"Описание\")","v":"Описание"}]
["9780729542890","Talley, Nicholas J","Talley & O'Connor's Clinical Examination. 9 ed. International Edition","Elsevier Science","2018","962","Paperback","",{"v":4850,"d":"4850.00"},{"$f":"HYPERLINK(\"https://www.logobook.ru/prod_show.php?object_uid=14209583\",\"Описание\")","v":"Описание"}]
["9780702069925","Innes, Dover &  Fair","Macleod's Clinical Examination International Edition, 14th Edition","Elsevier Science","2018","400","Paperback","",{"v":3348,"d":"3348.00"},{"$f":"HYPERLINK(\"https://www.logobook.ru/prod_show.php?object_uid=14116247\",\"Описание\")","v":"Описание"}]
["9780702047299","Graham Douglas, Fion","Macleod's Clinical Examination International Edition, 13th Edition","Elsevier Science","2013","472","Mixed media product","13 rev ed",{"v":1094,"d":"1094.00"},{"$f":"HYPERLINK(\"https://www.logobook.ru/prod_show.php?object_uid=12368342\",\"Описание\")","v":"Описание"}]
["9780702046421","Hampton John R.","The ECG Made Easy, International Edition, 8th Edition","Elsevier Science","2013","208","Paperback","8 international ed",{"v":762,"d":"762.00"},{"$f":"HYPERLINK(\"https://www.logobook.ru/prod_show.php?object_uid=12402829\",\"Описание\")","v":"Описание"}]
["9780702074578","Hampton, John R.","The ECG Made Easy. 9 ed","Elsevier Science","2019","240","Paperback","9 revised edition",{"v":2655,"d":"2655.00"},{"$f":"HYPERLINK(\"https://www.logobook.ru/prod_show.php?object_uid=14368835\",\"Описание\")","v":"Описание"}]
["9781496397454","Strauss & Schocken","Marriott's Practical Electrocardiography.13 ed","Lippincott Williams & Wil","2020","500","Paperback","13 revised edition",{"v":10450,"d":"10450.00"},{"$f":"HYPERLINK(\"https://www.logobook.ru/prod_show.php?object_uid=15088927\",\"Описание\")","v":"Описание"}]
["9780323481953","Ball, Jane W.","Seidel's Guide to Physical Examination. 9 ed.","Elsevier Science","2018","736","Hardback","9 revised edition",{"v":13743,"d":"13743.00"},{"$f":"HYPERLINK(\"https://www.logobook.ru/prod_show.php?object_uid=13646019\",\"Описание\")","v":"Описание"}]
["9781975109912","Bickley, Lynn S. Szi","Bates' Guide To Physical Examination and History Taking 13 IE","Lippincott Williams & Wil","2020","1072","Hardback","Thirteenth, internat",{"v":6188,"d":"6188.00"},{"$f":"HYPERLINK(\"https://www.logobook.ru/prod_show.php?object_uid=15037445\",\"Описание\")","v":"Описание"}]
["9781975152420","Lynn S. Bickley","Bates' Pocket Guide to Physical Examination and History Taking. 9 ed. IE","Lippincott Williams & Wil","2020","600","Paperback","Ninth, international",{"v":3369,"d":"3369.00"},{"$f":"HYPERLINK(\"https://www.logobook.ru/prod_show.php?object_uid=15088947\",\"Описание\")","v":"Описание"}]
["","","","","","","",""]
["#","4 Курс","Clinical Medicine","","","","",""]
["","","","","","","",""]
["9780702072130","Lloyd, Bor &  Noble","Clinical Communication Skills for Medicine, 4th Edition","Elsevier Science","2018","240","Paperback","4 revised edition",{"v":3579,"d":"3579.00"},{"$f":"HYPERLINK(\"https://www.logobook.ru/prod_show.php?object_uid=13645963\",\"Описание\")","v":"Описание"}]
["9780702070273","Stuart H. Ralstone e","Davidson`s  Principles and  Practice of  Medicine IE, 23 Edi.","Elsevier Science","2018","1440","Paperback","",{"v":4503,"d":"4503.00"},{"$f":"HYPERLINK(\"https://www.logobook.ru/prod_show.php?object_uid=14036921\",\"Описание\")","v":"Описание"}]
["9780702078767","Innes, J. Alastair","Davidson's Essentials Of Medicine, 3 ed. International Edition","Elsevier Science","2020","784","Paperback","3",{"v":2540,"d":"2540.00"},{"$f":"HYPERLINK(\"https://www.logobook.ru/prod_show.php?object_uid=14968251\",\"Описание\")","v":"Описание"}]
["9780702071454","Wake D.","Davidson's Self-assessment in Medicine, International Edition","Elsevier Science","2018","464","Paperback","",{"v":1731,"d":"1731.00"},{"$f":"HYPERLINK(\"https://www.logobook.ru/prod_show.php?object_uid=14699235\",\"Описание\")","v":"Описание"}]
["9780702050473","Brian R.Walker, Nick","Davidson's Principles and Practice of Medicine. 22 ed. International Edition","Elsevier Science","2014","1392","Mixed media product","22 international ed",{"v":1647,"d":"1647.00"},{"$f":"HYPERLINK(\"https://www.logobook.ru/prod_show.php?object_uid=12520886\",\"Описание\")","v":"Описание"}]
["9780702078699","Feather, Adam","Kumar and Clark's Clinical Medicine 10 ed, Interntaional edition.","Elsevier Science","2020","1504","Paperback","10",{"v":4850,"d":"4850.00"},{"$f":"HYPERLINK(\"https://www.logobook.ru/prod_show.php?object_uid=14967997\",\"Описание\")","v":"Описание"}]
["9780702082795","Zammitt, Nicola","Essentials of kumar and clark`s clinical medicine. 7 ed","Elsevier Science","2021","928","Paperback","7 ed",{"v":4503,"d":"4503.00"},{"$f":"HYPERLINK(\"https://www.logobook.ru/prod_show.php?object_uid=15493604\",\"Описание\")","v":"Описание"}]
["9780702077326","Kumar, Parveen","Kumar & Clark'S Cases In Clinical Medicine. 4 ed.","Elsevier Science","2020","624","Paperback           ","4 revised edition",{"v":4041,"d":"4041.00"},{"$f":"HYPERLINK(\"https://www.logobook.ru/prod_show.php?object_uid=14967217\",\"Описание\")","v":"Описание"}]
["9780323640336","Goldman","Goldman-Cecil Medicine International Edition, 2-Volume Set, 26e","Elsevier Science","2019","2944","Hardback","",{"v":10509,"d":"10509.00"},{"$f":"HYPERLINK(\"https://www.logobook.ru/prod_show.php?object_uid=14699232\",\"Описание\")","v":"Описание"}]
["9781264268504","Loscalzo, Joseph Fau","Harrison`s principles of internal medicine,21 edition (vol.1 & vol.2)","McGraw-Hill","2022","2","Hardcover           ","21 ed",{"v":32101,"d":"32101.00"},{"$f":"HYPERLINK(\"https://www.logobook.ru/prod_show.php?object_uid=15654879\",\"Описание\")","v":"Описание"}]
["9780702077784","Slater, Thomas","Pocketbook of Differential Diagnosis, 6 ed. International Edition","Elsevier Science","2021","624","Paperback","5",{"v":2309,"d":"2309.00"},{"$f":"HYPERLINK(\"https://www.logobook.ru/prod_show.php?object_uid=15465209\",\"Описание\")","v":"Описание"}]
["","","","","","","",""]
["#","4 Курс","Cerebro-vascular disease","","","","",""]
["","","","","","","",""]
["9780128030585","Caplan, Louis R.","Primer on Cerebrovascular Diseases","Elsevier Science","2017","1000","Hardback","2 rev ed",{"v":14322,"d":"14322.00"},{"$f":"HYPERLINK(\"https://www.logobook.ru/prod_show.php?object_uid=13338689\",\"Описание\")","v":"Описание"}]
["","","","","","","",""]
["#","4 Курс","Dermatology","","","","",""]
["","","","","","","",""]
["9783131323415","Schaller, Martin et ","Color Atlas of Dermatology","Thieme Verlagsgruppe","2012","424","Paperback","1",{"v":5196,"d":"5196.00"},{"$f":"HYPERLINK(\"https://www.logobook.ru/prod_show.php?object_uid=12025574\",\"Описание\")","v":"Описание"}]
["9780323430401","Marks, James G.","Lookingbill and Marks' Principles of Dermatology. 6 ed.","Elsevier Science","2018","336","Paperback","6 revised edition",{"v":9123,"d":"9123.00"},{"$f":"HYPERLINK(\"https://www.logobook.ru/prod_show.php?object_uid=13645946\",\"Описание\")","v":"Описание"}]
["9780323612692","Dinulos James G. H.","Clinical Dermatology. 7 ed.","Elsevier Science","2020","1086","Hardcover","7 revised edition",{"v":20327,"d":"20327.00"},{"$f":"HYPERLINK(\"https://www.logobook.ru/prod_show.php?object_uid=14569115\",\"Описание\")","v":"Описание"}]
["9780702079962","Gawkrodger, David , ","Dermatology: An Illustrated Colour Text. 7 ed.","Elsevier Science","2020","192","Paperback","7 revised edition",{"v":4850,"d":"4850.00"},{"$f":"HYPERLINK(\"https://www.logobook.ru/prod_show.php?object_uid=14967174\",\"Описание\")","v":"Описание"}]
["9780323547543","James, William D.","Andrews' Diseases of the Skin, International Edition","Elsevier Science","2019","1008","Paperback","",{"v":13974,"d":"13974.00"},{"$f":"HYPERLINK(\"https://www.logobook.ru/prod_show.php?object_uid=14209576\",\"Описание\")","v":"Описание"}]
["9780323530392","Ferri, Fred F.","Ferri's Fast Facts in Dermatology. 2 ed.","Elsevier Science","2017","504","Paperback","2 revised edition",{"v":4388,"d":"4388.00"},{"$f":"HYPERLINK(\"https://www.logobook.ru/prod_show.php?object_uid=13646013\",\"Описание\")","v":"Описание"}]
["9780323673235","High, Whitney A.","Dermatology secrets. 6 ed.","Elsevier Science","2020","688","Paperback","6 ed",{"v":5889,"d":"5889.00"},{"$f":"HYPERLINK(\"https://www.logobook.ru/prod_show.php?object_uid=15248053\",\"Описание\")","v":"Описание"}]
["9781119488989","Rachael Morris-Jones","ABC of Dermatology, 7 ed.","Wiley","2019","280","Paperback","7th edition",{"v":5631,"d":"5631.00"},{"$f":"HYPERLINK(\"https://www.logobook.ru/prod_show.php?object_uid=14699263\",\"Описание\")","v":"Описание"}]
["9781118887776","Graham-Brown, Robin ","Lecture Notes: Dermatology. 11 ed.","Wiley","2016","224","Paperback","11 revised edition",{"v":4256,"d":"4256.00"},{"$f":"HYPERLINK(\"https://www.logobook.ru/prod_show.php?object_uid=12955179\",\"Описание\")","v":"Описание"}]
["9781264257379","Carol A. Soutor, Mar","Clinical Dermatology: Diagnosis and Management of Common Disorders, 2 Ed","McGraw-Hill","2022","608","Paperback","2 ed",{"v":7974,"d":"7974.00"},{"$f":"HYPERLINK(\"https://www.logobook.ru/prod_show.php?object_uid=15621110\",\"Описание\")","v":"Описание"}]
["9781259642197","Wolff Klaus, Johnson","Fitzpatrick's Color Atlas and Synopsis of Clinical Dermatology, 8 Ed.","McGraw-Hill","2017","1104","Paperback           ","8 rev ed",{"v":8524,"d":"8524.00"},{"$f":"HYPERLINK(\"https://www.logobook.ru/prod_show.php?object_uid=13206423\",\"Описание\")","v":"Описание"}]
["9780198747925","Susan Burge, Rubeta ","Oxford Handbook of Medical Dermatology, 2 ed.","Oxford Academ","2016","712","Part-work (fasciculo","2 rev ed",{"v":4792,"d":"4792.00"},{"$f":"HYPERLINK(\"https://www.logobook.ru/prod_show.php?object_uid=13087714\",\"Описание\")","v":"Описание"}]
["","","","","","","",""]
["#","4 Курс","Emergency medicine","","","","",""]
["","","","","","","",""]
["9780323673013","Veenema, Tener Goodw","ReadyRN: Handbook for Disaster Nursing and Emergency Preparedness, 2nd Edition","Elsevier Science","2018","","Paperback","2 revised edition",{"v":4734,"d":"4734.00"},{"$f":"HYPERLINK(\"https://www.logobook.ru/prod_show.php?object_uid=14360364\",\"Описание\")","v":"Описание"}]
["9781260019933","Tintinalli Judith E.","Tintinalli's Emergency Medicine: A Comprehensive Study Guide, 9 Ed","McGraw-Hill","2020","2160","Hardcover           ","9 ed",{"v":23236,"d":"23236.00"},{"$f":"HYPERLINK(\"https://www.logobook.ru/prod_show.php?object_uid=14669549\",\"Описание\")","v":"Описание"}]
["9781496386021","Phillip M. Stephens,","Emergency Medicine","Lippincott Williams & Wil","2018","206","Paperback","",{"v":4331,"d":"4331.00"},{"$f":"HYPERLINK(\"https://www.logobook.ru/prod_show.php?object_uid=14191949\",\"Описание\")","v":"Описание"}]
["9780323694735","Bakes, Katherine M.","Emergency Medicine Secrets. 7 ed.","Elsevier Science","2020","752","Paperback","7 revised edition",{"v":5889,"d":"5889.00"},{"$f":"HYPERLINK(\"https://www.logobook.ru/prod_show.php?object_uid=14967127\",\"Описание\")","v":"Описание"}]
["","","","","","","",""]
["#","4 Курс","Public Health, Epidemiology","","","","",""]
["","","","","","","",""]
["9780323642019","Elmore Joann G.","Jekel's Epidemiology, Biostatistics, Preventive Medicine, and Public Health, 5 Ed","Elsevier Science","2020","432","Paperback","5 revised edition",{"v":8909,"d":"8909.00"},{"$f":"HYPERLINK(\"https://www.logobook.ru/prod_show.php?object_uid=14569128\",\"Описание\")","v":"Описание"}]
["9781451130171","Glaser, Anthony N.","High-Yield Biostatistics, Epidemiology, and Public Health. 4 ed.","Lippincott Williams & Wil","2014","168","Paperback","4 ed",{"v":4606,"d":"4606.00"},{"$f":"HYPERLINK(\"https://www.logobook.ru/prod_show.php?object_uid=12300964\",\"Описание\")","v":"Описание"}]
["9783030163679","Krickeberg, Klaus Va","Epidemiology:  Key to Public Health. 2 ed","Springer","2019","264","Hardcover           ","2nd ed. 2019",{"v":11549,"d":"11549.00"},{"$f":"HYPERLINK(\"https://www.logobook.ru/prod_show.php?object_uid=14886622\",\"Описание\")","v":"Описание"}]
["9780323188197","Nies Mary A., McEwen","Community/Public Health Nursing: Promoting the Health of Populations","Elsevier Science","2014","712","Paperback           ","6 revised edition",{"v":2310,"d":"2310.00"},{"$f":"HYPERLINK(\"https://www.logobook.ru/prod_show.php?object_uid=12622659\",\"Описание\")","v":"Описание"}]
["9789354655449","Jain Vivek","Review Of Preventive & Social Medicine (Including Biostatistics)","JayPee Brothers India","2021","936","Paperback","13 revised edition",{"v":8938,"d":"8938.00"},{"$f":"HYPERLINK(\"https://www.logobook.ru/prod_show.php?object_uid=15655893\",\"Описание\")","v":"Описание"}]
["9780198800125","Kawachi I.","Oxford handbook of public health practice 4e","Oxford Academ","2020","688","Paperback","4 revised edition",{"v":4792,"d":"4792.00"},{"$f":"HYPERLINK(\"https://www.logobook.ru/prod_show.php?object_uid=15141750\",\"Описание\")","v":"Описание"}]
["","","","","","","",""]
["#","4 Курс","General Surgery","","","","",""]
["","","","","","","",""]
["9780702068591","Garden & Parks","Principles  and Practice of  Surgery, 7th  Edition","Elsevier Science","2017","640","Paperback","7 revised edition",{"v":7622,"d":"7622.00"},{"$f":"HYPERLINK(\"https://www.logobook.ru/prod_show.php?object_uid=13368811\",\"Описание\")","v":"Описание"}]
["9780702068584","Garden & Parks","Principles  and Practice of  Surgery,  International  Edition, 7th  Edition","Elsevier Science","2017","580","Paperback","International ed",{"v":4272,"d":"4272.00"},{"$f":"HYPERLINK(\"https://www.logobook.ru/prod_show.php?object_uid=13644724\",\"Описание\")","v":"Описание"}]
["9780323510400","Wu, Hao-Hua","Gunner Goggles Surgery","Elsevier Science","2018","544","Paperback","1",{"v":4388,"d":"4388.00"},{"$f":"HYPERLINK(\"https://www.logobook.ru/prod_show.php?object_uid=13646037\",\"Описание\")","v":"Описание"}]
["9780702073229","Myint, Fiona (Consul","Kirk's Basic Surgical Technique","Elsevier Science","2018","272","Paperback","7 revised edition",{"v":5658,"d":"5658.00"},{"$f":"HYPERLINK(\"https://www.logobook.ru/prod_show.php?object_uid=13816913\",\"Описание\")","v":"Описание"}]
["9780702073212","Myint","Kirk's Basic Surgical Techniques. International Edition, 7 Ed.","Elsevier Science","2018","272","Paperback","",{"v":2771,"d":"2771.00"},{"$f":"HYPERLINK(\"https://www.logobook.ru/prod_show.php?object_uid=14132041\",\"Описание\")","v":"Описание"}]
["9781975106652","Lawrence, Dr. Peter ","Essentials of General Surgery and Surgical Specialties","Lippincott Williams & Wil","2018","860","Paperback","Sixth, international",{"v":7563,"d":"7563.00"},{"$f":"HYPERLINK(\"https://www.logobook.ru/prod_show.php?object_uid=14333898\",\"Описание\")","v":"Описание"}]
["9780702066290","Ramachandran, Manoj","Clinical Cases and OSCEs in Surgery","Elsevier Science","2017","320","Paperback","3 revised edition",{"v":5312,"d":"5312.00"},{"$f":"HYPERLINK(\"https://www.logobook.ru/prod_show.php?object_uid=13368810\",\"Описание\")","v":"Описание"}]
["9781451193329","Porrett Paige M., Ro","The Surgical Review: An Integrated Basic and Clinical Science Study Guide. 4 ed","Lippincott Williams & Wil","2015","496","Paperback","4 ed",{"v":10175,"d":"10175.00"},{"$f":"HYPERLINK(\"https://www.logobook.ru/prod_show.php?object_uid=12854942\",\"Описание\")","v":"Описание"}]
["","","","","","","",""]
["#","4 Курс","Immunology & Allergy","","","","",""]
["","","","","","","",""]
["9780702068010","Helbert, Matthew (Co","Immunology for Medical Students.","Elsevier Science","2016","344","Paperback           ","3 revised edition",{"v":5312,"d":"5312.00"},{"$f":"HYPERLINK(\"https://www.logobook.ru/prod_show.php?object_uid=13060787\",\"Описание\")","v":"Описание"}]
["9780323674621","Donald Y. M. Leung e","Pediatric Allergy: Principles and Practice, 4 ed.","Elsevier Science","2020","440","Hardback","4 revised edition",{"v":12357,"d":"12357.00"},{"$f":"HYPERLINK(\"https://www.logobook.ru/prod_show.php?object_uid=15239141\",\"Описание\")","v":"Описание"}]
["9780323375795","O`Hehir, Professor R","Middleton's Allergy Essentials","Elsevier Science","2016","424","Hardback","",{"v":11549,"d":"11549.00"},{"$f":"HYPERLINK(\"https://www.logobook.ru/prod_show.php?object_uid=13088465\",\"Описание\")","v":"Описание"}]
["9780702078446","Male David, P Stoker","Immunology, 9 Ed","Elsevier Science","2020","512","Paperback","9 revised edition",{"v":8546,"d":"8546.00"},{"$f":"HYPERLINK(\"https://www.logobook.ru/prod_show.php?object_uid=14849891\",\"Описание\")","v":"Описание"}]
["9781975172602","Thao Doan,","Lippincott illustrated reviews: immunology, 3 ed. IE","Lippincott Williams & Wil","2021","400","Paperback","Third, international",{"v":4744,"d":"4744.00"},{"$f":"HYPERLINK(\"https://www.logobook.ru/prod_show.php?object_uid=15314707\",\"Описание\")","v":"Описание"}]
["9780323549431","Abbas, Abul K.","Basic Immunology, 6  Ed","Elsevier Science","2019","336","Paperback","6 revised edition",{"v":6698,"d":"6698.00"},{"$f":"HYPERLINK(\"https://www.logobook.ru/prod_show.php?object_uid=14360371\",\"Описание\")","v":"Описание"}]
["9780323757485","Abbas, Lichtman & Pi","Cellular and Molecular Immunologyю 10 ed","Elsevier Science","2021","600","Paperback","10 ed",{"v":8546,"d":"8546.00"},{"$f":"HYPERLINK(\"https://www.logobook.ru/prod_show.php?object_uid=15278545\",\"Описание\")","v":"Описание"}]
["9780198789529","Gavin Spickett,","Oxford Handbook  of Clinical  Immunology and  Allergy  4 ED","Oxford Academ","2019","816","Flexi binding","4 revised edition",{"v":4792,"d":"4792.00"},{"$f":"HYPERLINK(\"https://www.logobook.ru/prod_show.php?object_uid=14614594\",\"Описание\")","v":"Описание"}]
["","","","","","","",""]
["#","4 Курс","Infectious disease","","","","",""]
["","","","","","","",""]
["9780729542944","Zhu, Frank","Anti-Infection Handbook","Elsevier Science","2018","536","Paperback           ","",{"v":8430,"d":"8430.00"},{"$f":"HYPERLINK(\"https://www.logobook.ru/prod_show.php?object_uid=14360366\",\"Описание\")","v":"Описание"}]
["9780323442145","","Graphic Guide to Infectious Disease / Kloss, Brian  Travis, Bruce. - Elsevier Science, СОЕДИНЕННОЕ К","Elsevier Science","2018","320","Paperback","1",{"v":4388,"d":"4388.00"},{"$f":"HYPERLINK(\"https://www.logobook.ru/prod_show.php?object_uid=13816866\",\"Описание\")","v":"Описание"}]
["9781260143652","Southwick, Frederick","Infectious Diseases: A Clinical Short Course, 4 ed","McGraw-Hill","2020","496","Paperback","4 ed",{"v":9074,"d":"9074.00"},{"$f":"HYPERLINK(\"https://www.logobook.ru/prod_show.php?object_uid=15063147\",\"Описание\")","v":"Описание"}]
["9781260455342","Kasper, Dennis et al","Harrisons Manual of Medicine 20th Edition","McGraw-Hill","2019","1344","Paperback           ","20 ed",{"v":9486,"d":"9486.00"},{"$f":"HYPERLINK(\"https://www.logobook.ru/prod_show.php?object_uid=14663923\",\"Описание\")","v":"Описание"}]
["9780199671328","Toeroek, Estee","Oxford Handbook of Infectious Diseases and Microbiology, 2 ed.","Oxford Academ","2016","912","Part-work (fasciculo","2 rev ed",{"v":5066,"d":"5066.00"},{"$f":"HYPERLINK(\"https://www.logobook.ru/prod_show.php?object_uid=13253852\",\"Описание\")","v":"Описание"}]
["","","","","","","",""]
["#","4 Курс","Neurology","","","","",""]
["","","","","","","",""]
["9780323554763","Srinivasan, Jayashri","Netter's Neurology, 3 ed.","Elsevier Science","2019","784","Hardcover           ","3 revised edition",{"v":10047,"d":"10047.00"},{"$f":"HYPERLINK(\"https://www.logobook.ru/prod_show.php?object_uid=14368578\",\"Описание\")","v":"Описание"}]
["9780323510363","Wu, Hao-Hua","Gunner Goggles Neurology","Elsevier Science","2018","320","Paperback","1",{"v":4388,"d":"4388.00"},{"$f":"HYPERLINK(\"https://www.logobook.ru/prod_show.php?object_uid=13646033\",\"Описание\")","v":"Описание"}]
["9780323482547","Misulis, Karl E.","Netter's Concise Neurology Updated Edition","Elsevier Science","2016","576","Paperback","Updated ed",{"v":7127,"d":"7127.00"},{"$f":"HYPERLINK(\"https://www.logobook.ru/prod_show.php?object_uid=13142205\",\"Описание\")","v":"Описание"}]
["9780323480918","Rubin, Michael","Netter's Concise Neuroanatomy Updated Edition","Elsevier Science","2016","424","Paperback","Updated ed",{"v":5543,"d":"5543.00"},{"$f":"HYPERLINK(\"https://www.logobook.ru/prod_show.php?object_uid=13142204\",\"Описание\")","v":"Описание"}]
["9780702076282","Fuller Geraint","Neurological Examination Made easy,  6 IE","Elsevier Science","2019","256","Paperback","",{"v":1962,"d":"1962.00"},{"$f":"HYPERLINK(\"https://www.logobook.ru/prod_show.php?object_uid=14209570\",\"Описание\")","v":"Описание"}]
["9780443069789","Lindsay, Kenneth W. ","Neurology and Neurosurgery Illustrated, IEdition. - Elsevier Science, 5th Ed.","Elsevier Science","2010","608","Paperback","5 international ed",{"v":2886,"d":"2886.00"},{"$f":"HYPERLINK(\"https://www.logobook.ru/prod_show.php?object_uid=11795979\",\"Описание\")","v":"Описание"}]
["9783132409583","Bahr, Mathias Frotsc","Duus' Topical Diagnosis in Neurology: Anatomy, Physiology, Signs, Symptom, 6 ed / Mathias Bahr, Mich","Thieme Verlagsgruppe","2019","332","Paperback","6 new edition",{"v":6929,"d":"6929.00"},{"$f":"HYPERLINK(\"https://www.logobook.ru/prod_show.php?object_uid=14263128\",\"Описание\")","v":"Описание"}]
["9781975106683","Haines, Duane E.","Neuroanatomy Atlas in  Clinical Context: Structures,  Sections,  Systems","Lippincott Williams & Wil","2018","384","Paperback","Tenth, international",{"v":4881,"d":"4881.00"},{"$f":"HYPERLINK(\"https://www.logobook.ru/prod_show.php?object_uid=14174413\",\"Описание\")","v":"Описание"}]
["9781260469134","David Greenberg, Mic","Clinical Neurology, 11 Ed, IE","McGraw-Hill","2021","","","",{"v":6324,"d":"6324.00"},{"$f":"HYPERLINK(\"https://www.logobook.ru/prod_show.php?object_uid=15612317\",\"Описание\")","v":"Описание"}]
["9781975110741","Alberto J. Espay, Jo","Concise Neurology Clinical Primer . 2E","Lippincott Williams & Wil","2020","380","Paperback","2 ed",{"v":9625,"d":"9625.00"},{"$f":"HYPERLINK(\"https://www.logobook.ru/prod_show.php?object_uid=14856315\",\"Описание\")","v":"Описание"}]
["9781975121112","Kister, Ilya, MD, FA","Top 100 Diagnoses in Neurology","Lippincott Williams & Wil","2020","337","Paperback","1",{"v":9350,"d":"9350.00"},{"$f":"HYPERLINK(\"https://www.logobook.ru/prod_show.php?object_uid=15037455\",\"Описание\")","v":"Описание"}]
["9781496326959","Biller, Jose, MD, FA","Practical Neurology. 5 ed","Lippincott Williams & Wil","2017","962","Paperback","5 rev ed",{"v":12925,"d":"12925.00"},{"$f":"HYPERLINK(\"https://www.logobook.ru/prod_show.php?object_uid=13339113\",\"Описание\")","v":"Описание"}]
["9780199601172","Manji, Hadi (Consult","Oxford Handbook of Neurology, 2 ed.","Oxford Academ","2014","656","Flexi binding","2 rev ed",{"v":5066,"d":"5066.00"},{"$f":"HYPERLINK(\"https://www.logobook.ru/prod_show.php?object_uid=12428853\",\"Описание\")","v":"Описание"}]
["","","","","","","",""]
["#","4 Курс","Neonatology","","","","",""]
["","","","","","","",""]
["9780323608541","Fanaroff, Avroy A.","Klaus and Fanaroff's Care of the High-Risk Neonate, 7th Edition","Elsevier Science","2019","640","Hardcover           ","7 revised edition",{"v":9470,"d":"9470.00"},{"$f":"HYPERLINK(\"https://www.logobook.ru/prod_show.php?object_uid=14569132\",\"Описание\")","v":"Описание"}]
["9780323567114","Richard J. Martin, A","Fanaroff and Martin's Neonatal-Perinatal Medicine, 2-Volume Set","Elsevier Science","2019","2157","Hardcover           ","11 revised edition",{"v":28874,"d":"28874.00"},{"$f":"HYPERLINK(\"https://www.logobook.ru/prod_show.php?object_uid=14569104\",\"Описание\")","v":"Описание"}]
["9780323549325","Chess, Patricia","Avery's Neonatology Board Review","Elsevier Science","2019","400","Paperback","1",{"v":10625,"d":"10625.00"},{"$f":"HYPERLINK(\"https://www.logobook.ru/prod_show.php?object_uid=14368556\",\"Описание\")","v":"Описание"}]
["9781975159528","Ann R. Stark, Anne R","Cloherty and Stark's  Manual of Neonatal Care","Lippincott Williams & Wil","2022","1200","Paperback","9 ed",{"v":7838,"d":"7838.00"},{"$f":"HYPERLINK(\"https://www.logobook.ru/prod_show.php?object_uid=15666240\",\"Описание\")","v":"Описание"}]
["9781118913192","Lomax Anne","Examination of the Newborn","Wiley","2015","266","Paperback","2 revised edition",{"v":3988,"d":"3988.00"},{"$f":"HYPERLINK(\"https://www.logobook.ru/prod_show.php?object_uid=12840449\",\"Описание\")","v":"Описание"}]
["9781119513193","","Neonatology at a Glance, 4th edition","Wiley","2020","256","Paperback","4th edition",{"v":4806,"d":"4806.00"},{"$f":"HYPERLINK(\"https://www.logobook.ru/prod_show.php?object_uid=14845249\",\"Описание\")","v":"Описание"}]
["9781259644818","Gomella L.T.","Gomella's Neonatology, Eighth Edition","McGraw-Hill","2020","1472","Paperback","8 ed",{"v":7424,"d":"7424.00"},{"$f":"HYPERLINK(\"https://www.logobook.ru/prod_show.php?object_uid=14864636\",\"Описание\")","v":"Описание"}]
["9781610025249","Gary M Weiner","Textbook of Neonatal Resuscitation. 2 ed","Eurospan","2021","350","Paperback","8 revised edition",{"v":9580,"d":"9580.00"},{"$f":"HYPERLINK(\"https://www.logobook.ru/prod_show.php?object_uid=15310605\",\"Описание\")","v":"Описание"}]
["","","","","","","",""]
["#","4 Курс","Obstetrica & Gynecology","","","","",""]
["","","","","","","",""]
["9780702070006","Guillebaud John","Contraception: Your Questions Answered","Elsevier Science","2017","424","Paperback","7 revised edition",{"v":5774,"d":"5774.00"},{"$f":"HYPERLINK(\"https://www.logobook.ru/prod_show.php?object_uid=13606350\",\"Описание\")","v":"Описание"}]
["9781975134877","Callahan, Dr. Tamara","Blueprints: Obstetrics & Gynecology  7 ed, Revised Reprint","Lippincott Williams & Wil","2018","529","Paperback","Seventh, revised rep",{"v":5431,"d":"5431.00"},{"$f":"HYPERLINK(\"https://www.logobook.ru/prod_show.php?object_uid=14360075\",\"Описание\")","v":"Описание"}]
["9780702083013","Oats & Boyle","Llewellyn-Jones Fundamentals of Obstetrics and Gynaecology, 11 Ed","Elsevier Science","2022","384","Paperback","11 ed",{"v":4965,"d":"4965.00"},{"$f":"HYPERLINK(\"https://www.logobook.ru/prod_show.php?object_uid=15621116\",\"Описание\")","v":"Описание"}]
["9780323496131","","Obstetrics & Gynecology Morning Report: Beyond the Pearls, 1e / Meriwether Kate, Joey England. - Els","Elsevier Science","2018","480","Paperback","1",{"v":4388,"d":"4388.00"},{"$f":"HYPERLINK(\"https://www.logobook.ru/prod_show.php?object_uid=13645986\",\"Описание\")","v":"Описание"}]
["9780323510370","Wu, Hao-Hua","Gunner Goggles Obstetrics and Gynecology","Elsevier Science","2018","360","Paperback","1",{"v":4388,"d":"4388.00"},{"$f":"HYPERLINK(\"https://www.logobook.ru/prod_show.php?object_uid=13646034\",\"Описание\")","v":"Описание"}]
["9780702074042","Magowan, Brian A. Ow","Clinical Obstetrics and Gynaecology","Elsevier Science","2018","472","Paperback","4 revised edition",{"v":5196,"d":"5196.00"},{"$f":"HYPERLINK(\"https://www.logobook.ru/prod_show.php?object_uid=13816910\",\"Описание\")","v":"Описание"}]
["9780702074059","","Clinical Obstetrics and Gynaecology, International Edition, 4 Ed.","Elsevier Science","2018","416","Paperback","",{"v":3002,"d":"3002.00"},{"$f":"HYPERLINK(\"https://www.logobook.ru/prod_show.php?object_uid=14007698\",\"Описание\")","v":"Описание"}]
["9781455775583","Hacker, Neville F. (","Hacker & Moore's Essentials of Obstetrics and Gynecology","Elsevier Science","2015","512","Paperback","6 revised edition",{"v":5774,"d":"5774.00"},{"$f":"HYPERLINK(\"https://www.logobook.ru/prod_show.php?object_uid=12462639\",\"Описание\")","v":"Описание"}]
["9780323340533","Hacker, Neville F. G","Essentials Of  Obstetrics and  Gynecology 6E IE.","Elsevier Science","2016","","Paperback","6 international ed",{"v":4388,"d":"4388.00"},{"$f":"HYPERLINK(\"https://www.logobook.ru/prod_show.php?object_uid=12925652\",\"Описание\")","v":"Описание"}]
["9780729542524","Goh, Judith Flynn, M","Examination obstetrics & gynaecology","Elsevier Science","2017","400","Paperback","4 revised edition",{"v":6813,"d":"6813.00"},{"$f":"HYPERLINK(\"https://www.logobook.ru/prod_show.php?object_uid=13573378\",\"Описание\")","v":"Описание"}]
["9781975106669","Robert Casanova","Beckmann and Ling's Obstetrics and Gynecology, 8 ed.IE","Lippincott Williams & Wil","2018","0","Paperback","Eighth, internationa",{"v":5225,"d":"5225.00"},{"$f":"HYPERLINK(\"https://www.logobook.ru/prod_show.php?object_uid=14014199\",\"Описание\")","v":"Описание"}]
["","","","","","","",""]
["#","4 Курс","Ophthalmology","","","","",""]
["","","","","","","",""]
["9780323528207","Yanoff, Myron","Ophthalmology, International Edition","Elsevier Science","2018","1440","Paperback","",{"v":21944,"d":"21944.00"},{"$f":"HYPERLINK(\"https://www.logobook.ru/prod_show.php?object_uid=14209589\",\"Описание\")","v":"Описание"}]
["9780702077128","Salmon J. F.","Kanski'S Clinical Ophthalmology International 9 Edition","Elsevier Science","2019","928","Paperback","9",{"v":10856,"d":"10856.00"},{"$f":"HYPERLINK(\"https://www.logobook.ru/prod_show.php?object_uid=14968809\",\"Описание\")","v":"Описание"}]
["9780702075025","Batterbury, Mark","Ophthalmology, 4 ed.","Elsevier Science","2018","136","Paperback           ","4 revised edition",{"v":3695,"d":"3695.00"},{"$f":"HYPERLINK(\"https://www.logobook.ru/prod_show.php?object_uid=14231620\",\"Описание\")","v":"Описание"}]
["9780702079931","Forrester, John V.","The Eye","Elsevier Science","2020","568","Hardcover           ","5 revised edition",{"v":11318,"d":"11318.00"},{"$f":"HYPERLINK(\"https://www.logobook.ru/prod_show.php?object_uid=14967168\",\"Описание\")","v":"Описание"}]
["9781496337177","Eagle, Ralph C.","Eye Pathology: An Atlas and Text, 2016","Lippincott Williams & Wil","2016","384","Hardback","3 ed",{"v":19388,"d":"19388.00"},{"$f":"HYPERLINK(\"https://www.logobook.ru/prod_show.php?object_uid=13331477\",\"Описание\")","v":"Описание"}]
["","","","","","","",""]
["#","4 Курс","Otolaryngology","","","","",""]
["","","","","","","",""]
["9783137170044","George Laskaris","Color Atlas of Oral Diseases","Thieme Verlagsgruppe","2017","710","Hardback","4",{"v":19634,"d":"19634.00"},{"$f":"HYPERLINK(\"https://www.logobook.ru/prod_show.php?object_uid=13775557\",\"Описание\")","v":"Описание"}]
["9780323612166","Flint, Paul W.","Cummings Otolaryngology - International Edition","Elsevier Science","2020","3568","Hardback","7",{"v":40770,"d":"40770.00"},{"$f":"HYPERLINK(\"https://www.logobook.ru/prod_show.php?object_uid=14967896\",\"Описание\")","v":"Описание"}]
["9781626234079","Goldenberg David, Go","Handbook of Otolaryngology: Head and Neck Surgery, 2 ed.","Thieme Verlagsgruppe","2017","779","Paperback","2",{"v":10394,"d":"10394.00"},{"$f":"HYPERLINK(\"https://www.logobook.ru/prod_show.php?object_uid=13916235\",\"Описание\")","v":"Описание"}]
["9780323279727","Flint, Paul","Cummings Otolaryngology - International Edition 6th Edition  Head and Neck Surgery, 3-Volume Set","Elsevier Science","2014","3624","Paperback","6",{"v":35919,"d":"35919.00"},{"$f":"HYPERLINK(\"https://www.logobook.ru/prod_show.php?object_uid=12771342\",\"Описание\")","v":"Описание"}]
["9780323544603","Rudmik Luke","Evidence-Based Clinical Practice in Otolaryngology","Elsevier Science","2018","202","Hardback","1",{"v":9701,"d":"9701.00"},{"$f":"HYPERLINK(\"https://www.logobook.ru/prod_show.php?object_uid=13816917\",\"Описание\")","v":"Описание"}]
["9780323401944","Lin, Harrison W. Rob","Cummings Review of Otolaryngology.","Elsevier Science","2017","448","Paperback           ","",{"v":7968,"d":"7968.00"},{"$f":"HYPERLINK(\"https://www.logobook.ru/prod_show.php?object_uid=13088702\",\"Описание\")","v":"Описание"}]
["9781626237292","Valente, Michael Val","Adult Audiology Casebook","Thieme Verlagsgruppe","2020","292","Paperback","2",{"v":10394,"d":"10394.00"},{"$f":"HYPERLINK(\"https://www.logobook.ru/prod_show.php?object_uid=14854750\",\"Описание\")","v":"Описание"}]
["","","","","","","",""]
["#","5 Курс","Abdominal surgery","","","","",""]
["","","","","","","",""]
["9780702072505","Parks, Rowan W","Hepatobiliary and Pancreatic Surgery, 6 ed.","Elsevier Science","2018","400","Hardback","6 revised edition",{"v":11318,"d":"11318.00"},{"$f":"HYPERLINK(\"https://www.logobook.ru/prod_show.php?object_uid=13816880\",\"Описание\")","v":"Описание"}]
["9780702072437","Clark, Sue","Colorectal Surgery","Elsevier Science","2018","304","Hardback","6 revised edition",{"v":10740,"d":"10740.00"},{"$f":"HYPERLINK(\"https://www.logobook.ru/prod_show.php?object_uid=13816879\",\"Описание\")","v":"Описание"}]
["9780702072567","Griffin, S. Michael","Oesophagogastric Surgery","Elsevier Science","2018","368","Hardback","6 revised edition",{"v":11318,"d":"11318.00"},{"$f":"HYPERLINK(\"https://www.logobook.ru/prod_show.php?object_uid=13816882\",\"Описание\")","v":"Описание"}]
["9780071843072","Zinner, Michael J.  ","Maingot's Abdominal Operations. 13th Edition","McGraw-Hill","2019","1504","Hardcover           ","13",{"v":31074,"d":"31074.00"},{"$f":"HYPERLINK(\"https://www.logobook.ru/prod_show.php?object_uid=14200203\",\"Описание\")","v":"Описание"}]
["","","","","","","",""]
["#","5 Курс","Internal Medicine","","","","",""]
["","","","","","","",""]
["9780323640336","Goldman","Goldman-Cecil Medicine International Edition, 2-Volume Set, 26e","Elsevier Science","2019","2944","Hardback","",{"v":10509,"d":"10509.00"},{"$f":"HYPERLINK(\"https://www.logobook.ru/prod_show.php?object_uid=14699232\",\"Описание\")","v":"Описание"}]
["9781264268504","Loscalzo, Joseph Fau","Harrison`s principles of internal medicine,21 edition (vol.1 & vol.2)","McGraw-Hill","2022","2","Hardcover           ","21 ed",{"v":32101,"d":"32101.00"},{"$f":"HYPERLINK(\"https://www.logobook.ru/prod_show.php?object_uid=15654879\",\"Описание\")","v":"Описание"}]
["9780702077784","Slater, Thomas","Pocketbook of Differential Diagnosis, 6 ed. International Edition","Elsevier Science","2021","624","Paperback","5",{"v":2309,"d":"2309.00"},{"$f":"HYPERLINK(\"https://www.logobook.ru/prod_show.php?object_uid=15465209\",\"Описание\")","v":"Описание"}]
["","","","","","","",""]
["#","5 Курс","Clinical Pharmacology","","","","",""]
["","","","","","","",""]
["9783132410657","Heinz L?llmann, Klau","Color Atlas of Pharmacology","Thieme Verlagsgruppe","2017","416","Paperback","5",{"v":5774,"d":"5774.00"},{"$f":"HYPERLINK(\"https://www.logobook.ru/prod_show.php?object_uid=13959469\",\"Описание\")","v":"Описание"}]
["9780702073441","Page Catrin","Crash Course: Pharmacology","Elsevier Science","2018","336","Paperback","5 revised edition",{"v":3926,"d":"3926.00"},{"$f":"HYPERLINK(\"https://www.logobook.ru/prod_show.php?object_uid=14359672\",\"Описание\")","v":"Описание"}]
["9780702074479","Ritter, James M.","Rang & Dale's Pharmacology, International Edition 9 ed.","Elsevier Science","2019","808","Paperback","",{"v":5312,"d":"5312.00"},{"$f":"HYPERLINK(\"https://www.logobook.ru/prod_show.php?object_uid=14209582\",\"Описание\")","v":"Описание"}]
["9780702074486","Ritter James M.","Rang & Dale's Pharmacology, 9 ed.","Elsevier Science","2019","808","Paperback","9 revised edition",{"v":7275,"d":"7275.00"},{"$f":"HYPERLINK(\"https://www.logobook.ru/prod_show.php?object_uid=14360374\",\"Описание\")","v":"Описание"}]
["9780702081590","Derek G. Waller, Ant","Medical Pharmacology and Therapeutics 6th Edition","Elsevier Science","2021","754","Paperback","6 ed",{"v":7044,"d":"7044.00"},{"$f":"HYPERLINK(\"https://www.logobook.ru/prod_show.php?object_uid=15489449\",\"Описание\")","v":"Описание"}]
["9780323476522","Wecker, Lynn","Brody's Human Pharmacology.  6 Ed.","Elsevier Science","2018","712","Paperback","6 revised edition",{"v":8084,"d":"8084.00"},{"$f":"HYPERLINK(\"https://www.logobook.ru/prod_show.php?object_uid=13832376\",\"Описание\")","v":"Описание"}]
["9780323391665","Brenner, George M.","Brenner and Stevens' Pharmacology. 5 ed","Elsevier Science","2017","552","Paperback","5 revised edition",{"v":7622,"d":"7622.00"},{"$f":"HYPERLINK(\"https://www.logobook.ru/prod_show.php?object_uid=13646168\",\"Описание\")","v":"Описание"}]
["9780123854711","Arthur J. Atkinson, ","Principles of Clinical Pharmacology,","Elsevier Science","2012","652","Hardback","3 ed",{"v":12012,"d":"12012.00"},{"$f":"HYPERLINK(\"https://www.logobook.ru/prod_show.php?object_uid=12248841\",\"Описание\")","v":"Описание"}]
["9780702073281","Brown, Morris J.","Clinical Pharmacology, 12 ed.","Elsevier Science","2018","688","Paperback","12 revised edition",{"v":7044,"d":"7044.00"},{"$f":"HYPERLINK(\"https://www.logobook.ru/prod_show.php?object_uid=13816907\",\"Описание\")","v":"Описание"}]
["9780702073298","Brown M.J. et al.","Clinical Pharmacology, 12 ed.  International Edition","Elsevier Science","2018","688","Paperback","",{"v":4272,"d":"4272.00"},{"$f":"HYPERLINK(\"https://www.logobook.ru/prod_show.php?object_uid=14209568\",\"Описание\")","v":"Описание"}]
["9781260470109","Katzung Bertram G., ","Basic and Clinical Pharmacology 15e IE","McGraw-Hill","2021","","","",{"v":6351,"d":"6351.00"},{"$f":"HYPERLINK(\"https://www.logobook.ru/prod_show.php?object_uid=15255952\",\"Описание\")","v":"Описание"}]
["9789354656941","Uttam Kumar Roy","Essentials Of Postgraduate Pharmacology & Biostatisticsguidebook To Postgraduate Trainee In Pharmaco","JayPee Brothers India","2022","438","Paperback","2 revised edition",{"v":6188,"d":"6188.00"},{"$f":"HYPERLINK(\"https://www.logobook.ru/prod_show.php?object_uid=15655808\",\"Описание\")","v":"Описание"}]
["9789390595020","Badyal Dinesh","Practical Manual Of Pharmacology For Medical Students","JayPee Brothers India","2021","","","3/E",{"v":4393,"d":"4393.00"},{"$f":"HYPERLINK(\"https://www.logobook.ru/prod_show.php?object_uid=15655868\",\"Описание\")","v":"Описание"}]
["9789352704996","Tripathi, KD","Essentials of medical pharmacology, 8 ed.","JayPee Brothers India","2019","1080","Hardback","8 revised edition",{"v":10313,"d":"10313.00"},{"$f":"HYPERLINK(\"https://www.logobook.ru/prod_show.php?object_uid=14140498\",\"Описание\")","v":"Описание"}]
["","","","","","","",""]
["#","5 Курс","Dentistry","","","","",""]
["","","","","","","",""]
["9780702074356","Samaranayake, Lakshm","Essential Microbiology for Dentistry","Elsevier Science","2018","416","Paperback","5 revised edition",{"v":8777,"d":"8777.00"},{"$f":"HYPERLINK(\"https://www.logobook.ru/prod_show.php?object_uid=13832386\",\"Описание\")","v":"Описание"}]
["9780723438120","Barry K.B Berkovitz,","Oral Anatomy, Histology and Embryology, 5 ed.","Elsevier Science","2017","472","Paperback","5 revised edition",{"v":10971,"d":"10971.00"},{"$f":"HYPERLINK(\"https://www.logobook.ru/prod_show.php?object_uid=13632001\",\"Описание\")","v":"Описание"}]
["9780723438137","Barry K.B Berkovitz,","Oral Anatomy, Histology And Embryology 5E IE","Elsevier Science","2017","472","Paperback","",{"v":5196,"d":"5196.00"},{"$f":"HYPERLINK(\"https://www.logobook.ru/prod_show.php?object_uid=13645872\",\"Описание\")","v":"Описание"}]
["9780702058356","","Harty's Endodontics in Clinical Practice","Elsevier Science","2016","352","Paperback","7 revised edition",{"v":8084,"d":"8084.00"},{"$f":"HYPERLINK(\"https://www.logobook.ru/prod_show.php?object_uid=13142203\",\"Описание\")","v":"Описание"}]
["9780323749671","Berman Louis H.","Cohen'S Pathways Of The Pulp, 12 ed.","Elsevier Science","2020","928","Hardback","12 revised edition",{"v":18132,"d":"18132.00"},{"$f":"HYPERLINK(\"https://www.logobook.ru/prod_show.php?object_uid=14967357\",\"Описание\")","v":"Описание"}]
["9780702081415","Coulthard, Paul et a","Master Dentistry Volume 1, 4th Edition: Oral and Maxillofacial Surgery, Radiology, Pathology and Ora","Elsevier Science","2021","384","Paperback","4 ed",{"v":4503,"d":"4503.00"},{"$f":"HYPERLINK(\"https://www.logobook.ru/prod_show.php?object_uid=15468759\",\"Описание\")","v":"Описание"}]
["9780702081446","McCracken, Giles","Master dentistry: volume 2, 4th Edition: Restorative dentistry, paediatric dentistry and orthodontic","Elsevier Science","2021","368","Paperback","4 ed",{"v":4272,"d":"4272.00"},{"$f":"HYPERLINK(\"https://www.logobook.ru/prod_show.php?object_uid=15564553\",\"Описание\")","v":"Описание"}]
["9780323262781","Stephen T. Sonis","Dental Secrets","Elsevier Science","2015","368","Paperback","4 revised edition",{"v":5774,"d":"5774.00"},{"$f":"HYPERLINK(\"https://www.logobook.ru/prod_show.php?object_uid=12791385\",\"Описание\")","v":"Описание"}]
["9780323638784","Nelson Stanley J.","Wheeler`s dental anatomy, physiology and occlusion","Elsevier Science","2020","336","Hardback","11 revised edition",{"v":11664,"d":"11664.00"},{"$f":"HYPERLINK(\"https://www.logobook.ru/prod_show.php?object_uid=14825846\",\"Описание\")","v":"Описание"}]
["9780323672436","Linda Bartolomucci B","Dental Instruments: A Pocket Guide, 7th Edition","Elsevier Science","2020","784","Spiral Bound","7 revised edition",{"v":6120,"d":"6120.00"},{"$f":"HYPERLINK(\"https://www.logobook.ru/prod_show.php?object_uid=14845246\",\"Описание\")","v":"Описание"}]
["9781684200467","Eric W. Baker","Anatomy for Dental Medicine, 3 ed.","Thieme Verlagsgruppe","2020","608","Paperback","3",{"v":8084,"d":"8084.00"},{"$f":"HYPERLINK(\"https://www.logobook.ru/prod_show.php?object_uid=14849892\",\"Описание\")","v":"Описание"}]
["9781684201792","Wilding, Robin","Applied Oral Physiology: The Integration of Sciences in Clinical Dentistry","Thieme Verlagsgruppe","2020","192","Hardback","1",{"v":10394,"d":"10394.00"},{"$f":"HYPERLINK(\"https://www.logobook.ru/prod_show.php?object_uid=14971684\",\"Описание\")","v":"Описание"}]
["9781626238008","Boehm Tobias, Chui S","Guide to Periodontal Treatment Solutions for General Dentistry","Thieme Verlagsgruppe","2020","255","Paperback","1",{"v":7506,"d":"7506.00"},{"$f":"HYPERLINK(\"https://www.logobook.ru/prod_show.php?object_uid=15057975\",\"Описание\")","v":"Описание"}]
["9780323552257","Neville, Brad W., Dd","Color atlas of oral and maxillofacial diseases","Elsevier Science","2018","544","Hardcover           ","",{"v":15476,"d":"15476.00"},{"$f":"HYPERLINK(\"https://www.logobook.ru/prod_show.php?object_uid=14342629\",\"Описание\")","v":"Описание"}]
["9780323378321","Graber, Lee W., DDS,","Graber, Lee W. Orthodontics: Current Principles and Techniques.  6 Ed. Elsevier Science, 2016 ISBN 9","Elsevier Science","2016","928","Hardback","6 revised edition",{"v":30837,"d":"30837.00"},{"$f":"HYPERLINK(\"https://www.logobook.ru/prod_show.php?object_uid=13142140\",\"Описание\")","v":"Описание"}]
["9783030163068","Fulford, Martin R. S","Infection Control in Primary Dental Care","Springer","2020","130","Hardcover","1st ed. 2020",{"v":19304,"d":"19304.00"},{"$f":"HYPERLINK(\"https://www.logobook.ru/prod_show.php?object_uid=14836869\",\"Описание\")","v":"Описание"}]
["9783030317713","Torres","Modern Operative Dentistry","Springer","2020","715","Hardcover","1st ed. 2020",{"v":19304,"d":"19304.00"},{"$f":"HYPERLINK(\"https://www.logobook.ru/prod_show.php?object_uid=14835449\",\"Описание\")","v":"Описание"}]
["9781444335323","Scheller-Sheridan Ca","Basic Guide to Dental Instruments","Wiley","2011","304","Paperback","2 revised edition",{"v":4118,"d":"4118.00"},{"$f":"HYPERLINK(\"https://www.logobook.ru/prod_show.php?object_uid=12052459\",\"Описание\")","v":"Описание"}]
["9780323316378","Powers J.M.","Dental Materials: Foundations and Applications, 11 Ed.","Elsevier Science","2017","272","Paperback","11 revised edition",{"v":12576,"d":"12576.00"},{"$f":"HYPERLINK(\"https://www.logobook.ru/prod_show.php?object_uid=13142030\",\"Описание\")","v":"Описание"}]
["9783030426255","Alvaro Della Bona","Color and appearance in dentistry","Springer","2020","142","Hardcover           ","1st ed. 2020",{"v":20789,"d":"20789.00"},{"$f":"HYPERLINK(\"https://www.logobook.ru/prod_show.php?object_uid=15338511\",\"Описание\")","v":"Описание"}]
["9781536190427","Kirti Chawla, Lata G","Dentistry","Nova Science ","2021","300","Hardback","1",{"v":28049,"d":"28049.00"},{"$f":"HYPERLINK(\"https://www.logobook.ru/prod_show.php?object_uid=15338512\",\"Описание\")","v":"Описание"}]
["","","","","","","",""]
["#","5 Курс","Dermatology","","","","",""]
["","","","","","","",""]
["9780323430401","Marks, James G.","Lookingbill and Marks' Principles of Dermatology. 6 ed.","Elsevier Science","2018","336","Paperback","6 revised edition",{"v":9123,"d":"9123.00"},{"$f":"HYPERLINK(\"https://www.logobook.ru/prod_show.php?object_uid=13645946\",\"Описание\")","v":"Описание"}]
["9780702079962","Gawkrodger, David , ","Dermatology: An Illustrated Colour Text. 7 ed.","Elsevier Science","2020","192","Paperback","7 revised edition",{"v":4850,"d":"4850.00"},{"$f":"HYPERLINK(\"https://www.logobook.ru/prod_show.php?object_uid=14967174\",\"Описание\")","v":"Описание"}]
["9780323612692","Dinulos James G. H.","Clinical Dermatology. 7 ed.","Elsevier Science","2020","1086","Hardcover","7 revised edition",{"v":20327,"d":"20327.00"},{"$f":"HYPERLINK(\"https://www.logobook.ru/prod_show.php?object_uid=14569115\",\"Описание\")","v":"Описание"}]
["9780323547543","James, William D.","Andrews' Diseases of the Skin, International Edition","Elsevier Science","2019","1008","Paperback","",{"v":13974,"d":"13974.00"},{"$f":"HYPERLINK(\"https://www.logobook.ru/prod_show.php?object_uid=14209576\",\"Описание\")","v":"Описание"}]
["9781119488989","Rachael Morris-Jones","ABC of Dermatology, 7 ed.","Wiley","2019","280","Paperback","7th edition",{"v":5631,"d":"5631.00"},{"$f":"HYPERLINK(\"https://www.logobook.ru/prod_show.php?object_uid=14699263\",\"Описание\")","v":"Описание"}]
["9781118887776","Graham-Brown, Robin ","Lecture Notes: Dermatology. 11 ed.","Wiley","2016","224","Paperback","11 revised edition",{"v":4256,"d":"4256.00"},{"$f":"HYPERLINK(\"https://www.logobook.ru/prod_show.php?object_uid=12955179\",\"Описание\")","v":"Описание"}]
["9780198747925","Susan Burge, Rubeta ","Oxford Handbook of Medical Dermatology, 2 ed.","Oxford Academ","2016","712","Part-work (fasciculo","2 rev ed",{"v":4792,"d":"4792.00"},{"$f":"HYPERLINK(\"https://www.logobook.ru/prod_show.php?object_uid=13087714\",\"Описание\")","v":"Описание"}]
["9780071769150","Soutor","Clinical Dermatology","McGraw-Hill","2013","464","Paperback","1",{"v":11549,"d":"11549.00"},{"$f":"HYPERLINK(\"https://www.logobook.ru/prod_show.php?object_uid=12391127\",\"Описание\")","v":"Описание"}]
["9781259642197","Wolff Klaus, Johnson","Fitzpatrick's Color Atlas and Synopsis of Clinical Dermatology, 8 Ed.","McGraw-Hill","2017","1104","Paperback           ","8 rev ed",{"v":8524,"d":"8524.00"},{"$f":"HYPERLINK(\"https://www.logobook.ru/prod_show.php?object_uid=13206423\",\"Описание\")","v":"Описание"}]
["","","","","","","",""]
["#","5 Курс","Emergency medicine","","","","",""]
["","","","","","","",""]
["9780323679701","Kaji, Amy","Emergency Medicine Board Review","Elsevier Science","2021","752","Paperback","1",{"v":10394,"d":"10394.00"},{"$f":"HYPERLINK(\"https://www.logobook.ru/prod_show.php?object_uid=15468870\",\"Описание\")","v":"Описание"}]
["9781260469561","Knoop","Atlas Of Emergency Medicine (Ie)","McGraw-Hill","2020","","","5",{"v":20624,"d":"20624.00"},{"$f":"HYPERLINK(\"https://www.logobook.ru/prod_show.php?object_uid=15726352\",\"Описание\")","v":"Описание"}]
["9780323694735","Bakes, Katherine M.","Emergency Medicine Secrets. 7 ed.","Elsevier Science","2020","752","Paperback","7 revised edition",{"v":5889,"d":"5889.00"},{"$f":"HYPERLINK(\"https://www.logobook.ru/prod_show.php?object_uid=14967127\",\"Описание\")","v":"Описание"}]
["9789354651373","DEVENDRA RICHHARIYA","TEXTBOOK OF EMERGENCY MEDICINE: INCLUDING INTENSIVE CARE & TRAUMA (2 VOLUMES)","JayPee Brothers India","2022","1872","Paperback","2 revised edition",{"v":19250,"d":"19250.00"},{"$f":"HYPERLINK(\"https://www.logobook.ru/prod_show.php?object_uid=15682310\",\"Описание\")","v":"Описание"}]
["9780323354790","Walls, Ron","Rosen's Emergency Medicine: Concepts and Clinical Practice","Elsevier Science","2017","2700","Hardback","9 revised edition",{"v":35342,"d":"35342.00"},{"$f":"HYPERLINK(\"https://www.logobook.ru/prod_show.php?object_uid=13368786\",\"Описание\")","v":"Описание"}]
["","","","","","","",""]
["#","5 Курс","Endocrinology & Diabetes","","","","",""]
["","","","","","","",""]
["9780702073410","Vanbergen, Olivia (C","Crash Course: Metabolism and Nutrition, 5th Edition  Elsevier health sciences 2019","Elsevier Science","2019","274","Paperback","5 revised edition",{"v":3926,"d":"3926.00"},{"$f":"HYPERLINK(\"https://www.logobook.ru/prod_show.php?object_uid=14335292\",\"Описание\")","v":"Описание"}]
["9780128158449","Holt Elizabeth H.","Goodman's Basic Medical Endocrinology, 5th Edition","Elsevier Science","2021","552","Hardcover","5 ed",{"v":12590,"d":"12590.00"},{"$f":"HYPERLINK(\"https://www.logobook.ru/prod_show.php?object_uid=14849894\",\"Описание\")","v":"Описание"}]
["9780723438564","Ronan O'Neill.","Crash Course Endocrinology.","Elsevier Science","2015","152","mixed media product","4 revised edition",{"v":4041,"d":"4041.00"},{"$f":"HYPERLINK(\"https://www.logobook.ru/prod_show.php?object_uid=12653308\",\"Описание\")","v":"Описание"}]
["9780323555968","Melmed, Shlomo","Williams Textbook of Endocrinology  14 ed.","Elsevier Science","2020","1792","Hardcover           ","14 revised edition",{"v":22868,"d":"22868.00"},{"$f":"HYPERLINK(\"https://www.logobook.ru/prod_show.php?object_uid=14569199\",\"Описание\")","v":"Описание"}]
["9781496322647","Lavin, Dr. Norman,","Manual of endocrinology and metabolism,","Lippincott Williams & Wil","2018","986","Paperback","5 revised edition",{"v":7425,"d":"7425.00"},{"$f":"HYPERLINK(\"https://www.logobook.ru/prod_show.php?object_uid=14014096\",\"Описание\")","v":"Описание"}]
["9781259589287","Gardner, David G. Sh","Greenspan's Basic and Clinical Endocrinology, 10 Edition  McGraw-Hill.- Paperback , 2017","McGraw-Hill","2017","944","Paperback           ","10",{"v":7286,"d":"7286.00"},{"$f":"HYPERLINK(\"https://www.logobook.ru/prod_show.php?object_uid=13854410\",\"Описание\")","v":"Описание"}]
["9780198729334","","Best of Five MCQS for the Endocrinology and Diabetes SCE","Oxford Academ","2015","256","Paperback","",{"v":6709,"d":"6709.00"},{"$f":"HYPERLINK(\"https://www.logobook.ru/prod_show.php?object_uid=12767050\",\"Описание\")","v":"Описание"}]
["9781119128717","Rees, Aled Levy, Mil","Clinical Endocrinology and Diabetes at a Glance.","Wiley","2017","158","Paperback","1",{"v":4393,"d":"4393.00"},{"$f":"HYPERLINK(\"https://www.logobook.ru/prod_show.php?object_uid=13362377\",\"Описание\")","v":"Описание"}]
["","","","","","","",""]
["#","5 Курс","Gastroenterology","","","","",""]
["","","","","","","",""]
["9780323596244","Floch, Martin H. et ","Netter's Gastroenterology, 3 ed.","Elsevier Science","2019","688","Hardcover           ","3 revised edition",{"v":9932,"d":"9932.00"},{"$f":"HYPERLINK(\"https://www.logobook.ru/prod_show.php?object_uid=14360360\",\"Описание\")","v":"Описание"}]
["9780723438588","Megan Griffiths","Crash Course Gastrointestinal System,","Elsevier Science","2015","214","Paperback","4 revised edition",{"v":4041,"d":"4041.00"},{"$f":"HYPERLINK(\"https://www.logobook.ru/prod_show.php?object_uid=12653309\",\"Описание\")","v":"Описание"}]
["9781119600169","Wang, M","Yamada`s textbook of gastroenterology 7e","Wiley","2022","3296","Hardcover           ","7th edition",{"v":68750,"d":"68750.00"},{"$f":"HYPERLINK(\"https://www.logobook.ru/prod_show.php?object_uid=15653537\",\"Описание\")","v":"Описание"}]
["","","","","","","",""]
["#","5 Курс","Hematology","","","","",""]
["","","","","","","",""]
["9780323357623","Hoffman, Benz, Silbe","Hematology. 7 ed.","Elsevier Science","2017","2200","Hardcover           ","7 revised edition",{"v":39615,"d":"39615.00"},{"$f":"HYPERLINK(\"https://www.logobook.ru/prod_show.php?object_uid=13555739\",\"Описание\")","v":"Описание"}]
["9780323462020","Kitchens, Craig S.","Consultative Hemostasis and Thrombosis","Elsevier Science","2018","850","Hardback","4 revised edition",{"v":21366,"d":"21366.00"},{"$f":"HYPERLINK(\"https://www.logobook.ru/prod_show.php?object_uid=13832374\",\"Описание\")","v":"Описание"}]
["9780702066962","Bain, Barbara J., FR","Dacie and Lewis Practical Haematology, 12th Edition","Elsevier Science","2016","600","Paperback           ","12 revised edition",{"v":11895,"d":"11895.00"},{"$f":"HYPERLINK(\"https://www.logobook.ru/prod_show.php?object_uid=13088615\",\"Описание\")","v":"Описание"}]
["9780702069307","Barbara Jane Bain, I","Darcie And Lewis Practical Haematology 12 IE","Elsevier Science","2016","600","Paperback","12 international ed",{"v":3810,"d":"3810.00"},{"$f":"HYPERLINK(\"https://www.logobook.ru/prod_show.php?object_uid=12925648\",\"Описание\")","v":"Описание"}]
["9781264269211","Marshall A. Lichtman","Williams Manual of Hematology. 10 ed","McGraw-Hill","2022","","","",{"v":5911,"d":"5911.00"},{"$f":"HYPERLINK(\"https://www.logobook.ru/prod_show.php?object_uid=15731027\",\"Описание\")","v":"Описание"}]
["","","","","","","",""]
["#","5 Курс","Infectious diseases","","","","",""]
["","","","","","","",""]
["9781260143652","Southwick, Frederick","Infectious Diseases: A Clinical Short Course, 4 ed","McGraw-Hill","2020","496","Paperback","4 ed",{"v":9074,"d":"9074.00"},{"$f":"HYPERLINK(\"https://www.logobook.ru/prod_show.php?object_uid=15063147\",\"Описание\")","v":"Описание"}]
["9781975113421","Kirmani","Washington Manual Infectious Disease Subspecialty Consult. 3 ed","Lippincott Williams & Wil","2019","408","Paperback","3 ed",{"v":6806,"d":"6806.00"},{"$f":"HYPERLINK(\"https://www.logobook.ru/prod_show.php?object_uid=14462650\",\"Описание\")","v":"Описание"}]
["","","","","","","",""]
["#","5 Курс","Medical English and Intercultural Communication","","","","",""]
["","","","","","","",""]
["9780323378437","Chabner, Davi-Ellen","Medical Language Instant Translator","Elsevier Science","2016","334","Paperback","6 revised edition",{"v":3348,"d":"3348.00"},{"$f":"HYPERLINK(\"https://www.logobook.ru/prod_show.php?object_uid=13142008\",\"Описание\")","v":"Описание"}]
["9780323533195","LaFleur Brooks, Dani","Basic Medical Language with Flash Cards, 6 ed.","Elsevier Science","2018","448","Hardback","6 revised edition",{"v":6582,"d":"6582.00"},{"$f":"HYPERLINK(\"https://www.logobook.ru/prod_show.php?object_uid=14223603\",\"Описание\")","v":"Описание"}]
["9780323396455","Lafleur Brooks, Myrn","Exploring medical language","Elsevier Science","2017","800","Paperback","10 revised edition",{"v":9585,"d":"9585.00"},{"$f":"HYPERLINK(\"https://www.logobook.ru/prod_show.php?object_uid=13591035\",\"Описание\")","v":"Описание"}]
["9780443073991","Parkinson & Brooker","Everyday English for International Nurses","Elsevier Science","2004","256","Paperback","Collectors ed/ /eng-",{"v":4085,"d":"4085.00"},{"$f":"HYPERLINK(\"https://www.logobook.ru/prod_show.php?object_uid=11040721\",\"Описание\")","v":"Описание"}]
["9780444521187","Petey Young","Writing and Presenting in English,","Elsevier Science","2006","124","Paperback","1",{"v":2882,"d":"2882.00"},{"$f":"HYPERLINK(\"https://www.logobook.ru/prod_show.php?object_uid=11090178\",\"Описание\")","v":"Описание"}]
["9780323427944","Leonard, Peggy C.","Building a Medical Vocabulary","Elsevier Science","2017","720","Paperback","10 revised edition",{"v":8430,"d":"8430.00"},{"$f":"HYPERLINK(\"https://www.logobook.ru/prod_show.php?object_uid=13645944\",\"Описание\")","v":"Описание"}]
["9780702075506","Fareh, Shehdeh","English for Medicine & Health Sciences","Elsevier Science","2017","326","paperback","",{"v":1936,"d":"1936.00"},{"$f":"HYPERLINK(\"https://www.logobook.ru/prod_show.php?object_uid=14432061\",\"Описание\")","v":"Описание"}]
["9780323551472","Chabner Davi-Ellen","The Language of Medicine, 12th Edition","Elsevier Science","2020","1064","Paperback","12 revised edition",{"v":10394,"d":"10394.00"},{"$f":"HYPERLINK(\"https://www.logobook.ru/prod_show.php?object_uid=14844404\",\"Описание\")","v":"Описание"}]
["","","","","","","",""]
["#","5 Курс","Nephrology","","","","",""]
["","","","","","","",""]
["9780323478717","Lerma, Edgar V.","Nephrology Secrets, 4 ed","Elsevier Science","2018","704","Paperback","4 revised edition",{"v":4734,"d":"4734.00"},{"$f":"HYPERLINK(\"https://www.logobook.ru/prod_show.php?object_uid=13816871\",\"Описание\")","v":"Описание"}]
["9780323479097","Johnson, Richard J.","Comprehensive Clinical Nephrology","Elsevier Science","2018","1312","Hardback","6 revised edition",{"v":26679,"d":"26679.00"},{"$f":"HYPERLINK(\"https://www.logobook.ru/prod_show.php?object_uid=13832377\",\"Описание\")","v":"Описание"}]
["9780323791359","Nissenson, Allen R.","Handbook of dialysis therapy","Elsevier Science","2022","944","Paperback","6 ed",{"v":12819,"d":"12819.00"},{"$f":"HYPERLINK(\"https://www.logobook.ru/prod_show.php?object_uid=15675706\",\"Описание\")","v":"Описание"}]
["9780199592548","Neil N. Turner (Edit","Oxford Textbook of Clinical Nephrology","Oxford Academ","2015","3040","Multiple copy pack","4 rev ed",{"v":74295,"d":"74295.00"},{"$f":"HYPERLINK(\"https://www.logobook.ru/prod_show.php?object_uid=12877375\",\"Описание\")","v":"Описание"}]
["9781264268504","Loscalzo, Joseph Fau","Harrison`s principles of internal medicine,21 edition (vol.1 & vol.2)","McGraw-Hill","2022","2","Hardcover           ","21 ed",{"v":32101,"d":"32101.00"},{"$f":"HYPERLINK(\"https://www.logobook.ru/prod_show.php?object_uid=15654879\",\"Описание\")","v":"Описание"}]
["","","","","","","",""]
["#","5 Курс","Neurosurgery/Neurology","","","","",""]
["","","","","","","",""]
["9781684201372","Mark S. Greenberg","Handbook of Neurosurgery. 9 ed","Thieme Verlagsgruppe","2019","1784","Paperback","9",{"v":12704,"d":"12704.00"},{"$f":"HYPERLINK(\"https://www.logobook.ru/prod_show.php?object_uid=14766364\",\"Описание\")","v":"Описание"}]
["9780443069789","Lindsay, Kenneth W. ","Neurology and Neurosurgery Illustrated, IEdition. - Elsevier Science, 5th Ed.","Elsevier Science","2010","608","Paperback","5 international ed",{"v":2886,"d":"2886.00"},{"$f":"HYPERLINK(\"https://www.logobook.ru/prod_show.php?object_uid=11795979\",\"Описание\")","v":"Описание"}]
["9780323509619","Nanda, Anil","Complications in Neurosurgery","Elsevier Science","2018","424","Hardcover","",{"v":17093,"d":"17093.00"},{"$f":"HYPERLINK(\"https://www.logobook.ru/prod_show.php?object_uid=14360361\",\"Описание\")","v":"Описание"}]
["9780323321068","Kumar, Monisha","Neurocritical Care Management of the Neurosurgical Patient","Elsevier Science","2017","558","Hardback","1",{"v":16862,"d":"16862.00"},{"$f":"HYPERLINK(\"https://www.logobook.ru/prod_show.php?object_uid=13368785\",\"Описание\")","v":"Описание"}]
["9780323374804","Shah, Rahul S.","Neurosurgery Self-Assessment","Elsevier Science","2016","520","Hardback","1",{"v":9008,"d":"9008.00"},{"$f":"HYPERLINK(\"https://www.logobook.ru/prod_show.php?object_uid=13142202\",\"Описание\")","v":"Описание"}]
["9780323356374","Jandial, Rahul et al","100 Case Reviews in Neurosurgery","Elsevier Science","2016","624","Paperback","1",{"v":9470,"d":"9470.00"},{"$f":"HYPERLINK(\"https://www.logobook.ru/prod_show.php?object_uid=13142243\",\"Описание\")","v":"Описание"}]
["9780323261494","Quinones-Hinojosa, A","Video Atlas of Neurosurgery: Contemporary Tumor and Skull Base Surgery","Elsevier Science","2015","316","Hardback","",{"v":29798,"d":"29798.00"},{"$f":"HYPERLINK(\"https://www.logobook.ru/prod_show.php?object_uid=12462143\",\"Описание\")","v":"Описание"}]
["9780323431408","Ellenbogen, Richard ","Principles of Neurological Surgery, 4 ed.","Elsevier Science","2018","848","Hardback","4 revised edition",{"v":26679,"d":"26679.00"},{"$f":"HYPERLINK(\"https://www.logobook.ru/prod_show.php?object_uid=13645918\",\"Описание\")","v":"Описание"}]
["","","","","","","",""]
["#","5 Курс","Obstetrics and Gynecology","","","","",""]
["","","","","","","",""]
["9780323496131","","Obstetrics & Gynecology Morning Report: Beyond the Pearls, 1e / Meriwether Kate, Joey England. - Els","Elsevier Science","2018","480","Paperback","1",{"v":4388,"d":"4388.00"},{"$f":"HYPERLINK(\"https://www.logobook.ru/prod_show.php?object_uid=13645986\",\"Описание\")","v":"Описание"}]
["9780323510370","Wu, Hao-Hua","Gunner Goggles Obstetrics and Gynecology","Elsevier Science","2018","360","Paperback","1",{"v":4388,"d":"4388.00"},{"$f":"HYPERLINK(\"https://www.logobook.ru/prod_show.php?object_uid=13646034\",\"Описание\")","v":"Описание"}]
["9780702074042","Magowan, Brian A. Ow","Clinical Obstetrics and Gynaecology","Elsevier Science","2018","472","Paperback","4 revised edition",{"v":5196,"d":"5196.00"},{"$f":"HYPERLINK(\"https://www.logobook.ru/prod_show.php?object_uid=13816910\",\"Описание\")","v":"Описание"}]
["9780702074059","","Clinical Obstetrics and Gynaecology, International Edition, 4 Ed.","Elsevier Science","2018","416","Paperback","",{"v":3002,"d":"3002.00"},{"$f":"HYPERLINK(\"https://www.logobook.ru/prod_show.php?object_uid=14007698\",\"Описание\")","v":"Описание"}]
["9781455775583","Hacker, Neville F. (","Hacker & Moore's Essentials of Obstetrics and Gynecology","Elsevier Science","2015","512","Paperback","6 revised edition",{"v":5774,"d":"5774.00"},{"$f":"HYPERLINK(\"https://www.logobook.ru/prod_show.php?object_uid=12462639\",\"Описание\")","v":"Описание"}]
["9780702083013","Oats & Boyle","Llewellyn-Jones Fundamentals of Obstetrics and Gynaecology, 11 Ed","Elsevier Science","2022","384","Paperback","11 ed",{"v":4965,"d":"4965.00"},{"$f":"HYPERLINK(\"https://www.logobook.ru/prod_show.php?object_uid=15621116\",\"Описание\")","v":"Описание"}]
["9780729542524","Goh, Judith Flynn, M","Examination obstetrics & gynaecology","Elsevier Science","2017","400","Paperback","4 revised edition",{"v":6813,"d":"6813.00"},{"$f":"HYPERLINK(\"https://www.logobook.ru/prod_show.php?object_uid=13573378\",\"Описание\")","v":"Описание"}]
["9780702070006","Guillebaud John","Contraception: Your Questions Answered","Elsevier Science","2017","424","Paperback","7 revised edition",{"v":5774,"d":"5774.00"},{"$f":"HYPERLINK(\"https://www.logobook.ru/prod_show.php?object_uid=13606350\",\"Описание\")","v":"Описание"}]
["9780323608701","Landon, Mark B","Obstetrics: Normal And Problem Pregnancies","Elsevier Science","2020","1280","Book & Online","8 revised edition",{"v":18017,"d":"18017.00"},{"$f":"HYPERLINK(\"https://www.logobook.ru/prod_show.php?object_uid=14968427\",\"Описание\")","v":"Описание"}]
["9780702076381","Ian M. Symonds, Saba","Essential Obstetrics and Gynaecology, 6 edition","Elsevier Science","2019","480","Paperback","6 revised edition",{"v":4965,"d":"4965.00"},{"$f":"HYPERLINK(\"https://www.logobook.ru/prod_show.php?object_uid=14849493\",\"Описание\")","v":"Описание"}]
["9781975106669","Robert Casanova","Beckmann and Ling's Obstetrics and Gynecology, 8 ed.IE","Lippincott Williams & Wil","2018","0","Paperback","Eighth, internationa",{"v":5225,"d":"5225.00"},{"$f":"HYPERLINK(\"https://www.logobook.ru/prod_show.php?object_uid=14014199\",\"Описание\")","v":"Описание"}]
["9781975134877","Callahan, Dr. Tamara","Blueprints: Obstetrics & Gynecology  7 ed, Revised Reprint","Lippincott Williams & Wil","2018","529","Paperback","Seventh, revised rep",{"v":5431,"d":"5431.00"},{"$f":"HYPERLINK(\"https://www.logobook.ru/prod_show.php?object_uid=14360075\",\"Описание\")","v":"Описание"}]
["","","","","","","",""]
["#","5 Курс","Oncology","","","","",""]
["","","","","","","",""]
["9780323476744","John E. Niederhuber,","Abeloff's Clinical Oncology, 6 Edition","Elsevier Science","2019","2072","Hardback","6 revised edition",{"v":35342,"d":"35342.00"},{"$f":"HYPERLINK(\"https://www.logobook.ru/prod_show.php?object_uid=14368499\",\"Описание\")","v":"Описание"}]
["9781975162016","Faiz M. Khan Ph. D.,","Khans treatment planing in  radiation oncology 5e","Lippincott Williams & Wil","2021","768","Hardback","5 ed",{"v":23650,"d":"23650.00"},{"$f":"HYPERLINK(\"https://www.logobook.ru/prod_show.php?object_uid=15506135\",\"Описание\")","v":"Описание"}]
["9781496349576","Mary C. Territo and ","Manual of Clinical Oncology 8e","Lippincott Williams & Wil","2017","900","Paperback           ","8 rev ed",{"v":5363,"d":"5363.00"},{"$f":"HYPERLINK(\"https://www.logobook.ru/prod_show.php?object_uid=13479209\",\"Описание\")","v":"Описание"}]
["9781496360366","Hristov, Borislav Li","Radiation oncology: a question-based review. 3 ed","Lippincott Williams & Wil","2018","640","Paperback","3 ed",{"v":9900,"d":"9900.00"},{"$f":"HYPERLINK(\"https://www.logobook.ru/prod_show.php?object_uid=14158783\",\"Описание\")","v":"Описание"}]
["9781496394637","Devita, Vincent T., ","Devita, Hellman, and Rosenberg`s cancer: principles & practice of oncology. 11 ed","Lippincott Williams & Wil","2018","2432","Hardcover           ","11 ed",{"v":38225,"d":"38225.00"},{"$f":"HYPERLINK(\"https://www.logobook.ru/prod_show.php?object_uid=14334127\",\"Описание\")","v":"Описание"}]
["9781975124793","BLANEY","Pizzo & Poplack's Pediatric Oncology 8E  CB","Lippincott Williams & Wil","2020","1352","Hardback","8 revised edition",{"v":41388,"d":"41388.00"},{"$f":"HYPERLINK(\"https://www.logobook.ru/prod_show.php?object_uid=15037446\",\"Описание\")","v":"Описание"}]
["9780199689842","Jim Cassidy et al","Oxford Handbook of Oncology.4 ed","Oxford Academ","2015","928","Part-work (fasciculo","4 rev ed",{"v":5066,"d":"5066.00"},{"$f":"HYPERLINK(\"https://www.logobook.ru/prod_show.php?object_uid=12842503\",\"Описание\")","v":"Описание"}]
["9780071745208","Ian F. Tannock","Basic Science Of Oncology. 5 ed","McGraw-Hill","2013","576","Paperback","5 rev ed",{"v":10861,"d":"10861.00"},{"$f":"HYPERLINK(\"https://www.logobook.ru/prod_show.php?object_uid=12321798\",\"Описание\")","v":"Описание"}]
["","","","","","","",""]
["#","5 Курс","Orthopaedics & Traumatology","","","","",""]
["","","","","","","",""]
["9780723436805","Luqmani, Raashid","Textbook of Orthopaedics, Trauma and Rheumatology","Elsevier Science","2013","432","Paperback","2 revised edition",{"v":6005,"d":"6005.00"},{"$f":"HYPERLINK(\"https://www.logobook.ru/prod_show.php?object_uid=12320768\",\"Описание\")","v":"Описание"}]
["9780702063176","Duckworth, Andrew D.","Churchill'S Pocketbook Of Orthopaedics Trauma, international edition","Elsevier Science","2016","320","Paperback","2 revised edition",{"v":2193,"d":"2193.00"},{"$f":"HYPERLINK(\"https://www.logobook.ru/prod_show.php?object_uid=12925650\",\"Описание\")","v":"Описание"}]
["9780323429702","Thompson, Jon C.","Netter's Concise Orthopaedic Anatomy, Updated Edition, 2e","Elsevier Science","2016","416","Paperback","2 revised edition",{"v":6698,"d":"6698.00"},{"$f":"HYPERLINK(\"https://www.logobook.ru/prod_show.php?object_uid=12957725\",\"Описание\")","v":"Описание"}]
["9780323390385","Frank Rachel","Case Competencies in Orthopaedic Surgery","Elsevier Science","2016","400","Paperback","",{"v":9239,"d":"9239.00"},{"$f":"HYPERLINK(\"https://www.logobook.ru/prod_show.php?object_uid=12956936\",\"Описание\")","v":"Описание"}]
["9780323609784","Miller, Mark D.,  Th","Miller's Review of Orthopaedics, 8 ed.","Elsevier Science","2019","840","Paperback","8 revised edition",{"v":13397,"d":"13397.00"},{"$f":"HYPERLINK(\"https://www.logobook.ru/prod_show.php?object_uid=14569142\",\"Описание\")","v":"Описание"}]
["9780702057304","White, Timothy O. Ma","McRae`s Pocketbook  of Orthopaedic  Trauma and  Emergency Fracture  Management","Elsevier Science","2015","648","Paperback","3 international ed",{"v":3926,"d":"3926.00"},{"$f":"HYPERLINK(\"https://www.logobook.ru/prod_show.php?object_uid=12771349\",\"Описание\")","v":"Описание"}]
["9780323357630","S. Terry Canale","Campbell's Core Orthopaedic Procedures","Elsevier Science","2015","488","Hardback","1",{"v":19403,"d":"19403.00"},{"$f":"HYPERLINK(\"https://www.logobook.ru/prod_show.php?object_uid=12745334\",\"Описание\")","v":"Описание"}]
["9780323221580","Nelson, Fred","A Manual of Orthopaedic Terminology","Elsevier Science","2014","528","Mixed media product","8 revised edition",{"v":6813,"d":"6813.00"},{"$f":"HYPERLINK(\"https://www.logobook.ru/prod_show.php?object_uid=12462088\",\"Описание\")","v":"Описание"}]
["9781455770649","Miller, Mark","Orthopaedic Surgical Approaches","Elsevier Science","2014","544","Mixed media product","2 revised edition",{"v":21251,"d":"21251.00"},{"$f":"HYPERLINK(\"https://www.logobook.ru/prod_show.php?object_uid=12462626\",\"Описание\")","v":"Описание"}]
["9780198766506","Christopher Bulstrod","Oxford Textbook of Trauma and Orthopaedics.  2 ed","Oxford Academ","2017","1800","Paperback ","2 rev ed",{"v":20200,"d":"20200.00"},{"$f":"HYPERLINK(\"https://www.logobook.ru/prod_show.php?object_uid=13349693\",\"Описание\")","v":"Описание"}]
["","","","","","","",""]
["#","5 Курс","Pediatric surgery","","","","",""]
["","","","","","","",""]
["9781496388537","Buicko, Dr. Jessica ","Handbook of pediatric surgery, 1 ed.","Lippincott Williams & Wil","2018","624","Paperback","",{"v":6463,"d":"6463.00"},{"$f":"HYPERLINK(\"https://www.logobook.ru/prod_show.php?object_uid=14262440\",\"Описание\")","v":"Описание"}]
["9780323549400","Holcomb George W.","Holcomb and Ashcraft's Pediatric Surgery, 7 ed.","Elsevier Science","2019","1316","Hardback","7 revised edition",{"v":30722,"d":"30722.00"},{"$f":"HYPERLINK(\"https://www.logobook.ru/prod_show.php?object_uid=14569122\",\"Описание\")","v":"Описание"}]
["9780071627238","Ziegler Moritz","Operative Pediatric Surgery","McGraw-Hill","2014","1504","Hardback","2 rev ed",{"v":23822,"d":"23822.00"},{"$f":"HYPERLINK(\"https://www.logobook.ru/prod_show.php?object_uid=12578772\",\"Описание\")","v":"Описание"}]
["9783662562802","Puri, Prem, Hollwart","Pediatric Surgery, 2 ed.","Springer","2019","706","Hardcover","2 revised edition",{"v":34535,"d":"34535.00"},{"$f":"HYPERLINK(\"https://www.logobook.ru/prod_show.php?object_uid=14114721\",\"Описание\")","v":"Описание"}]
["","","","","","","",""]
["#","5 Курс","Pediatrics","","","","",""]
["","","","","","","",""]
["9780702073694","Rodgers, Anna","Crash Course Paediatrics, 5th Edition","Elsevier Science","2019","326","Paperback           ","5 revised edition",{"v":3926,"d":"3926.00"},{"$f":"HYPERLINK(\"https://www.logobook.ru/prod_show.php?object_uid=14360362\",\"Описание\")","v":"Описание"}]
["9780323498258","Salazar Adler","Pediatrics Morning Report","Elsevier Science","2018","496","Paperback","",{"v":4388,"d":"4388.00"},{"$f":"HYPERLINK(\"https://www.logobook.ru/prod_show.php?object_uid=14182861\",\"Описание\")","v":"Описание"}]
["9780323510387","Wu, Hao-Hua","Gunner Goggles Pediatrics","Elsevier Science","2018","416","Paperback","1",{"v":4388,"d":"4388.00"},{"$f":"HYPERLINK(\"https://www.logobook.ru/prod_show.php?object_uid=13646035\",\"Описание\")","v":"Описание"}]
["9780702072925","Lissauer, Tom","Self-Assessment in Paediatrics","Elsevier Science","2017","320","Paperback","1",{"v":3117,"d":"3117.00"},{"$f":"HYPERLINK(\"https://www.logobook.ru/prod_show.php?object_uid=13142404\",\"Описание\")","v":"Описание"}]
["9780323529051","Nocton, James J.","On Call Pediatrics","Elsevier Science","2018","440","Paperback","4 revised edition",{"v":4388,"d":"4388.00"},{"$f":"HYPERLINK(\"https://www.logobook.ru/prod_show.php?object_uid=13816905\",\"Описание\")","v":"Описание"}]
["9780729542517","Harris, Wayne","Examination Paediatrics","Elsevier Science","2017","752","Paperback","5 revised edition",{"v":7275,"d":"7275.00"},{"$f":"HYPERLINK(\"https://www.logobook.ru/prod_show.php?object_uid=13646058\",\"Описание\")","v":"Описание"}]
["9780702081811","Lissauer, Tom","Illustrated Textbook of Paediatrics. 6 ed. IE","Elsevier Science","2021","","Paperback","6",{"v":2771,"d":"2771.00"},{"$f":"HYPERLINK(\"https://www.logobook.ru/prod_show.php?object_uid=15465208\",\"Описание\")","v":"Описание"}]
["9780323775625","Marcdante, Kliegman ","Nelson essentials of pediatrics, 9 ed.","Elsevier Science","2022","848","Paperback","9 ed",{"v":8892,"d":"8892.00"},{"$f":"HYPERLINK(\"https://www.logobook.ru/prod_show.php?object_uid=15653558\",\"Описание\")","v":"Описание"}]
["9780323775632","","Nelson  Essentials of  Pediatrics  9 ed IE","Elsevier Science","","","","",{"v":7160,"d":"7160.00"},{"$f":"HYPERLINK(\"https://www.logobook.ru/prod_show.php?object_uid=15664860\",\"Описание\")","v":"Описание"}]
["9780323568906","Kliegman, Robert M.","Nelson Textbook of Pediatrics, International Edition, 21 Ed. : Elsevier Science","Elsevier Science","2019","3876","Hardback","",{"v":12324,"d":"12324.00"},{"$f":"HYPERLINK(\"https://www.logobook.ru/prod_show.php?object_uid=14209578\",\"Описание\")","v":"Описание"}]
["9780323529501","Kliegman, Robert M.","Nelson Textbook of Pediatrics, 2-Volume Set, 21 ed.","Elsevier Science","2019","3876","Hardcover           ","21 revised edition",{"v":17670,"d":"17670.00"},{"$f":"HYPERLINK(\"https://www.logobook.ru/prod_show.php?object_uid=14368521\",\"Описание\")","v":"Описание"}]
["9781496396464","Marino, Bradley","Blueprints Pediatrics. 7 Ed","Lippincott Williams & Wil","2019","416","Paperback","7 ed",{"v":5706,"d":"5706.00"},{"$f":"HYPERLINK(\"https://www.logobook.ru/prod_show.php?object_uid=14360015\",\"Описание\")","v":"Описание"}]
["","","","","","","",""]
["#","5 Курс","Psychiatry","","","","",""]
["","","","","","","",""]
["9781496349217","Mccarron","Primary care psychiatry. 2 ed","Lippincott Williams & Wil","2018","440","Hardcover           ","2 ed",{"v":11275,"d":"11275.00"},{"$f":"HYPERLINK(\"https://www.logobook.ru/prod_show.php?object_uid=14335198\",\"Описание\")","v":"Описание"}]
["9781496345257","Sadock, Benjamin Sad","Kaplan & Sadock's Concise Textbook of Clinical Psychiatry. 4 ed","Lippincott Williams & Wil","2017","1000","Paperback","4 rev ed",{"v":7838,"d":"7838.00"},{"$f":"HYPERLINK(\"https://www.logobook.ru/prod_show.php?object_uid=13339102\",\"Описание\")","v":"Описание"}]
["9781975173128","Marcia Verduin, Pedr","Kaplan & Sadock's Synopsis of Psychiatry. 12 ed.","Lippincott Williams & Wil","2021","1200","Paperback","International editio",{"v":10725,"d":"10725.00"},{"$f":"HYPERLINK(\"https://www.logobook.ru/prod_show.php?object_uid=15357284\",\"Описание\")","v":"Описание"}]
["9781975188870","Fadem B.","BRS Behavioral Science 8 ed revised. IE","Lippincott Williams & Wil","2021","384","Paperback","Eighth, internationa",{"v":4949,"d":"4949.00"},{"$f":"HYPERLINK(\"https://www.logobook.ru/prod_show.php?object_uid=15560402\",\"Описание\")","v":"Описание"}]
["9781260467413","By Debra L. Klamen, ","Psychiatry Pretest Self-Assessment and Review 15 edition IE","McGraw-Hill","2020","320","Paperback","15 ed",{"v":3986,"d":"3986.00"},{"$f":"HYPERLINK(\"https://www.logobook.ru/prod_show.php?object_uid=15255628\",\"Описание\")","v":"Описание"}]
["9780071754422","Ebert","Current Diagnosis And Treatment Psychiatry. 3 ed","McGraw-Hill","2018","768","Soft cover","3",{"v":9074,"d":"9074.00"},{"$f":"HYPERLINK(\"https://www.logobook.ru/prod_show.php?object_uid=12874518\",\"Описание\")","v":"Описание"}]
["","","","","","","",""]
["#","5 Курс","Psychology","","","","",""]
["","","","","","","",""]
["9780702062988","van Teijlingen, Edwi","Psychology and Sociology Applied to Medicine","Elsevier Science","2019","193","Paperback","4 revised edition",{"v":4619,"d":"4619.00"},{"$f":"HYPERLINK(\"https://www.logobook.ru/prod_show.php?object_uid=14360373\",\"Описание\")","v":"Описание"}]
["9781526496812","Richard de Visser, S","Psychology for Medicine and Healthcare, 3 ed.","Sage Publications","2021","688","Paperback","3 revised edition",{"v":7258,"d":"7258.00"},{"$f":"HYPERLINK(\"https://www.logobook.ru/prod_show.php?object_uid=15364405\",\"Описание\")","v":"Описание"}]
["","","","","","","",""]
["#","5 Курс","Respiratory Medicine","","","","",""]
["","","","","","","",""]
["9781455707928","Spiro, Stephen G., B","Clinical Respiratory medicine, Elsevier Science. - 2012, 1000 р.","Elsevier Science","2012","1000","Mixed media product","4 revised edition",{"v":17093,"d":"17093.00"},{"$f":"HYPERLINK(\"https://www.logobook.ru/prod_show.php?object_uid=12226853\",\"Описание\")","v":"Описание"}]
["9780702073663","Lawrence, Hannah (Hi","Crash Course Respiratory Medicine","Elsevier Science","2018","260","Paperback","5 revised edition",{"v":3926,"d":"3926.00"},{"$f":"HYPERLINK(\"https://www.logobook.ru/prod_show.php?object_uid=14342221\",\"Описание\")","v":"Описание"}]
["9780323523714","Steven E. Weinberger","Principles of Pulmonary Medicine 7 ed.","Elsevier Science","2018","432","Paperback","7 revised edition",{"v":8084,"d":"8084.00"},{"$f":"HYPERLINK(\"https://www.logobook.ru/prod_show.php?object_uid=13646049\",\"Описание\")","v":"Описание"}]
["9780323655873","Broaddus, V.Courtney","Murray & Nadel'S Textbook Of Respiratory Medicine, 2-Volume Set. 7 ed","Elsevier Science","2021","2272","Hardcover           ","7 ed",{"v":41463,"d":"41463.00"},{"$f":"HYPERLINK(\"https://www.logobook.ru/prod_show.php?object_uid=15468853\",\"Описание\")","v":"Описание"}]
["9781118618349","Paramothayan  Shanth","Essential Respiratory Medicine","Wiley","2018","424","Paperback","1",{"v":5768,"d":"5768.00"},{"$f":"HYPERLINK(\"https://www.logobook.ru/prod_show.php?object_uid=14149443\",\"Описание\")","v":"Описание"}]
["","","","","","","",""]
["#","5 Курс","Surgery","","","","",""]
["","","","","","","",""]
["9781975106652","Lawrence, Dr. Peter ","Essentials of General Surgery and Surgical Specialties","Lippincott Williams & Wil","2018","860","Paperback","Sixth, international",{"v":7563,"d":"7563.00"},{"$f":"HYPERLINK(\"https://www.logobook.ru/prod_show.php?object_uid=14333898\",\"Описание\")","v":"Описание"}]
["9780702063091","Raftery, Andrew T. D","Churchill'S Pocketbook Of Surgery 5 Ed. IE","Elsevier Science","2016","592","Paperback","5 international ed",{"v":2309,"d":"2309.00"},{"$f":"HYPERLINK(\"https://www.logobook.ru/prod_show.php?object_uid=12925657\",\"Описание\")","v":"Описание"}]
["9780702073212","Myint","Kirk's Basic Surgical Techniques. International Edition, 7 Ed.","Elsevier Science","2018","272","Paperback","",{"v":2771,"d":"2771.00"},{"$f":"HYPERLINK(\"https://www.logobook.ru/prod_show.php?object_uid=14132041\",\"Описание\")","v":"Описание"}]
["9780323640633","Townsend, Courtney M","Sabiston Textbook Of Surgery International Edition","Elsevier Science","2021","2176","Hardback","21",{"v":12588,"d":"12588.00"},{"$f":"HYPERLINK(\"https://www.logobook.ru/prod_show.php?object_uid=15465201\",\"Описание\")","v":"Описание"}]
["9780323640626","","Sabiston textbook of surgery : the biological basis of modern surgical practice","Elsevier Science","2021","2176","Hardcover           ","21st ed.",{"v":20789,"d":"20789.00"},{"$f":"HYPERLINK(\"https://www.logobook.ru/prod_show.php?object_uid=15319873\",\"Описание\")","v":"Описание"}]
["9781119468080","Smith, Julian A.","Textbook of Surgery, 4 ed.","Wiley","2019","816","Paperback","4th edition",{"v":10581,"d":"10581.00"},{"$f":"HYPERLINK(\"https://www.logobook.ru/prod_show.php?object_uid=14837946\",\"Описание\")","v":"Описание"}]
["","","","","","","",""]
["#","5 Курс","Thoracic Surgery","","","","",""]
["","","","","","","",""]
["9781451195224","Locicero, Joseph et ","Shields` general thoracic surgery, volume one, 8 ed.","Lippincott Williams & Wil","2018","2384","Hardcover           ","8 revised edition",{"v":46475,"d":"46475.00"},{"$f":"HYPERLINK(\"https://www.logobook.ru/prod_show.php?object_uid=14045889\",\"Описание\")","v":"Описание"}]
["9780721603254","Mark Ferguson","Thoracic Surgery Atlas","Elsevier Science","2007","325","Hardback","",{"v":23099,"d":"23099.00"},{"$f":"HYPERLINK(\"https://www.logobook.ru/prod_show.php?object_uid=11193637\",\"Описание\")","v":"Описание"}]
["","","","","","","",""]
["#","5 Курс","Urology","","","","",""]
["","","","","","","",""]
["9781259834349","","Smith and tanagho`s general urology: 19th Edition","McGraw-Hill","2020","","","",{"v":9349,"d":"9349.00"},{"$f":"HYPERLINK(\"https://www.logobook.ru/prod_show.php?object_uid=15369980\",\"Описание\")","v":"Описание"}]
["9780323672269","","Campbell-Walsh Urology:  International Edition 12 ed.","Elsevier Science","2019","4200","Hardback","",{"v":38345,"d":"38345.00"},{"$f":"HYPERLINK(\"https://www.logobook.ru/prod_show.php?object_uid=14849491\",\"Описание\")","v":"Описание"}]
["","","","","","","",""]
["#","5 Курс","Vascular Surgery","","","","",""]
["","","","","","","",""]
["9780323511483","","Endovascular Treatment of Aortic Aneurysms","Elsevier Science","2017","0","Hardcover           ","",{"v":14552,"d":"14552.00"},{"$f":"HYPERLINK(\"https://www.logobook.ru/prod_show.php?object_uid=13555773\",\"Описание\")","v":"Описание"}]
["9780323511391","Almeida Jose","Atlas of Endovascular Venous Surgery","Elsevier Science","2018","768","Hardcover           ","2 revised edition",{"v":26679,"d":"26679.00"},{"$f":"HYPERLINK(\"https://www.logobook.ru/prod_show.php?object_uid=14183022\",\"Описание\")","v":"Описание"}]
["9780323775571","Sidawy & Perler","Rutherford's Vascular Surgery and Endovascular Therapy, 2-Volume Set, 10 Edition","Elsevier Science","2022","2928","Hardback","10 ed",{"v":45159,"d":"45159.00"},{"$f":"HYPERLINK(\"https://www.logobook.ru/prod_show.php?object_uid=15731029\",\"Описание\")","v":"Описание"}]
["9780323480116","Moore, Wesley S.","Moore's Vascular and Endovascular Surgery, 9 Edition","Elsevier Science","2018","1088","Hardcover           ","9 revised edition",{"v":25640,"d":"25640.00"},{"$f":"HYPERLINK(\"https://www.logobook.ru/prod_show.php?object_uid=14124011\",\"Описание\")","v":"Описание"}]
["","","","","","","",""]
["#","6 Курс","Anesthesiology ","","","","",""]
["","","","","","","",""]
["9780323612630","Gropper , M.  A. et ","Miller's Anesthesia International Edition, 2 Volume Set, 9 ed.","Elsevier Science","2019","3576","Hardback","",{"v":21944,"d":"21944.00"},{"$f":"HYPERLINK(\"https://www.logobook.ru/prod_show.php?object_uid=14209571\",\"Описание\")","v":"Описание"}]
["9780323640152","Keech, Brian M","Anesthesia Secrets","Elsevier Science","2020","544","Paperback","6 revised edition",{"v":4965,"d":"4965.00"},{"$f":"HYPERLINK(\"https://www.logobook.ru/prod_show.php?object_uid=14967902\",\"Описание\")","v":"Описание"}]
["9780702074998","Thompson, Jonathan","Smith and Aitkenhead's Textbook of Anaesthesia, International Edition","Elsevier Science","2019","1084","Paperback","",{"v":5312,"d":"5312.00"},{"$f":"HYPERLINK(\"https://www.logobook.ru/prod_show.php?object_uid=14209585\",\"Описание\")","v":"Описание"}]
["9780198853053","Rachel Freedman et a","Oxford handbook of anaesthesia, 5 ed.","Oxford Academ","2022","1184","Paperback","5 revised edition",{"v":5340,"d":"5340.00"},{"$f":"HYPERLINK(\"https://www.logobook.ru/prod_show.php?object_uid=15506138\",\"Описание\")","v":"Описание"}]
["","","","","","","",""]
["#","6 Курс","Family Medicine","","","","",""]
["","","","","","","",""]
["9781496350299","Bickley, Lynn S.","Bates' Guide to Physical Examination and History Taking, International Edition 12e","Lippincott Williams & Wil","2016","1064","Hardback","Twelfth, internation",{"v":7975,"d":"7975.00"},{"$f":"HYPERLINK(\"https://www.logobook.ru/prod_show.php?object_uid=13027038\",\"Описание\")","v":"Описание"}]
["9780323239905","Rakel, Robert","Textbook of Family Medicine, 9 ed.","Elsevier Science","2015","1215","Hardback","9 revised edition",{"v":16862,"d":"16862.00"},{"$f":"HYPERLINK(\"https://www.logobook.ru/prod_show.php?object_uid=12462112\",\"Описание\")","v":"Описание"}]
["","","","","","","",""]
["#","6 Курс","Forensic Medicine","","","","",""]
["","","","","","","",""]
["9788131237854","Krishan Vij","Textbook of Forensic Medicine & Toxicology: Principles & Practice","Elsevier India","2014","550","Paperback","6",{"v":4836,"d":"4836.00"},{"$f":"HYPERLINK(\"https://www.logobook.ru/prod_show.php?object_uid=12791367\",\"Описание\")","v":"Описание"}]
["9780199229949","Wyatt, Jonathan P.; ","Oxford Handbook of Forensic Medicine","Oxford Academ","2011","608","Flexi binding","",{"v":5066,"d":"5066.00"},{"$f":"HYPERLINK(\"https://www.logobook.ru/prod_show.php?object_uid=11944362\",\"Описание\")","v":"Описание"}]
["","","","","","","",""]
["#","6 Курс","Medical English and Intercultural Communication","","","","",""]
["","","","","","","",""]
["9780323378437","Chabner, Davi-Ellen","Medical Language Instant Translator","Elsevier Science","2016","334","Paperback","6 revised edition",{"v":3348,"d":"3348.00"},{"$f":"HYPERLINK(\"https://www.logobook.ru/prod_show.php?object_uid=13142008\",\"Описание\")","v":"Описание"}]
["9780323533195","LaFleur Brooks, Dani","Basic Medical Language with Flash Cards, 6 ed.","Elsevier Science","2018","448","Hardback","6 revised edition",{"v":6582,"d":"6582.00"},{"$f":"HYPERLINK(\"https://www.logobook.ru/prod_show.php?object_uid=14223603\",\"Описание\")","v":"Описание"}]
["9780323396455","Lafleur Brooks, Myrn","Exploring medical language","Elsevier Science","2017","800","Paperback","10 revised edition",{"v":9585,"d":"9585.00"},{"$f":"HYPERLINK(\"https://www.logobook.ru/prod_show.php?object_uid=13591035\",\"Описание\")","v":"Описание"}]
["9780443073991","Parkinson & Brooker","Everyday English for International Nurses","Elsevier Science","2004","256","Paperback","Collectors ed/ /eng-",{"v":4085,"d":"4085.00"},{"$f":"HYPERLINK(\"https://www.logobook.ru/prod_show.php?object_uid=11040721\",\"Описание\")","v":"Описание"}]
["9780444521187","Petey Young","Writing and Presenting in English,","Elsevier Science","2006","124","Paperback","1",{"v":2882,"d":"2882.00"},{"$f":"HYPERLINK(\"https://www.logobook.ru/prod_show.php?object_uid=11090178\",\"Описание\")","v":"Описание"}]
["9780323427944","Leonard, Peggy C.","Building a Medical Vocabulary","Elsevier Science","2017","720","Paperback","10 revised edition",{"v":8430,"d":"8430.00"},{"$f":"HYPERLINK(\"https://www.logobook.ru/prod_show.php?object_uid=13645944\",\"Описание\")","v":"Описание"}]
["9780702075506","Fareh, Shehdeh","English for Medicine & Health Sciences","Elsevier Science","2017","326","paperback","",{"v":1936,"d":"1936.00"},{"$f":"HYPERLINK(\"https://www.logobook.ru/prod_show.php?object_uid=14432061\",\"Описание\")","v":"Описание"}]
["9780323551472","Chabner Davi-Ellen","The Language of Medicine, 12th Edition","Elsevier Science","2020","1064","Paperback","12 revised edition",{"v":10394,"d":"10394.00"},{"$f":"HYPERLINK(\"https://www.logobook.ru/prod_show.php?object_uid=14844404\",\"Описание\")","v":"Описание"}]
["","","","","","","",""]
["#","6 Курс","Obstetrics and Gynecology","","","","",""]
["","","","","","","",""]
["9780323496131","","Obstetrics & Gynecology Morning Report: Beyond the Pearls, 1e / Meriwether Kate, Joey England. - Els","Elsevier Science","2018","480","Paperback","1",{"v":4388,"d":"4388.00"},{"$f":"HYPERLINK(\"https://www.logobook.ru/prod_show.php?object_uid=13645986\",\"Описание\")","v":"Описание"}]
["9780323510370","Wu, Hao-Hua","Gunner Goggles Obstetrics and Gynecology","Elsevier Science","2018","360","Paperback","1",{"v":4388,"d":"4388.00"},{"$f":"HYPERLINK(\"https://www.logobook.ru/prod_show.php?object_uid=13646034\",\"Описание\")","v":"Описание"}]
["9780702074042","Magowan, Brian A. Ow","Clinical Obstetrics and Gynaecology","Elsevier Science","2018","472","Paperback","4 revised edition",{"v":5196,"d":"5196.00"},{"$f":"HYPERLINK(\"https://www.logobook.ru/prod_show.php?object_uid=13816910\",\"Описание\")","v":"Описание"}]
["9780702074059","","Clinical Obstetrics and Gynaecology, International Edition, 4 Ed.","Elsevier Science","2018","416","Paperback","",{"v":3002,"d":"3002.00"},{"$f":"HYPERLINK(\"https://www.logobook.ru/prod_show.php?object_uid=14007698\",\"Описание\")","v":"Описание"}]
["9781455775583","Hacker, Neville F. (","Hacker & Moore's Essentials of Obstetrics and Gynecology","Elsevier Science","2015","512","Paperback","6 revised edition",{"v":5774,"d":"5774.00"},{"$f":"HYPERLINK(\"https://www.logobook.ru/prod_show.php?object_uid=12462639\",\"Описание\")","v":"Описание"}]
["9780702083013","Oats & Boyle","Llewellyn-Jones Fundamentals of Obstetrics and Gynaecology, 11 Ed","Elsevier Science","2022","384","Paperback","11 ed",{"v":4965,"d":"4965.00"},{"$f":"HYPERLINK(\"https://www.logobook.ru/prod_show.php?object_uid=15621116\",\"Описание\")","v":"Описание"}]
["9780729542524","Goh, Judith Flynn, M","Examination obstetrics & gynaecology","Elsevier Science","2017","400","Paperback","4 revised edition",{"v":6813,"d":"6813.00"},{"$f":"HYPERLINK(\"https://www.logobook.ru/prod_show.php?object_uid=13573378\",\"Описание\")","v":"Описание"}]
["9780702070006","Guillebaud John","Contraception: Your Questions Answered","Elsevier Science","2017","424","Paperback","7 revised edition",{"v":5774,"d":"5774.00"},{"$f":"HYPERLINK(\"https://www.logobook.ru/prod_show.php?object_uid=13606350\",\"Описание\")","v":"Описание"}]
["9780323608701","Landon, Mark B","Obstetrics: Normal And Problem Pregnancies","Elsevier Science","2020","1280","Book & Online","8 revised edition",{"v":18017,"d":"18017.00"},{"$f":"HYPERLINK(\"https://www.logobook.ru/prod_show.php?object_uid=14968427\",\"Описание\")","v":"Описание"}]
["9780702076381","Ian M. Symonds, Saba","Essential Obstetrics and Gynaecology, 6 edition","Elsevier Science","2019","480","Paperback","6 revised edition",{"v":4965,"d":"4965.00"},{"$f":"HYPERLINK(\"https://www.logobook.ru/prod_show.php?object_uid=14849493\",\"Описание\")","v":"Описание"}]
["9781975106669","Robert Casanova","Beckmann and Ling's Obstetrics and Gynecology, 8 ed.IE","Lippincott Williams & Wil","2018","0","Paperback","Eighth, internationa",{"v":5225,"d":"5225.00"},{"$f":"HYPERLINK(\"https://www.logobook.ru/prod_show.php?object_uid=14014199\",\"Описание\")","v":"Описание"}]
["9781975134877","Callahan, Dr. Tamara","Blueprints: Obstetrics & Gynecology  7 ed, Revised Reprint","Lippincott Williams & Wil","2018","529","Paperback","Seventh, revised rep",{"v":5431,"d":"5431.00"},{"$f":"HYPERLINK(\"https://www.logobook.ru/prod_show.php?object_uid=14360075\",\"Описание\")","v":"Описание"}]
["","","","","","","",""]
["#","6 Курс","Ophthalmology","","","","",""]
["","","","","","","",""]
["9780323528207","Yanoff, Myron","Ophthalmology, International Edition","Elsevier Science","2018","1440","Paperback","",{"v":21944,"d":"21944.00"},{"$f":"HYPERLINK(\"https://www.logobook.ru/prod_show.php?object_uid=14209589\",\"Описание\")","v":"Описание"}]
["9780702075025","Batterbury, Mark","Ophthalmology, 4 ed.","Elsevier Science","2018","136","Paperback           ","4 revised edition",{"v":3695,"d":"3695.00"},{"$f":"HYPERLINK(\"https://www.logobook.ru/prod_show.php?object_uid=14231620\",\"Описание\")","v":"Описание"}]
["9780702079931","Forrester, John V.","The Eye","Elsevier Science","2020","568","Hardcover           ","5 revised edition",{"v":11318,"d":"11318.00"},{"$f":"HYPERLINK(\"https://www.logobook.ru/prod_show.php?object_uid=14967168\",\"Описание\")","v":"Описание"}]
["9780702077128","Salmon J. F.","Kanski'S Clinical Ophthalmology International 9 Edition","Elsevier Science","2019","928","Paperback","9",{"v":10856,"d":"10856.00"},{"$f":"HYPERLINK(\"https://www.logobook.ru/prod_show.php?object_uid=14968809\",\"Описание\")","v":"Описание"}]
["9781405184731","Olver","Ophthalmology at a Glance, 2nd Edition","Wiley","2014","144","Paperback","2 revised edition",{"v":4393,"d":"4393.00"},{"$f":"HYPERLINK(\"https://www.logobook.ru/prod_show.php?object_uid=12513241\",\"Описание\")","v":"Описание"}]
["","","","","","","",""]
["#","6 Курс","Pediatrics","","","","",""]
["","","","","","","",""]
["9780702073694","Rodgers, Anna","Crash Course Paediatrics, 5th Edition","Elsevier Science","2019","326","Paperback           ","5 revised edition",{"v":3926,"d":"3926.00"},{"$f":"HYPERLINK(\"https://www.logobook.ru/prod_show.php?object_uid=14360362\",\"Описание\")","v":"Описание"}]
["9780323498258","Salazar Adler","Pediatrics Morning Report","Elsevier Science","2018","496","Paperback","",{"v":4388,"d":"4388.00"},{"$f":"HYPERLINK(\"https://www.logobook.ru/prod_show.php?object_uid=14182861\",\"Описание\")","v":"Описание"}]
["9780323510387","Wu, Hao-Hua","Gunner Goggles Pediatrics","Elsevier Science","2018","416","Paperback","1",{"v":4388,"d":"4388.00"},{"$f":"HYPERLINK(\"https://www.logobook.ru/prod_show.php?object_uid=13646035\",\"Описание\")","v":"Описание"}]
["9780702072925","Lissauer, Tom","Self-Assessment in Paediatrics","Elsevier Science","2017","320","Paperback","1",{"v":3117,"d":"3117.00"},{"$f":"HYPERLINK(\"https://www.logobook.ru/prod_show.php?object_uid=13142404\",\"Описание\")","v":"Описание"}]
["9780323529051","Nocton, James J.","On Call Pediatrics","Elsevier Science","2018","440","Paperback","4 revised edition",{"v":4388,"d":"4388.00"},{"$f":"HYPERLINK(\"https://www.logobook.ru/prod_show.php?object_uid=13816905\",\"Описание\")","v":"Описание"}]
["9780729542517","Harris, Wayne","Examination Paediatrics","Elsevier Science","2017","752","Paperback","5 revised edition",{"v":7275,"d":"7275.00"},{"$f":"HYPERLINK(\"https://www.logobook.ru/prod_show.php?object_uid=13646058\",\"Описание\")","v":"Описание"}]
["9780702081811","Lissauer, Tom","Illustrated Textbook of Paediatrics. 6 ed. IE","Elsevier Science","2021","","Paperback","6",{"v":2771,"d":"2771.00"},{"$f":"HYPERLINK(\"https://www.logobook.ru/prod_show.php?object_uid=15465208\",\"Описание\")","v":"Описание"}]
["9780323775625","Marcdante, Kliegman ","Nelson essentials of pediatrics, 9 ed.","Elsevier Science","2022","848","Paperback","9 ed",{"v":8892,"d":"8892.00"},{"$f":"HYPERLINK(\"https://www.logobook.ru/prod_show.php?object_uid=15653558\",\"Описание\")","v":"Описание"}]
["9780323775632","","Nelson  Essentials of  Pediatrics  9 ed IE","Elsevier Science","","","","",{"v":7160,"d":"7160.00"},{"$f":"HYPERLINK(\"https://www.logobook.ru/prod_show.php?object_uid=15664860\",\"Описание\")","v":"Описание"}]
["9780323568906","Kliegman, Robert M.","Nelson Textbook of Pediatrics, International Edition, 21 Ed. : Elsevier Science","Elsevier Science","2019","3876","Hardback","",{"v":12324,"d":"12324.00"},{"$f":"HYPERLINK(\"https://www.logobook.ru/prod_show.php?object_uid=14209578\",\"Описание\")","v":"Описание"}]
["9780323529501","Kliegman, Robert M.","Nelson Textbook of Pediatrics, 2-Volume Set, 21 ed.","Elsevier Science","2019","3876","Hardcover           ","21 revised edition",{"v":17670,"d":"17670.00"},{"$f":"HYPERLINK(\"https://www.logobook.ru/prod_show.php?object_uid=14368521\",\"Описание\")","v":"Описание"}]
["9781496396464","Marino, Bradley","Blueprints Pediatrics. 7 Ed","Lippincott Williams & Wil","2019","416","Paperback","7 ed",{"v":5706,"d":"5706.00"},{"$f":"HYPERLINK(\"https://www.logobook.ru/prod_show.php?object_uid=14360015\",\"Описание\")","v":"Описание"}]
["","","","","","","",""]
["#","6 Курс"," Primary Care","","","","",""]
["","","","","","","",""]
["9780323570152","Buttaro, Terry Mahan","Primary Care. 6 ed.","Elsevier Science","2020","1512","Paperback","6 revised edition",{"v":17093,"d":"17093.00"},{"$f":"HYPERLINK(\"https://www.logobook.ru/prod_show.php?object_uid=14968409\",\"Описание\")","v":"Описание"}]
["9781496378651","Kiefer Meghan M","Pocket Primary Care","Lippincott Williams & Wil","2018","374","Loose Leaf          ","2 ed",{"v":6599,"d":"6599.00"},{"$f":"HYPERLINK(\"https://www.logobook.ru/prod_show.php?object_uid=13999215\",\"Описание\")","v":"Описание"}]
["","","","","","","",""]
["#","6 Курс","Psychiatry","","","","",""]
["","","","","","","",""]
["9781496349217","Mccarron","Primary care psychiatry. 2 ed","Lippincott Williams & Wil","2018","440","Hardcover           ","2 ed",{"v":11275,"d":"11275.00"},{"$f":"HYPERLINK(\"https://www.logobook.ru/prod_show.php?object_uid=14335198\",\"Описание\")","v":"Описание"}]
["9781496345257","Sadock, Benjamin Sad","Kaplan & Sadock's Concise Textbook of Clinical Psychiatry. 4 ed","Lippincott Williams & Wil","2017","1000","Paperback","4 rev ed",{"v":7838,"d":"7838.00"},{"$f":"HYPERLINK(\"https://www.logobook.ru/prod_show.php?object_uid=13339102\",\"Описание\")","v":"Описание"}]
["9781975173128","Marcia Verduin, Pedr","Kaplan & Sadock's Synopsis of Psychiatry. 12 ed.","Lippincott Williams & Wil","2021","1200","Paperback","International editio",{"v":10725,"d":"10725.00"},{"$f":"HYPERLINK(\"https://www.logobook.ru/prod_show.php?object_uid=15357284\",\"Описание\")","v":"Описание"}]
["9781975188870","Fadem B.","BRS Behavioral Science 8 ed revised. IE","Lippincott Williams & Wil","2021","384","Paperback","Eighth, internationa",{"v":4949,"d":"4949.00"},{"$f":"HYPERLINK(\"https://www.logobook.ru/prod_show.php?object_uid=15560402\",\"Описание\")","v":"Описание"}]
["9781260467413","By Debra L. Klamen, ","Psychiatry Pretest Self-Assessment and Review 15 edition IE","McGraw-Hill","2020","320","Paperback","15 ed",{"v":3986,"d":"3986.00"},{"$f":"HYPERLINK(\"https://www.logobook.ru/prod_show.php?object_uid=15255628\",\"Описание\")","v":"Описание"}]
["9780071754422","Ebert","Current Diagnosis And Treatment Psychiatry. 3 ed","McGraw-Hill","2018","768","Soft cover","3",{"v":9074,"d":"9074.00"},{"$f":"HYPERLINK(\"https://www.logobook.ru/prod_show.php?object_uid=12874518\",\"Описание\")","v":"Описание"}]